Workbook

Sheet Main
B10: 2019-05-09
B12: Sheet No. | C12: Template Name | D12: Summary
B13: 1 | C13: Future Intra | D13: For Intraday trading in F&O segment
B14: 2 | C14: Cash Intra | D14: For Intraday trading in cash market segment
B15: 3 | C15: Mid-cap Intra | D15: For Intraday trading in Mid-cap stocks
B16: 4 | C16: Bulk Deals | D16: Reveals Bulk Deals carried on NSE & BSE
B17: 5 | C17: Call Tracker
K27: `

Sheet Future Intra
M5: Back to Main Page
A6: FOR INTRA DAY TRADING | L6: =Main!B10 -> 2019-05-09
A9: Sr.no | B9: Sector | C9: Scrip | D9: CLOSE RATE | E9: Pivot Point | F9: Supports | I9: Resistances
B10: Sector | D10: Point | E10: Point | F10: S1 | G10: S2 | H10: S3 | I10: R1 | J10: R2 | K10: R3 | L10: HIGH | M10: LOW | N10: OI | O10: % Change in OI
A11: 1 | B11: Index | C11: BANKNIFTY | D11: 29145.70 | E11: 29226.43 | F11: 29034.27 | G11: 28922.83 | H11: 28730.67 | I11: 29337.87 | J11: 29530.03 | K11: 29641.47 | L11: 29418.6 | M11: 29115 | N11: 1891640 | O11: -0.63%
A12: 2 | B12: Index | C12: NIFTY | D12: 11418.60 | E12: 11447.32 | F12: 11374.68 | G12: 11330.77 | H12: 11258.13 | I12: 11491.23 | J12: 11563.87 | K12: 11607.78 | L12: 11519.95 | M12: 11403.4 | N12: 20439825 | O12: 2.11%
A13: 3 | B13: Index | C13: NIFTYIT | D13: 16123.00 | E13: 16116.00 | F13: 16047.00 | G13: 15971.00 | H13: 15902.00 | I13: 16192.00 | J13: 16261.00 | K13: 16337.00 | L13: 16185 | M13: 16040 | N13: 15600 | O13: -10.09%
A14: 4 | B14: Cement | C14: ACC | D14: 1598.70 | E14: 1592.32 | F14: 1577.58 | G14: 1556.47 | H14: 1541.73 | I14: 1613.43 | J14: 1628.17 | K14: 1649.28 | L14: 1607.05 | M14: 1571.2 | N14: 2384800 | O14: -5.14%
A15: 5 | B15: Others | C15: ADANIENT | D15: 121.40 | E15: 122.17 | F15: 119.93 | G15: 118.47 | H15: 116.23 | I15: 123.63 | J15: 125.87 | K15: 127.33 | L15: 124.4 | M15: 120.7 | N15: 40632000 | O15: -0.08%
A16: 6 | B16: Others | C16: ADANIPORTS | D16: 372.60 | E16: 373.40 | F16: 369.35 | G16: 366.10 | H16: 362.05 | I16: 376.65 | J16: 380.70 | K16: 383.95 | L16: 377.45 | M16: 370.15 | N16: 14915000 | O16: -1.19%
A17: 7 | B17: Power | C17: ADANIPOWER | D17: 41.60 | E17: 41.62 | F17: 40.93 | G17: 40.27 | H17: 39.58 | I17: 42.28 | J17: 42.97 | K17: 43.63 | L17: 42.3 | M17: 40.95 | N17: 145060000 | O17: -0.25%
A18: 8 | B18: Pharma | C18: AJANTPHARM | D18: 1059.70 | E18: 1055.82 | F18: 1046.88 | G18: 1034.07 | H18: 1025.13 | I18: 1068.63 | J18: 1077.57 | K18: 1090.38 | L18: 1064.75 | M18: 1043 | N18: 651500 | O18: -4.05%
A19: 9 | B19: Banking | C19: ALBK | D19: 44.55 | E19: 44.43 | F19: 43.77 | G19: 42.98 | H19: 42.32 | I19: 45.22 | J19: 45.88 | K19: 46.67 | L19: 45.1 | M19: 43.65 | N19: 20930000 | O19: -1.35%
A20: 10 | B20: Automobile | C20: AMARAJABAT | D20: 639.45 | E20: 641.47 | F20: 634.18 | G20: 628.92 | H20: 621.63 | I20: 646.73 | J20: 654.02 | K20: 659.28 | L20: 648.75 | M20: 636.2 | N20: 1647100 | O20: 0.38%
A21: 11 | B21: Cement | C21: AMBUJACEM | D21: 215.00 | E21: 216.50 | F21: 212.80 | G21: 210.60 | H21: 206.90 | I21: 218.70 | J21: 222.40 | K21: 224.60 | L21: 220.2 | M21: 214.3 | N21: 23350000 | O21: 2.58%
A22: 12 | B22: Others | C22: APOLLOHOSP | D22: 1177.20 | E22: 1174.37 | F22: 1158.83 | G22: 1140.47 | H22: 1124.93 | I22: 1192.73 | J22: 1208.27 | K22: 1226.63 | L22: 1189.9 | M22: 1156 | N22: 1048000 | O22: -4.81%
A23: 13 | B23: Automobile | C23: APOLLOTYRE | D23: 192.10 | E23: 193.85 | F23: 189.75 | G23: 187.40 | H23: 183.30 | I23: 196.20 | J23: 200.30 | K23: 202.65 | L23: 197.95 | M23: 191.5 | N23: 10212000 | O23: 1.86%
A24: 14 | B24: Textile | C24: ARVIND | D24: 78.95 | E24: 79.20 | F24: 78.15 | G24: 77.35 | H24: 76.30 | I24: 80.00 | J24: 81.05 | K24: 81.85 | L24: 80.25 | M24: 78.4 | N24: 5396000 | O24: 4.86%
A25: 15 | B25: Automobile | C25: ASHOKLEY | D25: 86.40 | E25: 86.10 | F25: 85.30 | G25: 84.20 | H25: 83.40 | I25: 87.20 | J25: 88.00 | K25: 89.10 | L25: 86.9 | M25: 85 | N25: 72678000 | O25: -0.45%
A26: 16 | B26: FMCG | C26: ASIANPAINT | D26: 1390.95 | E26: 1386.28 | F26: 1374.67 | G26: 1358.38 | H26: 1346.77 | I26: 1402.57 | J26: 1414.18 | K26: 1430.47 | L26: 1397.9 | M26: 1370 | N26: 5920800 | O26: 2.89%
A27: 17 | B27: Pharma | C27: AUROPHARMA | D27: 768.05 | E27: 768.97 | F27: 758.48 | G27: 748.92 | H27: 738.43 | I27: 778.53 | J27: 789.02 | K27: 798.58 | L27: 779.45 | M27: 759.4 | N27: 17154000 | O27: -1.16%
A28: 18 | B28: Banking | C28: AXISBANK | D28: 740.95 | E28: 743.25 | F28: 736.55 | G28: 732.15 | H28: 725.45 | I28: 747.65 | J28: 754.35 | K28: 758.75 | L28: 749.95 | M28: 738.85 | N28: 36421200 | O28: 2.09%
A29: 19 | B29: Automobile | C29: BAJAJ-AUTO | D29: 2973.85 | E29: 2992.62 | F29: 2949.23 | G29: 2924.62 | H29: 2881.23 | I29: 3017.23 | J29: 3060.62 | K29: 3085.23 | L29: 3036 | M29: 2968 | N29: 3038500 | O29: -1.86%
A30: 20 | B30: Others | C30: BAJAJFINSV | D30: 7396.30 | E30: 7449.12 | F30: 7322.23 | G30: 7248.17 | H30: 7121.28 | I30: 7523.18 | J30: 7650.07 | K30: 7724.13 | L30: 7576 | M30: 7375.05 | N30: 571000 | O30: 0.37%
A31: 21 | B31: Finance | C31: BAJFINANCE | D31: 2942.75 | E31: 2966.57 | F31: 2897.28 | G31: 2851.82 | H31: 2782.53 | I31: 3012.03 | J31: 3081.32 | K31: 3126.78 | L31: 3035.85 | M31: 2921.1 | N31: 5152250 | O31: 1.77%
A32: 22 | B32: Others | C32: BALKRISIND | D32: 833.60 | E32: 842.35 | F32: 821.30 | G32: 809.00 | H32: 787.95 | I32: 854.65 | J32: 875.70 | K32: 888.00 | L32: 863.4 | M32: 830.05 | N32: 1398400 | O32: 2.52%
A33: 23 | B33: Banking | C33: BANKBARODA | D33: 111.80 | E33: 112.62 | F33: 110.23 | G33: 108.67 | H33: 106.28 | I33: 114.18 | J33: 116.57 | K33: 118.13 | L33: 115 | M33: 111.05 | N33: 51861000 | O33: 0.74%
A34: 24 | B34: Banking | C34: BANKINDIA | D34: 84.50 | E34: 84.87 | F34: 83.38 | G34: 82.27 | H34: 80.78 | I34: 85.98 | J34: 87.47 | K34: 88.58 | L34: 86.35 | M34: 83.75 | N34: 24168000 | O34: -1.97%
A35: 25 | B35: FMCG | C35: BATAINDIA | D35: 1353.55 | E35: 1354.85 | F35: 1338.70 | G35: 1323.85 | H35: 1307.70 | I35: 1369.70 | J35: 1385.85 | K35: 1400.70 | L35: 1371 | M35: 1340 | N35: 2142800 | O35: 3.37%
A36: 26 | B36: Capital_Goods | C36: BEL | D36: 87.20 | E36: 86.93 | F36: 86.22 | G36: 85.23 | H36: 84.52 | I36: 87.92 | J36: 88.63 | K36: 89.62 | L36: 87.65 | M36: 85.95 | N36: 33774000 | O36: -2.58%
A37: 27 | B37: Infrastructure | C37: BEML | D37: 838.00 | E37: 838.48 | F37: 829.52 | G37: 821.03 | H37: 812.07 | I37: 846.97 | J37: 855.93 | K37: 864.42 | L37: 847.45 | M37: 830 | N37: 1376900 | O37: 1.92%
A38: 28 | B38: Others | C38: BERGEPAINT | D38: 304.65 | E38: 304.07 | F38: 300.58 | G38: 296.52 | H38: 293.03 | I38: 308.13 | J38: 311.62 | K38: 315.68 | L38: 307.55 | M38: 300 | N38: 2543200 | O38: -5.32%
A39: 29 | B39: Finance | C39: BHARATFIN | D39: 928.00 | E39: 935.17 | F39: 912.83 | G39: 897.67 | H39: 875.33 | I39: 950.33 | J39: 972.67 | K39: 987.83 | L39: 957.5 | M39: 920 | N39: 7023500 | O39: 8.00%
A40: 30 | B40: Automobile | C40: BHARATFORG | D40: 464.10 | E40: 467.73 | F40: 458.57 | G40: 453.03 | H40: 443.87 | I40: 473.27 | J40: 482.43 | K40: 487.97 | L40: 476.9 | M40: 462.2 | N40: 9306000 | O40: -1.10%
A41: 31 | B41: Telecom | C41: BHARTIARTL | D41: 325.70 | E41: 325.58 | F41: 322.12 | G41: 318.53 | H41: 315.07 | I41: 329.17 | J41: 332.63 | K41: 336.22 | L41: 329.05 | M41: 322 | N41: 41814090 | O41: -2.27%
A42: 32 | B42: Capital_Goods | C42: BHEL | D42: 62.10 | E42: 62.68 | F42: 61.32 | G42: 60.53 | H42: 59.17 | I42: 63.47 | J42: 64.83 | K42: 65.62 | L42: 64.05 | M42: 61.9 | N42: 46440000 | O42: -7.14%
A43: 33 | B43: Pharma | C43: BIOCON | D43: 548.65 | E43: 552.38 | F43: 542.77 | G43: 536.88 | H43: 527.27 | I43: 558.27 | J43: 567.88 | K43: 573.77 | L43: 562 | M43: 546.5 | N43: 8190000 | O43: 0.45%
A44: 34 | B44: Automobile | C44: BOSCHLTD | D44: 17410.45 | E44: 17469.62 | F44: 17024.43 | G44: 16638.42 | H44: 16193.23 | I44: 17855.63 | J44: 18300.82 | K44: 18686.83 | L44: 17914.8 | M44: 17083.6 | N44: 156120 | O44: 2.76%
A45: 35 | B45: Oil_Gas | C45: BPCL | D45: 381.10 | E45: 380.63 | F45: 375.92 | G45: 370.73 | H45: 366.02 | I45: 385.82 | J45: 390.53 | K45: 395.72 | L45: 385.35 | M45: 375.45 | N45: 14439600 | O45: 0.05%
A46: 36 | B46: FMCG | C46: BRITANNIA | D46: 2669.65 | E46: 2662.97 | F46: 2641.73 | G46: 2613.82 | H46: 2592.58 | I46: 2690.88 | J46: 2712.12 | K46: 2740.03 | L46: 2684.2 | M46: 2635.05 | N46: 2519400 | O46: 2.87%
A47: 37 | B47: Pharma | C47: CADILAHC | D47: 288.60 | E47: 291.75 | F47: 283.55 | G47: 278.50 | H47: 270.30 | I47: 296.80 | J47: 305.00 | K47: 310.05 | L47: 299.95 | M47: 286.7 | N47: 14121600 | O47: 0.17%
A48: 38 | B48: Banking | C48: CANBK | D48: 257.90 | E48: 258.13 | F48: 252.02 | G48: 246.13 | H48: 240.02 | I48: 264.02 | J48: 270.13 | K48: 276.02 | L48: 264.25 | M48: 252.25 | N48: 9320000 | O48: -2.16%
A49: 39 | B49: Others | C49: CANFINHOME | D49: 323.60 | E49: 322.00 | F49: 315.30 | G49: 307.00 | H49: 300.30 | I49: 330.30 | J49: 337.00 | K49: 345.30 | L49: 328.7 | M49: 313.7 | N49: 3618000 | O49: 7.54%
A50: 40 | B50: Oil_Gas | C50: CASTROLIND | D50: 147.05 | E50: 146.58 | F50: 144.77 | G50: 142.48 | H50: 140.67 | I50: 148.87 | J50: 150.68 | K50: 152.97 | L50: 148.4 | M50: 144.3 | N50: 6198200 | O50: -2.88%
A51: 41 | B51: Automobile | C51: CEATLTD | D51: 1061.45 | E51: 1050.78 | F51: 1032.67 | G51: 1003.88 | H51: 985.77 | I51: 1079.57 | J51: 1097.68 | K51: 1126.47 | L51: 1068.9 | M51: 1022 | N51: 1008000 | O51: -7.35%
A52: 42 | B52: Textile | C52: CENTURYTEX | D52: 921.25 | E52: 920.62 | F52: 907.88 | G52: 894.52 | H52: 881.78 | I52: 933.98 | J52: 946.72 | K52: 960.08 | L52: 933.35 | M52: 907.25 | N52: 4376400 | O52: -1.00%
A53: 43 | B53: Power | C53: CESC | D53: 675.60 | E53: 678.55 | F53: 671.40 | G53: 667.20 | H53: 660.05 | I53: 682.75 | J53: 689.90 | K53: 694.10 | L53: 685.7 | M53: 674.35 | N53: 1114850 | O53: 1.96%
A54: 44 | B54: Power | C54: CGPOWER | D54: 39.30 | E54: 38.50 | F54: 35.10 | G54: 30.90 | H54: 27.50 | I54: 42.70 | J54: 46.10 | K54: 50.30 | L54: 41.9 | M54: 34.3 | N54: 25224000 | O54: 4.94%
A55: 45 | B55: Others | C55: CHENNPETRO | D55: 240.05 | E55: 244.00 | F55: 234.40 | G55: 228.75 | H55: 219.15 | I55: 249.65 | J55: 259.25 | K55: 264.90 | L55: 253.6 | M55: 238.35 | N55: 1414800 | O55: 16.79%
A56: 46 | B56: Others | C56: CHOLAFIN | D56: 1289.30 | E56: 1295.85 | F56: 1278.65 | G56: 1268.00 | H56: 1250.80 | I56: 1306.50 | J56: 1323.70 | K56: 1334.35 | L56: 1313.05 | M56: 1285.2 | N56: 604000 | O56: -5.18%
A57: 47 | B57: Pharma | C57: CIPLA | D57: 561.45 | E57: 559.48 | F57: 554.97 | G57: 548.48 | H57: 543.97 | I57: 565.97 | J57: 570.48 | K57: 576.97 | L57: 564 | M57: 553 | N57: 12382000 | O57: 2.17%
A58: 48 | B58: Others | C58: COALINDIA | D58: 250.70 | E58: 250.97 | F58: 248.48 | G58: 246.27 | H58: 243.78 | I58: 253.18 | J58: 255.67 | K58: 257.88 | L58: 253.45 | M58: 248.75 | N58: 27662800 | O58: 1.29%
A59: 49 | B59: FMCG | C59: COLPAL | D59: 1151.00 | E59: 1156.32 | F59: 1143.28 | G59: 1135.57 | H59: 1122.53 | I59: 1164.03 | J59: 1177.07 | K59: 1184.78 | L59: 1169.35 | M59: 1148.6 | N59: 2175600 | O59: 3.08%
A60: 50 | B60: Others | C60: CONCOR | D60: 480.45 | E60: 484.55 | F60: 473.95 | G60: 467.45 | H60: 456.85 | I60: 491.05 | J60: 501.65 | K60: 508.15 | L60: 495.15 | M60: 478.05 | N60: 1714611 | O60: 8.08%
A61: 51 | B61: Capital_Goods | C61: CUMMINSIND | D61: 704.25 | E61: 703.62 | F61: 698.23 | G61: 692.22 | H61: 686.83 | I61: 709.63 | J61: 715.02 | K61: 721.03 | L61: 709 | M61: 697.6 | N61: 1298500 | O61: -5.21%
A62: 52 | B62: FMCG | C62: DABUR | D62: 370.00 | E62: 371.90 | F62: 365.80 | G62: 361.60 | H62: 355.50 | I62: 376.10 | J62: 382.20 | K62: 386.40 | L62: 378 | M62: 367.7 | N62: 15998750 | O62: 7.38%
A63: 53 | B63: Banking | C63: DCBBANK | D63: 212.30 | E63: 212.12 | F63: 210.98 | G63: 209.67 | H63: 208.53 | I63: 213.43 | J63: 214.57 | K63: 215.88 | L63: 213.25 | M63: 210.8 | N63: 4423500 | O63: -1.99%
A64: 54 | B64: Finance | C64: DHFL | D64: 116.00 | E64: 115.38 | F64: 110.87 | G64: 105.73 | H64: 101.22 | I64: 120.52 | J64: 125.03 | K64: 130.17 | L64: 119.9 | M64: 110.25 | N64: 19796500 | O64: -2.27%
A65: 55 | B65: Media | C65: DISHTV | D65: 31.35 | E65: 31.07 | F65: 29.53 | G65: 27.72 | H65: 26.18 | I65: 32.88 | J65: 34.42 | K65: 36.23 | L65: 32.6 | M65: 29.25 | N65: 62164000 | O65: 7.04%
A66: 56 | B66: Pharma | C66: DIVISLAB | D66: 1677.65 | E66: 1682.25 | F66: 1662.05 | G66: 1646.45 | H66: 1626.25 | I66: 1697.85 | J66: 1718.05 | K66: 1733.65 | L66: 1702.45 | M66: 1666.65 | N66: 2544000 | O66: 1.34%
A67: 57 | B67: Realty | C67: DLF | D67: 170.05 | E67: 169.30 | F67: 167.30 | G67: 164.55 | H67: 162.55 | I67: 172.05 | J67: 174.05 | K67: 176.80 | L67: 171.3 | M67: 166.55 | N67: 45838400 | O67: -0.59%
A68: 58 | B68: Pharma | C68: DRREDDY | D68: 2922.20 | E68: 2927.03 | F68: 2896.97 | G68: 2871.73 | H68: 2841.67 | I68: 2952.27 | J68: 2982.33 | K68: 3007.57 | L68: 2957.1 | M68: 2901.8 | N68: 3539000 | O68: 8.06%
A69: 59 | B69: Automobile | C69: EICHERMOT | D69: 20313.95 | E69: 20353.07 | F69: 20174.83 | G69: 20035.72 | H69: 19857.48 | I69: 20492.18 | J69: 20670.42 | K69: 20809.53 | L69: 20531.3 | M69: 20213.95 | N69: 359600 | O69: 2.29%
A70: 60 | B70: Infrastructure | C70: ENGINERSIN | D70: 107.50 | E70: 107.77 | F70: 106.73 | G70: 105.97 | H70: 104.93 | I70: 108.53 | J70: 109.57 | K70: 110.33 | L70: 108.8 | M70: 107 | N70: 7802300 | O70: 0.69%
A71: 61 | B71: Finance | C71: EQUITAS | D71: 125.85 | E71: 126.73 | F71: 124.47 | G71: 123.08 | H71: 120.82 | I71: 128.12 | J71: 130.38 | K71: 131.77 | L71: 129 | M71: 125.35 | N71: 11128000 | O71: -2.08%
A72: 62 | B72: Automobile | C72: ESCORTS | D72: 632.25 | E72: 638.30 | F72: 623.95 | G72: 615.65 | H72: 601.30 | I72: 646.60 | J72: 660.95 | K72: 669.25 | L72: 652.65 | M72: 630 | N72: 4847700 | O72: 6.73%
A73: 63 | B73: Automobile | C73: EXIDEIND | D73: 209.60 | E73: 210.53 | F73: 207.57 | G73: 205.53 | H73: 202.57 | I73: 212.57 | J73: 215.53 | K73: 217.57 | L73: 213.5 | M73: 208.5 | N73: 8462400 | O73: -0.82%
A74: 64 | B74: Banking | C74: FEDERALBNK | D74: 99.10 | E74: 99.13 | F74: 98.02 | G74: 96.93 | H74: 95.82 | I74: 100.22 | J74: 101.33 | K74: 102.42 | L74: 100.25 | M74: 98.05 | N74: 46725000 | O74: -2.43%
A75: 65 | B75: Oil_Gas | C75: GAIL | D75: 340.00 | E75: 341.88 | F75: 337.12 | G75: 334.23 | H75: 329.47 | I75: 344.77 | J75: 349.53 | K75: 352.42 | L75: 346.65 | M75: 339 | N75: 10686669 | O75: 1.49%
A76: 66 | B76: Pharma | C76: GLENMARK | D76: 605.70 | E76: 614.25 | F76: 591.60 | G76: 577.50 | H76: 554.85 | I76: 628.35 | J76: 651.00 | K76: 665.10 | L76: 636.9 | M76: 600.15 | N76: 4030000 | O76: 6.14%
A77: 67 | B77: Infrastructure | C77: GMRINFRA | D77: 16.00 | E77: 16.02 | F77: 15.78 | G77: 15.57 | H77: 15.33 | I77: 16.23 | J77: 16.47 | K77: 16.68 | L77: 16.25 | M77: 15.8 | N77: 191295000 | O77: -0.82%
A78: 68 | B78: Others | C78: GODFRYPHLP | D78: 1031.50 | E78: 1032.25 | F78: 1020.50 | G78: 1009.50 | H78: 997.75 | I78: 1043.25 | J78: 1055.00 | K78: 1066.00 | L78: 1044 | M78: 1021.25 | N78: 607600 | O78: 1.76%
A79: 69 | B79: FMCG | C79: GODREJCP | D79: 638.40 | E79: 636.37 | F79: 630.58 | G79: 622.77 | H79: 616.98 | I79: 644.18 | J79: 649.97 | K79: 657.78 | L79: 642.15 | M79: 628.55 | N79: 5400400 | O79: -5.93%
A80: 70 | B80: FMCG | C80: GODREJIND | D80: 479.60 | E80: 479.75 | F80: 476.15 | G80: 472.70 | H80: 469.10 | I80: 483.20 | J80: 486.80 | K80: 490.25 | L80: 483.35 | M80: 476.3 | N80: 990000 | O80: -3.08%
A81: 71 | B81: Cement | C81: GRASIM | D81: 877.40 | E81: 877.03 | F81: 869.07 | G81: 860.73 | H81: 852.77 | I81: 885.37 | J81: 893.33 | K81: 901.67 | L81: 885 | M81: 868.7 | N81: 9520500 | O81: 0.11%
A82: 72 | B82: Others | C82: GSFC | D82: 94.50 | E82: 94.75 | F82: 93.75 | G82: 93.00 | H82: 92.00 | I82: 95.50 | J82: 96.50 | K82: 97.25 | L82: 95.75 | M82: 94 | N82: 9902900 | O82: -1.17%
A83: 73 | B83: Others | C83: HAVELLS | D83: 739.40 | E83: 738.60 | F83: 731.70 | G83: 724.00 | H83: 717.10 | I83: 746.30 | J83: 753.20 | K83: 760.90 | L83: 745.5 | M83: 730.9 | N83: 4151000 | O83: -1.40%
A84: 74 | B84: Technology | C84: HCLTECH | D84: 1138.10 | E84: 1137.65 | F84: 1130.45 | G84: 1122.80 | H84: 1115.60 | I84: 1145.30 | J84: 1152.50 | K84: 1160.15 | L84: 1144.85 | M84: 1130 | N84: 9658600 | O84: 3.54%
A85: 75 | B85: Finance | C85: HDFC | D85: 1944.75 | E85: 1952.45 | F85: 1931.35 | G85: 1917.95 | H85: 1896.85 | I85: 1965.85 | J85: 1986.95 | K85: 2000.35 | L85: 1973.55 | M85: 1939.05 | N85: 27944500 | O85: 2.70%
A86: 76 | B86: Banking | C86: HDFCBANK | D86: 2316.50 | E86: 2316.32 | F86: 2300.38 | G86: 2284.27 | H86: 2268.33 | I86: 2332.43 | J86: 2348.37 | K86: 2364.48 | L86: 2332.25 | M86: 2300.2 | N86: 11463500 | O86: 0.18%
A87: 77 | B87: Automobile | C87: HEROMOTOCO | D87: 2512.45 | E87: 2520.92 | F87: 2492.83 | G87: 2473.22 | H87: 2445.13 | I87: 2540.53 | J87: 2568.62 | K87: 2588.23 | L87: 2549 | M87: 2501.3 | N87: 2651400 | O87: 0.47%
A88: 78 | B88: Technology | C88: HEXAWARE | D88: 343.15 | E88: 343.20 | F88: 339.60 | G88: 336.05 | H88: 332.45 | I88: 346.75 | J88: 350.35 | K88: 353.90 | L88: 346.8 | M88: 339.65 | N88: 1878000 | O88: -1.34%
A89: 79 | B89: Metals | C89: HINDALCO | D89: 202.45 | E89: 201.53 | F89: 198.72 | G89: 194.98 | H89: 192.17 | I89: 205.27 | J89: 208.08 | K89: 211.82 | L89: 204.35 | M89: 197.8 | N89: 33428500 | O89: 1.35%
A90: 80 | B90: Oil_Gas | C90: HINDPETRO | D90: 284.00 | E90: 284.95 | F90: 281.55 | G90: 279.10 | H90: 275.70 | I90: 287.40 | J90: 290.80 | K90: 293.25 | L90: 288.35 | M90: 282.5 | N90: 13578600 | O90: 0.76%
A91: 81 | B91: FMCG | C91: HINDUNILVR | D91: 1695.55 | E91: 1694.10 | F91: 1685.45 | G91: 1675.35 | H91: 1666.70 | I91: 1704.20 | J91: 1712.85 | K91: 1722.95 | L91: 1702.75 | M91: 1684 | N91: 10843500 | O91: 0.53%
A92: 82 | B92: Metals | C92: HINDZINC | D92: 267.95 | E92: 267.77 | F92: 265.28 | G92: 262.62 | H92: 260.13 | I92: 270.43 | J92: 272.92 | K92: 275.58 | L92: 270.25 | M92: 265.1 | N92: 3545600 | O92: -1.77%
A93: 83 | B93: Finance | C93: IBULHSGFIN | D93: 675.35 | E93: 676.33 | F93: 667.97 | G93: 660.58 | H93: 652.22 | I93: 683.72 | J93: 692.08 | K93: 699.47 | L93: 684.7 | M93: 668.95 | N93: 15278300 | O93: 0.07%
A94: 84 | B94: Banking | C94: ICICIBANK | D94: 385.05 | E94: 386.77 | F94: 381.13 | G94: 377.22 | H94: 371.58 | I94: 390.68 | J94: 396.32 | K94: 400.23 | L94: 392.4 | M94: 382.85 | N94: 96776625 | O94: 0.65%
A95: 85 | B95: Others | C95: ICICIPRULI | D95: 359.05 | E95: 359.68 | F95: 355.37 | G95: 351.68 | H95: 347.37 | I95: 363.37 | J95: 367.68 | K95: 371.37 | L95: 364 | M95: 356 | N95: 6388500 | O95: -4.31%
A96: 86 | B96: Banking | C96: IDBI | D96: 37.10 | E96: 37.10 | F96: 36.60 | G96: 36.10 | H96: 35.60 | I96: 37.60 | J96: 38.10 | K96: 38.60 | L96: 37.6 | M96: 36.6 | N96: 30228000 | O96: -0.98%
A97: 87 | B97: Telecom | C97: IDEA | D97: 14.45 | E97: 14.48 | F97: 13.67 | G97: 12.88 | H97: 12.07 | I97: 15.27 | J97: 16.08 | K97: 16.87 | L97: 15.3 | M97: 13.7 | N97: 524811648 | O97: -1.12%
A98: 88 | B98: Finance | C98: IDFC | D98: 37.80 | E98: 37.85 | F98: 37.00 | G98: 36.20 | H98: 35.35 | I98: 38.65 | J98: 39.50 | K98: 40.30 | L98: 38.7 | M98: 37.05 | N98: 79926000 | O98: -0.69%
A99: 89 | B99: Banking | C99: IDFCFIRSTB | D99: 49.65 | E99: 49.47 | F99: 48.73 | G99: 47.82 | H99: 47.08 | I99: 50.38 | J99: 51.12 | K99: 52.03 | L99: 50.2 | M99: 48.55 | N99: 122772000 | O99: -3.27%
A100: 90 | B100: Finance | C100: IFCI | D100: 9.45 | E100: 9.45 | F100: 9.30 | G100: 9.15 | H100: 9.00 | I100: 9.60 | J100: 9.75 | K100: 9.90 | L100: 9.6 | M100: 9.3 | N100: 60235000 | O100: 0.94%
A101: 91 | B101: Oil_Gas | C101: IGL | D101: 309.35 | E101: 309.23 | F101: 306.17 | G101: 302.98 | H101: 299.92 | I101: 312.42 | J101: 315.48 | K101: 318.67 | L101: 312.3 | M101: 306.05 | N101: 2326500 | O101: -2.76%
A102: 92 | B102: Cement | C102: INDIACEM | D102: 100.30 | E102: 101.45 | F102: 97.85 | G102: 95.40 | H102: 91.80 | I102: 103.90 | J102: 107.50 | K102: 109.95 | L102: 105.05 | M102: 99 | N102: 16515000 | O102: 4.71%
A103: 93 | B103: Banking | C103: INDIANB | D103: 240.70 | E103: 241.98 | F103: 238.32 | G103: 235.93 | H103: 232.27 | I103: 244.37 | J103: 248.03 | K103: 250.42 | L103: 245.65 | M103: 239.6 | N103: 3808000 | O103: 3.53%
A104: 94 | B104: Others | C104: INDIGO | D104: 1580.00 | E104: 1574.53 | F104: 1557.47 | G104: 1534.93 | H104: 1517.87 | I104: 1597.07 | J104: 1614.13 | K104: 1636.67 | L104: 1591.6 | M104: 1552 | N104: 2668800 | O104: 1.58%
A105: 95 | B105: Banking | C105: INDUSINDBK | D105: 1497.95 | E105: 1508.62 | F105: 1481.23 | G105: 1464.52 | H105: 1437.13 | I105: 1525.33 | J105: 1552.72 | K105: 1569.43 | L105: 1536 | M105: 1491.9 | N105: 9879800 | O105: 4.76%
A106: 96 | B106: Technology | C106: INFIBEAM | D106: 41.90 | E106: 42.20 | F106: 41.35 | G106: 40.80 | H106: 39.95 | I106: 42.75 | J106: 43.60 | K106: 44.15 | L106: 43.05 | M106: 41.65 | N106: 9792000 | O106: 4.39%
A107: 97 | B107: Telecom | C107: INFRATEL | D107: 267.70 | E107: 268.22 | F107: 265.18 | G107: 262.67 | H107: 259.63 | I107: 270.73 | J107: 273.77 | K107: 276.28 | L107: 271.25 | M107: 265.7 | N107: 7600000 | O107: 0.50%
A108: 98 | B108: Technology | C108: INFY | D108: 722.80 | E108: 723.58 | F108: 718.37 | G108: 713.93 | H108: 708.72 | I108: 728.02 | J108: 733.23 | K108: 737.67 | L108: 728.8 | M108: 719.15 | N108: 49155600 | O108: 1.77%
A109: 99 | B109: Oil_Gas | C109: IOC | D109: 153.35 | E109: 154.17 | F109: 152.03 | G109: 150.72 | H109: 148.58 | I109: 155.48 | J109: 157.62 | K109: 158.93 | L109: 156.3 | M109: 152.85 | N109: 39200000 | O109: -0.55%
A110: 100 | B110: Infrastructure | C110: IRB | D110: 114.90 | E110: 116.12 | F110: 112.98 | G110: 111.07 | H110: 107.93 | I110: 118.03 | J110: 121.17 | K110: 123.08 | L110: 119.25 | M110: 114.2 | N110: 9488000 | O110: 0.00%
A111: 101 | B111: FMCG | C111: ITC | D111: 298.90 | E111: 299.18 | F111: 296.72 | G111: 294.53 | H111: 292.07 | I111: 301.37 | J111: 303.83 | K111: 306.02 | L111: 301.65 | M111: 297 | N111: 83136000 | O111: 2.19%
A112: 102 | B112: Others | C112: JETAIRWAYS | D112: 110.20 | E112: 106.70 | F112: 99.00 | G112: 87.80 | H112: 80.10 | I112: 117.90 | J112: 125.60 | K112: 136.80 | L112: 114.4 | M112: 95.5 | N112: 5005000 | O112: -6.72%
A113: 103 | B113: Metals | C113: JINDALSTEL | D113: 170.70 | E113: 170.15 | F113: 167.30 | G113: 163.90 | H113: 161.05 | I113: 173.55 | J113: 176.40 | K113: 179.80 | L113: 173 | M113: 166.75 | N113: 23215150 | O113: -4.01%
A114: 104 | B114: Others | C114: JISLJALEQS | D114: 49.45 | E114: 49.87 | F114: 48.83 | G114: 48.22 | H114: 47.18 | I114: 50.48 | J114: 51.52 | K114: 52.13 | L114: 50.9 | M114: 49.25 | N114: 29313000 | O114: -0.58%
A115: 105 | B115: Metals | C115: JSWSTEEL | D115: 291.10 | E115: 291.03 | F115: 287.17 | G115: 283.23 | H115: 279.37 | I115: 294.97 | J115: 298.83 | K115: 302.77 | L115: 294.9 | M115: 287.1 | N115: 45672000 | O115: 0.43%
A116: 106 | B116: Others | C116: JUBLFOOD | D116: 1270.05 | E116: 1267.23 | F116: 1250.97 | G116: 1231.88 | H116: 1215.62 | I116: 1286.32 | J116: 1302.58 | K116: 1321.67 | L116: 1283.5 | M116: 1248.15 | N116: 3073000 | O116: -0.93%
A117: 107 | B117: Others | C117: JUSTDIAL | D117: 566.30 | E117: 569.05 | F117: 561.50 | G117: 556.70 | H117: 549.15 | I117: 573.85 | J117: 581.40 | K117: 586.20 | L117: 576.6 | M117: 564.25 | N117: 2112600 | O117: 2.51%
A118: 108 | B118: Others | C118: KAJARIACER | D118: 566.50 | E118: 563.00 | F118: 555.50 | G118: 544.50 | H118: 537.00 | I118: 574.00 | J118: 581.50 | K118: 592.50 | L118: 570.5 | M118: 552 | N118: 2307500 | O118: 27.06%
A119: 109 | B119: Banking | C119: KOTAKBANK | D119: 1403.40 | E119: 1404.75 | F119: 1393.75 | G119: 1384.10 | H119: 1373.10 | I119: 1414.40 | J119: 1425.40 | K119: 1435.05 | L119: 1415.75 | M119: 1395.1 | N119: 8971200 | O119: 0.60%
A120: 110 | B120: Technology | C120: BSOFT | D120: 86.00 | E120: 86.37 | F120: 84.73 | G120: 83.47 | H120: 81.83 | I120: 87.63 | J120: 89.27 | K120: 90.53 | L120: 88 | M120: 85.1 | N120: 3440250 | O120: 8.21%
A121: 111 | B121: Others | C121: KSCL | D121: 443.65 | E121: 441.83 | F121: 435.82 | G121: 427.98 | H121: 421.97 | I121: 449.67 | J121: 455.68 | K121: 463.52 | L121: 447.85 | M121: 434 | N121: 844500 | O121: -2.09%
A122: 112 | B122: Banking | C122: KTKBANK | D122: 122.25 | E122: 122.97 | F122: 120.88 | G122: 119.52 | H122: 117.43 | I122: 124.33 | J122: 126.42 | K122: 127.78 | L122: 125.05 | M122: 121.6 | N122: 13197600 | O122: 1.78%
A123: 113 | B123: Finance | C123: L&TFH | D123: 119.15 | E123: 120.45 | F123: 117.50 | G123: 115.85 | H123: 112.90 | I123: 122.10 | J123: 125.05 | K123: 126.70 | L123: 123.4 | M123: 118.8 | N123: 28885500 | O123: 4.12%
A124: 114 | B124: Finance | C124: LICHSGFIN | D124: 479.80 | E124: 480.53 | F124: 471.72 | G124: 463.63 | H124: 454.82 | I124: 488.62 | J124: 497.43 | K124: 505.52 | L124: 489.35 | M124: 472.45 | N124: 8303900 | O124: -6.04%
A125: 115 | B125: Capital_Goods | C125: LT | D125: 1365.95 | E125: 1368.73 | F125: 1359.47 | G125: 1352.98 | H125: 1343.72 | I125: 1375.22 | J125: 1384.48 | K125: 1390.97 | L125: 1378 | M125: 1362.25 | N125: 8624250 | O125: 0.85%
A126: 116 | B126: Pharma | C126: LUPIN | D126: 857.05 | E126: 857.30 | F126: 849.85 | G126: 842.65 | H126: 835.20 | I126: 864.50 | J126: 871.95 | K126: 879.15 | L126: 864.75 | M126: 850.1 | N126: 8520400 | O126: -1.30%
A127: 117 | B127: Automobile | C127: M&M | D127: 625.35 | E127: 629.58 | F127: 618.77 | G127: 612.18 | H127: 601.37 | I127: 636.17 | J127: 646.98 | K127: 653.57 | L127: 640.4 | M127: 623 | N127: 19433000 | O127: 2.25%
A128: 118 | B128: Finance | C128: M&MFIN | D128: 381.70 | E128: 384.75 | F128: 377.65 | G128: 373.60 | H128: 366.50 | I128: 388.80 | J128: 395.90 | K128: 399.95 | L128: 391.85 | M128: 380.7 | N128: 11585000 | O128: 1.17%
A129: 119 | B129: Others | C129: MANAPPURAM | D129: 115.45 | E129: 116.07 | F129: 114.38 | G129: 113.32 | H129: 111.63 | I129: 117.13 | J129: 118.82 | K129: 119.88 | L129: 117.75 | M129: 115 | N129: 8640000 | O129: -1.30%
A130: 120 | B130: FMCG | C130: MARICO | D130: 357.85 | E130: 356.43 | F130: 350.17 | G130: 342.48 | H130: 336.22 | I130: 364.12 | J130: 370.38 | K130: 378.07 | L130: 362.7 | M130: 348.75 | N130: 7295600 | O130: 2.33%
A131: 121 | B131: Automobile | C131: MARUTI | D131: 6680.55 | E131: 6686.33 | F131: 6649.92 | G131: 6619.28 | H131: 6582.87 | I131: 6716.97 | J131: 6753.38 | K131: 6784.02 | L131: 6722.75 | M131: 6655.7 | N131: 3023625 | O131: 0.84%
A132: 122 | B132: FMCG | C132: MCDOWELL-N | D132: 529.65 | E132: 530.77 | F132: 522.08 | G132: 514.52 | H132: 505.83 | I132: 538.33 | J132: 547.02 | K132: 554.58 | L132: 539.45 | M132: 523.2 | N132: 11248750 | O132: -2.25%
A133: 123 | B133: Others | C133: MCX | D133: 835.80 | E133: 841.17 | F133: 827.13 | G133: 818.47 | H133: 804.43 | I133: 849.83 | J133: 863.87 | K133: 872.53 | L133: 855.2 | M133: 832.5 | N133: 1821400 | O133: 4.41%
A134: 124 | B134: Finance | C134: MFSL | D134: 414.30 | E134: 412.93 | F134: 406.87 | G134: 399.43 | H134: 393.37 | I134: 420.37 | J134: 426.43 | K134: 433.87 | L134: 419 | M134: 405.5 | N134: 1958400 | O134: -9.43%
A135: 125 | B135: Others | C135: MGL | D135: 933.45 | E135: 939.90 | F135: 920.65 | G135: 907.85 | H135: 888.60 | I135: 952.70 | J135: 971.95 | K135: 984.75 | L135: 959.15 | M135: 927.1 | N135: 673800 | O135: -0.44%
A136: 126 | B136: Technology | C136: MINDTREE | D136: 974.70 | E136: 973.82 | F136: 968.38 | G136: 962.07 | H136: 956.63 | I136: 980.13 | J136: 985.57 | K136: 991.88 | L136: 979.25 | M136: 967.5 | N136: 2007600 | O136: -3.01%
A137: 127 | B137: Automobile | C137: MOTHERSUMI | D137: 131.45 | E137: 131.87 | F137: 130.28 | G137: 129.12 | H137: 127.53 | I137: 133.03 | J137: 134.62 | K137: 135.78 | L137: 133.45 | M137: 130.7 | N137: 33278400 | O137: -1.84%
A138: 128 | B138: Automobile | C138: MRF | D138: 54517.70 | E138: 54185.05 | F138: 53570.10 | G138: 52622.50 | H138: 52007.55 | I138: 55132.65 | J138: 55747.60 | K138: 56695.20 | L138: 54800 | M138: 53237.45 | N138: 34940 | O138: -5.31%
A139: 129 | B139: Others | C139: MRPL | D139: 66.75 | E139: 67.13 | F139: 65.87 | G139: 64.98 | H139: 63.72 | I139: 68.02 | J139: 69.28 | K139: 70.17 | L139: 68.4 | M139: 66.25 | N139: 3934000 | O139: 1.44%
A140: 130 | B140: Finance | C140: MUTHOOTFIN | D140: 565.35 | E140: 566.43 | F140: 559.32 | G140: 553.28 | H140: 546.17 | I140: 572.47 | J140: 579.58 | K140: 585.62 | L140: 573.55 | M140: 560.4 | N140: 2419500 | O140: 19.30%
A141: 131 | B141: Others | C141: NATIONALUM | D141: 50.00 | E141: 50.17 | F141: 49.58 | G141: 49.17 | H141: 48.58 | I141: 50.58 | J141: 51.17 | K141: 51.58 | L141: 50.75 | M141: 49.75 | N141: 37188000 | O141: 1.02%
A142: 132 | B142: Others | C142: NBCC | D142: 54.45 | E142: 55.17 | F142: 53.53 | G142: 52.62 | H142: 50.98 | I142: 56.08 | J142: 57.72 | K142: 58.63 | L142: 56.8 | M142: 54.25 | N142: 34104000 | O142: 0.28%
A143: 133 | B143: Infrastructure | C143: NCC | D143: 94.20 | E143: 93.80 | F143: 92.40 | G143: 90.60 | H143: 89.20 | I143: 95.60 | J143: 97.00 | K143: 98.80 | L143: 95.2 | M143: 92 | N143: 32816000 | O143: 1.51%
A144: 134 | B144: Others | C144: NESTLEIND | D144: 10378.75 | E144: 10431.08 | F144: 10287.67 | G144: 10196.58 | H144: 10053.17 | I144: 10522.17 | J144: 10665.58 | K144: 10756.67 | L144: 10574.5 | M144: 10340 | N144: 320450 | O144: 0.31%
A145: 135 | B145: Power | C145: NHPC | D145: 22.90 | E145: 22.93 | F145: 22.72 | G145: 22.53 | H145: 22.32 | I145: 23.12 | J145: 23.33 | K145: 23.52 | L145: 23.15 | M145: 22.75 | N145: 17955000 | O145: -0.45%
A146: 136 | B146: Technology | C146: NIITTECH | D146: 1246.55 | E146: 1250.53 | F146: 1235.77 | G146: 1224.98 | H146: 1210.22 | I146: 1261.32 | J146: 1276.08 | K146: 1286.87 | L146: 1265.3 | M146: 1239.75 | N146: 1902750 | O146: 8.65%
A147: 137 | B147: Metals | C147: NMDC | D147: 96.30 | E147: 96.75 | F147: 95.65 | G147: 95.00 | H147: 93.90 | I147: 97.40 | J147: 98.50 | K147: 99.15 | L147: 97.85 | M147: 96.1 | N147: 16956000 | O147: -2.08%
A148: 138 | B148: Power | C148: NTPC | D148: 131.75 | E148: 132.58 | F148: 130.37 | G148: 128.98 | H148: 126.77 | I148: 133.97 | J148: 136.18 | K148: 137.57 | L148: 134.8 | M148: 131.2 | N148: 56731200 | O148: 2.36%
A149: 139 | B149: Technology | C149: OFSS | D149: 3465.65 | E149: 3455.18 | F149: 3420.42 | G149: 3375.18 | H149: 3340.42 | I149: 3500.42 | J149: 3535.18 | K149: 3580.42 | L149: 3489.95 | M149: 3409.95 | N149: 282000 | O149: -1.93%
A150: 140 | B150: Oil_Gas | C150: OIL | D150: 180.00 | E150: 180.73 | F150: 178.77 | G150: 177.53 | H150: 175.57 | I150: 181.97 | J150: 183.93 | K150: 185.17 | L150: 182.7 | M150: 179.5 | N150: 7494795 | O150: -0.63%
A151: 141 | B151: Oil_Gas | C151: ONGC | D151: 169.80 | E151: 169.95 | F151: 168.55 | G151: 167.30 | H151: 165.90 | I151: 171.20 | J151: 172.60 | K151: 173.85 | L151: 171.35 | M151: 168.7 | N151: 63873750 | O151: 0.06%
A152: 142 | B152: Banking | C152: ORIENTBANK | D152: 92.35 | E152: 92.78 | F152: 91.22 | G152: 90.08 | H152: 88.52 | I152: 93.92 | J152: 95.48 | K152: 96.62 | L152: 94.35 | M152: 91.65 | N152: 12677000 | O152: -0.39%
A153: 143 | B153: Textile | C153: PAGEIND | D153: 21495.30 | E153: 21648.33 | F153: 21246.92 | G153: 20998.53 | H153: 20597.12 | I153: 21896.72 | J153: 22298.13 | K153: 22546.52 | L153: 22049.75 | M153: 21399.95 | N153: 159475 | O153: -0.09%
A154: 144 | B154: Others | C154: PCJEWELLER | D154: 120.10 | E154: 120.23 | F154: 116.57 | G154: 113.03 | H154: 109.37 | I154: 123.77 | J154: 127.43 | K154: 130.97 | L154: 123.9 | M154: 116.7 | N154: 10588500 | O154: -2.80%
A155: 145 | B155: Pharma | C155: PEL | D155: 2195.15 | E155: 2216.60 | F155: 2163.60 | G155: 2132.05 | H155: 2079.05 | I155: 2248.15 | J155: 2301.15 | K155: 2332.70 | L155: 2269.6 | M155: 2185.05 | N155: 4636606 | O155: 1.20%
A156: 146 | B156: Oil_Gas | C156: PETRONET | D156: 236.70 | E156: 237.78 | F156: 234.32 | G156: 231.93 | H156: 228.47 | I156: 240.17 | J156: 243.63 | K156: 246.02 | L156: 241.25 | M156: 235.4 | N156: 8484000 | O156: -5.89%
A157: 147 | B157: Finance | C157: PFC | D157: 108.55 | E157: 109.57 | F157: 107.23 | G157: 105.92 | H157: 103.58 | I157: 110.88 | J157: 113.22 | K157: 114.53 | L157: 111.9 | M157: 108.25 | N157: 25035600 | O157: 3.99%
A158: 148 | B158: FMCG | C158: PIDILITIND | D158: 1170.70 | E158: 1174.78 | F158: 1160.27 | G158: 1149.83 | H158: 1135.32 | I158: 1185.22 | J158: 1199.73 | K158: 1210.17 | L158: 1189.3 | M158: 1164.35 | N158: 3296500 | O158: 0.35%
A159: 149 | B159: Banking | C159: PNB | D159: 84.60 | E159: 84.82 | F159: 83.63 | G159: 82.67 | H159: 81.48 | I159: 85.78 | J159: 86.97 | K159: 87.93 | L159: 86 | M159: 83.85 | N159: 93289000 | O159: -2.54%
A160: 150 | B160: Power | C160: POWERGRID | D160: 191.00 | E160: 191.83 | F160: 189.27 | G160: 187.53 | H160: 184.97 | I160: 193.57 | J160: 196.13 | K160: 197.87 | L160: 194.4 | M160: 190.1 | N160: 17648000 | O160: -1.98%
A161: 151 | B161: Others | C161: PVR | D161: 1751.85 | E161: 1758.45 | F161: 1739.90 | G161: 1727.95 | H161: 1709.40 | I161: 1770.40 | J161: 1788.95 | K161: 1800.90 | L161: 1777 | M161: 1746.5 | N161: 866400 | O161: -3.00%
A162: 152 | B162: Cement | C162: RAMCOCEM | D162: 753.40 | E162: 755.20 | F162: 741.50 | G162: 729.60 | H162: 715.90 | I162: 767.10 | J162: 780.80 | K162: 792.70 | L162: 768.9 | M162: 743.3 | N162: 1240000 | O162: -5.14%
A163: 153 | B163: Others | C163: RAYMOND | D163: 809.20 | E163: 808.85 | F163: 798.95 | G163: 788.70 | H163: 778.80 | I163: 819.10 | J163: 829.00 | K163: 839.25 | L163: 818.75 | M163: 798.6 | N163: 2847200 | O163: 0.65%
A164: 154 | B164: Banking | C164: RBLBANK | D164: 656.05 | E164: 659.28 | F164: 649.77 | G164: 643.48 | H164: 633.97 | I164: 665.57 | J164: 675.08 | K164: 681.37 | L164: 668.8 | M164: 653 | N164: 5604000 | O164: -1.93%
A165: 155 | B165: Power | C165: RECLTD | D165: 138.65 | E165: 139.37 | F165: 137.18 | G165: 135.72 | H165: 133.53 | I165: 140.83 | J165: 143.02 | K165: 144.48 | L165: 141.55 | M165: 137.9 | N165: 27588000 | O165: -0.24%
A166: 156 | B166: Finance | C166: RELCAPITAL | D166: 114.40 | E166: 114.80 | F166: 109.75 | G166: 105.10 | H166: 100.05 | I166: 119.45 | J166: 124.50 | K166: 129.15 | L166: 119.85 | M166: 110.15 | N166: 11959500 | O166: 5.56%
A167: 157 | B167: Oil_Gas | C167: RELIANCE | D167: 1307.40 | E167: 1318.02 | F167: 1290.48 | G167: 1273.57 | H167: 1246.03 | I167: 1334.93 | J167: 1362.47 | K167: 1379.38 | L167: 1345.55 | M167: 1301.1 | N167: 41838500 | O167: -0.95%
A168: 158 | B168: Power | C168: RELINFRA | D168: 99.20 | E168: 99.28 | F168: 96.22 | G168: 93.23 | H168: 90.17 | I168: 102.27 | J168: 105.33 | K168: 108.32 | L168: 102.35 | M168: 96.3 | N168: 12128200 | O168: -0.51%
A169: 159 | B169: Others | C169: REPCOHOME | D169: 401.00 | E169: 404.45 | F169: 395.10 | G169: 389.20 | H169: 379.85 | I169: 410.35 | J169: 419.70 | K169: 425.60 | L169: 413.8 | M169: 398.55 | N169: 649000 | O169: -4.38%
A170: 160 | B170: Power | C170: RPOWER | D170: 5.90 | E170: 5.93 | F170: 5.72 | G170: 5.53 | H170: 5.32 | I170: 6.12 | J170: 6.33 | K170: 6.52 | L170: 6.15 | M170: 5.75 | N170: 105968000 | O170: 0.21%
A171: 161 | B171: Metals | C171: SAIL | D171: 53.30 | E171: 53.42 | F171: 52.48 | G171: 51.67 | H171: 50.73 | I171: 54.23 | J171: 55.17 | K171: 55.98 | L171: 54.35 | M171: 52.6 | N171: 84492000 | O171: -4.13%
A172: 162 | B172: Banking | C172: SBIN | D172: 299.80 | E172: 301.80 | F172: 296.60 | G172: 293.40 | H172: 288.20 | I172: 305.00 | J172: 310.20 | K172: 313.40 | L172: 307 | M172: 298.6 | N172: 61815000 | O172: 1.44%
A173: 163 | B173: Cement | C173: SHREECEM | D173: 19897.65 | E173: 19825.83 | F173: 19701.82 | G173: 19505.98 | H173: 19381.97 | I173: 20021.67 | J173: 20145.68 | K173: 20341.52 | L173: 19949.85 | M173: 19630 | N173: 100050 | O173: -1.09%
A174: 164 | B174: Capital_Goods | C174: SIEMENS | D174: 1097.15 | E174: 1101.62 | F174: 1079.58 | G174: 1062.02 | H174: 1039.98 | I174: 1119.18 | J174: 1141.22 | K174: 1158.78 | L174: 1123.65 | M174: 1084.05 | N174: 1320000 | O174: 11.73%
A175: 165 | B175: Banking | C175: SOUTHBANK | D175: 15.55 | E175: 15.55 | F175: 15.35 | G175: 15.15 | H175: 14.95 | I175: 15.75 | J175: 15.95 | K175: 16.15 | L175: 15.75 | M175: 15.35 | N175: 116126064 | O175: 1.42%
A176: 166 | B176: Textile | C176: SRF | D176: 2462.70 | E176: 2480.38 | F176: 2426.82 | G176: 2390.93 | H176: 2337.37 | I176: 2516.27 | J176: 2569.83 | K176: 2605.72 | L176: 2533.95 | M176: 2444.5 | N176: 596250 | O176: -1.49%
A177: 167 | B177: Finance | C177: SRTRANSFIN | D177: 1033.70 | E177: 1037.33 | F177: 1015.67 | G177: 997.63 | H177: 975.97 | I177: 1055.37 | J177: 1077.03 | K177: 1095.07 | L177: 1059 | M177: 1019.3 | N177: 3795600 | O177: 5.08%
A178: 168 | B178: Pharma | C178: STAR | D178: 489.90 | E178: 490.70 | F178: 482.35 | G178: 474.80 | H178: 466.45 | I178: 498.25 | J178: 506.60 | K178: 514.15 | L178: 499.05 | M178: 483.15 | N178: 2399100 | O178: -2.20%
A179: 169 | B179: Pharma | C179: SUNPHARMA | D179: 441.35 | E179: 443.27 | F179: 433.78 | G179: 426.22 | H179: 416.73 | I179: 450.83 | J179: 460.32 | K179: 467.88 | L179: 452.75 | M179: 435.7 | N179: 52112500 | O179: 1.62%
A180: 170 | B180: Media | C180: SUNTV | D180: 530.55 | E180: 536.68 | F180: 519.52 | G180: 508.48 | H180: 491.32 | I180: 547.72 | J180: 564.88 | K180: 575.92 | L180: 553.85 | M180: 525.65 | N180: 6063000 | O180: -4.37%
A181: 171 | B181: Power | C181: SUZLON | D181: 6.05 | E181: 6.13 | F181: 5.92 | G181: 5.78 | H181: 5.57 | I181: 6.27 | J181: 6.48 | K181: 6.62 | L181: 6.35 | M181: 6 | N181: 290244000 | O181: -1.39%
A182: 172 | B182: Banking | C182: SYNDIBANK | D182: 36.30 | E182: 36.32 | F182: 35.63 | G182: 34.97 | H182: 34.28 | I182: 36.98 | J182: 37.67 | K182: 38.33 | L182: 37 | M182: 35.65 | N182: 24735000 | O182: 0.92%
A183: 173 | B183: Fertilisers | C183: TATACHEM | D183: 593.85 | E183: 595.42 | F183: 586.43 | G183: 579.02 | H183: 570.03 | I183: 602.83 | J183: 611.82 | K183: 619.23 | L183: 604.4 | M183: 588 | N183: 3559800 | O183: 1.11%
A184: 174 | B184: Telecom | C184: TATACOMM | D184: 563.65 | E184: 565.95 | F184: 557.20 | G184: 550.75 | H184: 542.00 | I184: 572.40 | J184: 581.15 | K184: 587.60 | L184: 574.7 | M184: 559.5 | N184: 2274000 | O184: 11.20%
A185: 175 | B185: Technology | C185: TATAELXSI | D185: 863.15 | E185: 864.83 | F185: 853.97 | G185: 844.78 | H185: 833.92 | I185: 874.02 | J185: 884.88 | K185: 894.07 | L185: 875.7 | M185: 855.65 | N185: 1815200 | O185: -1.87%
A186: 176 | B186: FMCG | C186: TATAGLOBAL | D186: 198.45 | E186: 198.87 | F186: 196.83 | G186: 195.22 | H186: 193.18 | I186: 200.48 | J186: 202.52 | K186: 204.13 | L186: 200.9 | M186: 197.25 | N186: 12584250 | O186: 1.01%
A187: 177 | B187: Automobile | C187: TATAMOTORS | D187: 186.50 | E187: 187.98 | F187: 183.72 | G187: 180.93 | H187: 176.67 | I187: 190.77 | J187: 195.03 | K187: 197.82 | L187: 192.25 | M187: 185.2 | N187: 62199000 | O187: 5.79%
A188: 178 | B188: Automobile | C188: TATAMTRDVR | D188: 89.15 | E188: 89.95 | F188: 87.90 | G188: 86.65 | H188: 84.60 | I188: 91.20 | J188: 93.25 | K188: 94.50 | L188: 92 | M188: 88.7 | N188: 30273600 | O188: 1.72%
A189: 179 | B189: Power | C189: TATAPOWER | D189: 64.80 | E189: 64.48 | F189: 63.87 | G189: 62.93 | H189: 62.32 | I189: 65.42 | J189: 66.03 | K189: 66.97 | L189: 65.1 | M189: 63.55 | N189: 63162000 | O189: -1.57%
A190: 180 | B190: Metals | C190: TATASTEEL | D190: 526.65 | E190: 529.00 | F190: 523.25 | G190: 519.85 | H190: 514.10 | I190: 532.40 | J190: 538.15 | K190: 541.55 | L190: 534.75 | M190: 525.6 | N190: 26631100 | O190: -0.16%
A191: 181 | B191: Technology | C191: TCS | D191: 2161.75 | E191: 2158.85 | F191: 2141.00 | G191: 2120.25 | H191: 2102.40 | I191: 2179.60 | J191: 2197.45 | K191: 2218.20 | L191: 2176.7 | M191: 2138.1 | N191: 11858500 | O191: -1.17%
A192: 182 | B192: Technology | C192: TECHM | D192: 808.25 | E192: 810.35 | F192: 803.70 | G192: 799.15 | H192: 792.50 | I192: 814.90 | J192: 821.55 | K192: 826.10 | L192: 817 | M192: 805.8 | N192: 11018400 | O192: 1.53%
A193: 183 | B193: FMCG | C193: TITAN | D193: 1096.35 | E193: 1092.93 | F193: 1078.67 | G193: 1060.98 | H193: 1046.72 | I193: 1110.62 | J193: 1124.88 | K193: 1142.57 | L193: 1107.2 | M193: 1075.25 | N193: 9517500 | O193: 5.94%
A194: 184 | B194: Pharma | C194: TORNTPHARM | D194: 1700.35 | E194: 1706.47 | F194: 1684.93 | G194: 1669.52 | H194: 1647.98 | I194: 1721.88 | J194: 1743.42 | K194: 1758.83 | L194: 1728 | M194: 1691.05 | N194: 870000 | O194: -0.74%
A195: 185 | B195: Power | C195: TORNTPOWER | D195: 250.10 | E195: 250.98 | F195: 248.72 | G195: 247.33 | H195: 245.07 | I195: 252.37 | J195: 254.63 | K195: 256.02 | L195: 253.25 | M195: 249.6 | N195: 2418000 | O195: 0.00%
A196: 186 | B196: Media | C196: TV18BRDCST | D196: 29.75 | E196: 29.82 | F196: 29.08 | G196: 28.42 | H196: 27.68 | I196: 30.48 | J196: 31.22 | K196: 31.88 | L196: 30.55 | M196: 29.15 | N196: 61477000 | O196: -3.92%
A197: 187 | B197: Automobile | C197: TVSMOTOR | D197: 480.40 | E197: 480.28 | F197: 473.22 | G197: 466.03 | H197: 458.97 | I197: 487.47 | J197: 494.53 | K197: 501.72 | L197: 487.35 | M197: 473.1 | N197: 7258000 | O197: 0.19%
A198: 188 | B198: FMCG | C198: UBL | D198: 1363.05 | E198: 1365.33 | F198: 1351.72 | G198: 1340.38 | H198: 1326.77 | I198: 1376.67 | J198: 1390.28 | K198: 1401.62 | L198: 1378.95 | M198: 1354 | N198: 1784300 | O198: 2.12%
A199: 189 | B199: Finance | C199: UJJIVAN | D199: 309.20 | E199: 310.12 | F199: 304.63 | G199: 300.07 | H199: 294.58 | I199: 314.68 | J199: 320.17 | K199: 324.73 | L199: 315.6 | M199: 305.55 | N199: 3488000 | O199: -2.55%
A200: 190 | B200: Cement | C200: ULTRACEMCO | D200: 4537.70 | E200: 4546.20 | F200: 4512.65 | G200: 4487.60 | H200: 4454.05 | I200: 4571.25 | J200: 4604.80 | K200: 4629.85 | L200: 4579.75 | M200: 4521.15 | N200: 2339800 | O200: 0.69%
A201: 191 | B201: Banking | C201: UNIONBANK | D201: 82.50 | E201: 82.60 | F201: 81.00 | G201: 79.50 | H201: 77.90 | I201: 84.10 | J201: 85.70 | K201: 87.20 | L201: 84.2 | M201: 81.1 | N201: 29218000 | O201: -4.00%
A202: 192 | B202: Fertilisers | C202: UPL | D202: 965.45 | E202: 962.15 | F202: 952.30 | G202: 939.15 | H202: 929.30 | I202: 975.30 | J202: 985.15 | K202: 998.30 | L202: 972 | M202: 949 | N202: 13416000 | O202: 1.44%
A203: 193 | B203: Metals | C203: VEDL | D203: 161.00 | E203: 160.85 | F203: 157.25 | G203: 153.50 | H203: 149.90 | I203: 164.60 | J203: 168.20 | K203: 171.95 | L203: 164.45 | M203: 157.1 | N203: 40764400 | O203: 2.59%
A204: 194 | B204: Others | C204: VGUARD | D204: 211.05 | E204: 211.18 | F204: 208.97 | G204: 206.88 | H204: 204.67 | I204: 213.27 | J204: 215.48 | K204: 217.57 | L204: 213.4 | M204: 209.1 | N204: 2634000 | O204: -4.57%
A205: 195 | B205: Capital_Goods | C205: VOLTAS | D205: 574.80 | E205: 581.30 | F205: 565.90 | G205: 557.00 | H205: 541.60 | I205: 590.20 | J205: 605.60 | K205: 614.50 | L205: 596.7 | M205: 572.4 | N205: 5915000 | O205: 31.09%
A206: 196 | B206: Technology | C206: WIPRO | D206: 293.00 | E206: 292.70 | F206: 291.65 | G206: 290.30 | H206: 289.25 | I206: 294.05 | J206: 295.10 | K206: 296.45 | L206: 293.75 | M206: 291.35 | N206: 30860800 | O206: -0.11%
... 18 more rows

Sheet Cash Intra
M5: Back to Main Page
A6: FOR INTRA DAY TRADING | K6: =Main!B10 -> 2019-05-09
A8: Sr.no | B8: Scrip | C8: CLOSE RATE | D8: Pivot Point | E8: Supports | H8: Resistances
C9: Point | E9: S1 | F9: S2 | G9: S3 | H9: R1 | I9: R2 | J9: R3 | K9: HIGH | L9: LOW | M9: Total Trade Quanity in Lakhs
A10: 1 | B10: Nifty 50 | C10: 11359.45 | D10: 11395.17 | E10: 11311.23 | F10: 11263.02 | G10: 11179.08 | H10: 11443.38 | I10: 11527.32 | J10: 11575.53 | K10: 11479.1 | L10: 11346.95
A11: 2 | B11: Nifty Bank | C11: 28994.4 | D11: 29069.02 | E11: 28876.73 | F11: 28759.07 | G11: 28566.78 | H11: 29186.68 | I11: 29378.97 | J11: 29496.63 | K11: 29261.3 | L11: 28951.35
A12: 3 | B12: Nifty CPSE | C12: 2228.45 | D12: 2236.88 | E12: 2215.17 | F12: 2201.88 | G12: 2180.17 | H12: 2250.17 | I12: 2271.88 | J12: 2285.17 | K12: 2258.6 | L12: 2223.6
A13: 4 | B13: Nifty Infra | C13: 3075.5 | D13: 3083.38 | E13: 3061.87 | F13: 3048.23 | G13: 3026.72 | H13: 3097.02 | I13: 3118.53 | J13: 3132.17 | K13: 3104.9 | L13: 3069.75
A14: 5 | B14: Nifty IT | C14: 16061.6 | D14: 16063.20 | E14: 15997.00 | F14: 15932.40 | G14: 15866.20 | H14: 16127.80 | I14: 16194.00 | J14: 16258.60 | K14: 16129.4 | L14: 15998.6
A15: 6 | B15: Nifty PSE | C15: 3474.45 | D15: 3486.65 | E15: 3454.45 | F15: 3434.45 | G15: 3402.25 | H15: 3506.65 | I15: 3538.85 | J15: 3558.85 | K15: 3518.85 | L15: 3466.65
A16: 7 | B16: Nifty Midcap 50 | C16: 4695.95 | D16: 4708.77 | E16: 4671.38 | F16: 4646.82 | G16: 4609.43 | H16: 4733.33 | I16: 4770.72 | J16: 4795.28 | K16: 4746.15 | L16: 4684.2
A17: 8 | B17: ABB | C17: 1453.55 | D17: 1466.18 | E17: 1435.37 | F17: 1417.18 | G17: 1386.37 | H17: 1484.37 | I17: 1515.18 | J17: 1533.37 | K17: 1497 | L17: 1448 | M17: 1.7541
A18: 9 | B18: ACC | C18: 1593.2 | D18: 1587.90 | E18: 1568.85 | F18: 1544.50 | G18: 1525.45 | H18: 1612.25 | I18: 1631.30 | J18: 1655.65 | K18: 1606.95 | L18: 1563.55 | M18: 9.47559
A19: 10 | B19: AUBANK | C19: 641.3 | D19: 639.00 | E19: 634.50 | F19: 627.70 | G19: 623.20 | H19: 645.80 | I19: 650.30 | J19: 657.10 | K19: 643.5 | L19: 632.2 | M19: 7.76828
A20: 11 | B20: ADANIPORTS | C20: 369.8 | D20: 370.80 | E20: 366.70 | F20: 363.60 | G20: 359.50 | H20: 373.90 | I20: 378.00 | J20: 381.10 | K20: 374.9 | L20: 367.7 | M20: 16.8811
A21: 12 | B21: ADANIPOWER | C21: 41.35 | D21: 41.40 | E21: 40.70 | F21: 40.05 | G21: 39.35 | H21: 42.05 | I21: 42.75 | J21: 43.40 | K21: 42.1 | L21: 40.75 | M21: 75.10676
A22: 13 | B22: ABCAPITAL | C22: 98.6 | D22: 98.78 | E22: 97.82 | F22: 97.03 | G22: 96.07 | H22: 99.57 | I22: 100.53 | J22: 101.32 | K22: 99.75 | L22: 98 | M22: 30.21121
A23: 14 | B23: ABFRL | C23: 207.15 | D23: 207.15 | E23: 204.60 | F23: 202.05 | G23: 199.50 | H23: 209.70 | I23: 212.25 | J23: 214.80 | K23: 209.7 | L23: 204.6 | M23: 3.29716
A24: 15 | B24: AJANTPHARM | C24: 1057.95 | D24: 1055.28 | E24: 1045.67 | F24: 1033.38 | G24: 1023.77 | H24: 1067.57 | I24: 1077.18 | J24: 1089.47 | K24: 1064.9 | L24: 1043 | M24: 2.02055
A25: 16 | B25: ALKEM | C25: 1687.15 | D25: 1784.78 | E25: 1582.37 | F25: 1477.58 | G25: 1275.17 | H25: 1889.57 | I25: 2091.98 | J25: 2196.77 | K25: 1987.2 | L25: 1680 | M25: 0.20667
A26: 17 | B26: AMARAJABAT | C26: 636 | D26: 637.77 | E26: 630.83 | F26: 625.67 | G26: 618.73 | H26: 642.93 | I26: 649.87 | J26: 655.03 | K26: 644.7 | L26: 632.6 | M26: 2.97982
A27: 18 | B27: AMBUJACEM | C27: 213.35 | D27: 214.95 | E27: 210.80 | F27: 208.25 | G27: 204.10 | H27: 217.50 | I27: 221.65 | J27: 224.20 | K27: 219.1 | L27: 212.4 | M27: 33.50658
A28: 19 | B28: APOLLOHOSP | C28: 1170.3 | D28: 1168.63 | E28: 1153.67 | F28: 1137.03 | G28: 1122.07 | H28: 1185.27 | I28: 1200.23 | J28: 1216.87 | K28: 1183.6 | L28: 1152 | M28: 2.46581
A29: 20 | B29: APOLLOTYRE | C29: 191.75 | D29: 193.32 | E29: 189.43 | F29: 187.12 | G29: 183.23 | H29: 195.63 | I29: 199.52 | J29: 201.83 | K29: 197.2 | L29: 191 | M29: 25.11215
A30: 21 | B30: ASHOKLEY | C30: 85.95 | D30: 85.77 | E30: 85.13 | F30: 84.32 | G30: 83.68 | H30: 86.58 | I30: 87.22 | J30: 88.03 | K30: 86.4 | L30: 84.95 | M30: 130.38488
A31: 22 | B31: ASIANPAINT | C31: 1385.7 | D31: 1381.10 | E31: 1367.20 | F31: 1348.70 | G31: 1334.80 | H31: 1399.60 | I31: 1413.50 | J31: 1432.00 | K31: 1395 | L31: 1362.6 | M31: 14.14591
A32: 23 | B32: AUROPHARMA | C32: 765.2 | D32: 765.25 | E32: 754.50 | F32: 743.80 | G32: 733.05 | H32: 775.95 | I32: 786.70 | J32: 797.40 | K32: 776 | L32: 754.55 | M32: 16.4818
A33: 24 | B33: DMART | C33: 1245.55 | D33: 1244.85 | E33: 1226.70 | F33: 1207.85 | G33: 1189.70 | H33: 1263.70 | I33: 1281.85 | J33: 1300.70 | K33: 1263 | L33: 1226 | M33: 6.70753
A34: 25 | B34: AXISBANK | C34: 735.5 | D34: 737.87 | E34: 730.98 | F34: 726.47 | G34: 719.58 | H34: 742.38 | I34: 749.27 | J34: 753.78 | K34: 744.75 | L34: 733.35 | M34: 67.39894
A35: 26 | B35: BAJAJ-AUTO | C35: 2957.75 | D35: 2980.85 | E35: 2928.70 | F35: 2899.65 | G35: 2847.50 | H35: 3009.90 | I35: 3062.05 | J35: 3091.10 | K35: 3033 | L35: 2951.8 | M35: 4.27476
A36: 27 | B36: BAJFINANCE | C36: 2921.3 | D36: 2946.10 | E36: 2875.20 | F36: 2829.10 | G36: 2758.20 | H36: 2992.20 | I36: 3063.10 | J36: 3109.20 | K36: 3017 | L36: 2900 | M36: 11.55023
A37: 28 | B37: BAJAJFINSV | C37: 7345.75 | D37: 7403.02 | E37: 7255.03 | F37: 7164.32 | G37: 7016.33 | H37: 7493.73 | I37: 7641.72 | J37: 7732.43 | K37: 7551 | L37: 7312.3 | M37: 2.30383
A38: 29 | B38: BAJAJHLDNG | C38: 3102.25 | D38: 3120.30 | E38: 3062.05 | F38: 3021.85 | G38: 2963.60 | H38: 3160.50 | I38: 3218.75 | J38: 3258.95 | K38: 3178.55 | L38: 3080.1 | M38: 0.18724
A39: 30 | B39: BALKRISIND | C39: 827.3 | D39: 835.67 | E39: 814.08 | F39: 800.87 | G39: 779.28 | H39: 848.88 | I39: 870.47 | J39: 883.68 | K39: 857.25 | L39: 822.45 | M39: 5.48966
A40: 31 | B40: BANDHANBNK | C40: 571.25 | D40: 576.37 | E40: 560.98 | F40: 550.72 | G40: 535.33 | H40: 586.63 | I40: 602.02 | J40: 612.28 | K40: 591.75 | L40: 566.1 | M40: 24.0633
A41: 32 | B41: BANKBARODA | C41: 110.95 | D41: 111.68 | E41: 109.52 | F41: 108.08 | G41: 105.92 | H41: 113.12 | I41: 115.28 | J41: 116.72 | K41: 113.85 | L41: 110.25 | M41: 172.53993
A42: 33 | B42: BANKINDIA | C42: 83.9 | D42: 84.32 | E42: 82.93 | F42: 81.97 | G42: 80.58 | H42: 85.28 | I42: 86.67 | J42: 87.63 | K42: 85.7 | L42: 83.35 | M42: 58.29503
A43: 34 | B43: BATAINDIA | C43: 1347.9 | D43: 1349.05 | E43: 1332.10 | F43: 1316.30 | G43: 1299.35 | H43: 1364.85 | I43: 1381.80 | J43: 1397.60 | K43: 1366 | L43: 1333.25 | M43: 6.10792
A44: 35 | B44: BERGEPAINT | C44: 303.7 | D44: 302.92 | E44: 299.13 | F44: 294.57 | G44: 290.78 | H44: 307.48 | I44: 311.27 | J44: 315.83 | K44: 306.7 | L44: 298.35 | M44: 6.28049
A45: 36 | B45: BEL | C45: 86.9 | D45: 86.60 | E45: 85.90 | F45: 84.90 | G45: 84.20 | H45: 87.60 | I45: 88.30 | J45: 89.30 | K45: 87.3 | L45: 85.6 | M45: 51.96636
A46: 37 | B46: BHARATFORG | C46: 462.4 | D46: 465.92 | E46: 456.93 | F46: 451.47 | G46: 442.48 | H46: 471.38 | I46: 480.37 | J46: 485.83 | K46: 474.9 | L46: 460.45 | M46: 11.23373
A47: 38 | B47: BHEL | C47: 61.75 | D47: 62.40 | E47: 60.90 | F47: 60.05 | G47: 58.55 | H47: 63.25 | I47: 64.75 | J47: 65.60 | K47: 63.9 | L47: 61.55 | M47: 153.03026
A48: 39 | B48: BPCL | C48: 379.8 | D48: 378.77 | E48: 374.13 | F48: 368.47 | G48: 363.83 | H48: 384.43 | I48: 389.07 | J48: 394.73 | K48: 383.4 | L48: 373.1 | M48: 38.01308
A49: 40 | B49: BHARTIARTL | C49: 324.5 | D49: 324.02 | E49: 320.58 | F49: 316.67 | G49: 313.23 | H49: 327.93 | I49: 331.37 | J49: 335.28 | K49: 327.45 | L49: 320.1 | M49: 47.74792
A50: 41 | B50: INFRATEL | C50: 266.7 | D50: 266.88 | E50: 263.47 | F50: 260.23 | G50: 256.82 | H50: 270.12 | I50: 273.53 | J50: 276.77 | K50: 270.3 | L50: 263.65 | M50: 22.25529
A51: 42 | B51: BIOCON | C51: 545.7 | D51: 549.67 | E51: 539.33 | F51: 532.97 | G51: 522.63 | H51: 556.03 | I51: 566.37 | J51: 572.73 | K51: 560 | L51: 543.3 | M51: 24.70546
A52: 43 | B52: BBTC | C52: 1182.35 | D52: 1184.23 | E52: 1173.47 | F52: 1164.58 | G52: 1153.82 | H52: 1193.12 | I52: 1203.88 | J52: 1212.77 | K52: 1195 | L52: 1175.35 | M52: 0.22462
A53: 44 | B53: BOSCHLTD | C53: 17328.85 | D53: 17392.15 | E53: 16954.30 | F53: 16579.75 | G53: 16141.90 | H53: 17766.70 | I53: 18204.55 | J53: 18579.10 | K53: 17830 | L53: 17017.6 | M53: 0.22326
A54: 45 | B54: BRITANNIA | C54: 2649.5 | D54: 2644.15 | E54: 2621.20 | F54: 2592.90 | G54: 2569.95 | H54: 2672.45 | I54: 2695.40 | J54: 2723.70 | K54: 2667.1 | L54: 2615.85 | M54: 7.23429
A55: 46 | B55: CADILAHC | C55: 286.6 | D55: 290.42 | E55: 280.83 | F55: 275.07 | G55: 265.48 | H55: 296.18 | I55: 305.77 | J55: 311.53 | K55: 300 | L55: 284.65 | M55: 20.44037
A56: 47 | B56: CANBK | C56: 256.75 | D56: 257.90 | E56: 253.40 | F56: 250.05 | G56: 245.55 | H56: 261.25 | I56: 265.75 | J56: 269.10 | K56: 262.4 | L56: 254.55 | M56: 51.93078
A57: 48 | B57: CASTROLIND | C57: 149.9 | D57: 149.17 | E57: 147.68 | F57: 145.47 | G57: 143.98 | H57: 151.38 | I57: 152.87 | J57: 155.08 | K57: 150.65 | L57: 146.95 | M57: 10.36074
A58: 49 | B58: CHOLAFIN | C58: 1282.1 | D58: 1288.30 | E58: 1270.65 | F58: 1259.20 | G58: 1241.55 | H58: 1299.75 | I58: 1317.40 | J58: 1328.85 | K58: 1305.95 | L58: 1276.85 | M58: 1.70601
A59: 50 | B59: CIPLA | C59: 558 | D59: 556.13 | E59: 550.87 | F59: 543.73 | G59: 538.47 | H59: 563.27 | I59: 568.53 | J59: 575.67 | K59: 561.4 | L59: 549 | M59: 18.90174
A60: 51 | B60: COALINDIA | C60: 249.1 | D60: 249.92 | E60: 247.73 | F60: 246.37 | G60: 244.18 | H60: 251.28 | I60: 253.47 | J60: 254.83 | K60: 252.1 | L60: 248.55 | M60: 42.15463
A61: 52 | B61: COLPAL | C61: 1142.4 | D61: 1147.70 | E61: 1135.05 | F61: 1127.70 | G61: 1115.05 | H61: 1155.05 | I61: 1167.70 | J61: 1175.05 | K61: 1160.35 | L61: 1140.35 | M61: 3.18621
A62: 53 | B62: CONCOR | C62: 477.2 | D62: 481.87 | E62: 470.43 | F62: 463.67 | G62: 452.23 | H62: 488.63 | I62: 500.07 | J62: 506.83 | K62: 493.3 | L62: 475.1 | M62: 6.5485
A63: 54 | B63: COROMANDEL | C63: 418.7 | D63: 417.43 | E63: 414.87 | F63: 411.03 | G63: 408.47 | H63: 421.27 | I63: 423.83 | J63: 427.67 | K63: 420 | L63: 413.6 | M63: 0.32299
A64: 55 | B64: CROMPTON | C64: 225.65 | D64: 223.27 | E64: 218.73 | F64: 211.82 | G64: 207.28 | H64: 230.18 | I64: 234.72 | J64: 241.63 | K64: 227.8 | L64: 216.35 | M64: 2.32538
A65: 56 | B65: CUMMINSIND | C65: 700.1 | D65: 700.93 | E65: 694.92 | F65: 689.73 | G65: 683.72 | H65: 706.12 | I65: 712.13 | J65: 717.32 | K65: 706.95 | L65: 695.75 | M65: 2.64029
A66: 57 | B66: DLF | C66: 168.95 | D66: 168.23 | E66: 166.32 | F66: 163.68 | G66: 161.77 | H66: 170.87 | I66: 172.78 | J66: 175.42 | K66: 170.15 | L66: 165.6 | M66: 67.41133
A67: 58 | B67: DABUR | C67: 367.25 | D67: 369.33 | E67: 362.92 | F67: 358.58 | G67: 352.17 | H67: 373.67 | I67: 380.08 | J67: 384.42 | K67: 375.75 | L67: 365 | M67: 52.9006
A68: 59 | B68: DHFL | C68: 116.3 | D68: 115.63 | E68: 110.77 | F68: 105.23 | G68: 100.37 | H68: 121.17 | I68: 126.03 | J68: 131.57 | K68: 120.5 | L68: 110.1 | M68: 434.62525
A69: 60 | B69: DBL | C69: 456.9 | D69: 464.30 | E69: 447.60 | F69: 438.30 | G69: 421.60 | H69: 473.60 | I69: 490.30 | J69: 499.60 | K69: 481 | L69: 455 | M69: 2.36158
A70: 61 | B70: DISHTV | C70: 31.15 | D70: 30.88 | E70: 29.37 | F70: 27.58 | G70: 26.07 | H70: 32.67 | I70: 34.18 | J70: 35.97 | K70: 32.4 | L70: 29.1 | M70: 370.24351
A71: 62 | B71: DIVISLAB | C71: 1668.5 | D71: 1672.83 | E71: 1649.77 | F71: 1631.03 | G71: 1607.97 | H71: 1691.57 | I71: 1714.63 | J71: 1733.37 | K71: 1695.9 | L71: 1654.1 | M71: 4.43167
A72: 63 | B72: DRREDDY | C72: 2900.5 | D72: 2910.30 | E72: 2872.80 | F72: 2845.10 | G72: 2807.60 | H72: 2938.00 | I72: 2975.50 | J72: 3003.20 | K72: 2947.8 | L72: 2882.6 | M72: 4.50398
A73: 64 | B73: EDELWEISS | C73: 146.5 | D73: 144.58 | E73: 139.17 | F73: 131.83 | G73: 126.42 | H73: 151.92 | I73: 157.33 | J73: 164.67 | K73: 150 | L73: 137.25 | M73: 40.42359
A74: 65 | B74: EICHERMOT | C74: 20336.55 | D74: 20352.18 | E74: 20234.37 | F74: 20132.18 | G74: 20014.37 | H74: 20454.37 | I74: 20572.18 | J74: 20674.37 | K74: 20470 | L74: 20250 | M74: 0.43021
A75: 66 | B75: ENDURANCE | C75: 1134.1 | D75: 1140.70 | E75: 1123.40 | F75: 1112.70 | G75: 1095.40 | H75: 1151.40 | I75: 1168.70 | J75: 1179.40 | K75: 1158 | L75: 1130 | M75: 1.00994
A76: 67 | B76: ENGINERSIN | C76: 106.7 | D76: 107.07 | E76: 105.88 | F76: 105.07 | G76: 103.88 | H76: 107.88 | I76: 109.07 | J76: 109.88 | K76: 108.25 | L76: 106.25 | M76: 10.87422
A77: 68 | B77: ESCORTS | C77: 627.75 | D77: 633.53 | E77: 619.22 | F77: 610.68 | G77: 596.37 | H77: 642.07 | I77: 656.38 | J77: 664.92 | K77: 647.85 | L77: 625 | M77: 28.24401
A78: 69 | B78: EXIDEIND | C78: 208.35 | D78: 209.70 | E78: 205.85 | F78: 203.35 | G78: 199.50 | H78: 212.20 | I78: 216.05 | J78: 218.55 | K78: 213.55 | L78: 207.2 | M78: 22.34014
A79: 70 | B79: FEDERALBNK | C79: 98.6 | D79: 98.77 | E79: 97.58 | F79: 96.57 | G79: 95.38 | H79: 99.78 | I79: 100.97 | J79: 101.98 | K79: 99.95 | L79: 97.75 | M79: 144.51987
A80: 71 | B80: FCONSUMER | C80: 40.8 | D80: 40.83 | E80: 40.32 | F80: 39.83 | G80: 39.32 | H80: 41.32 | I80: 41.83 | J80: 42.32 | K80: 41.35 | L80: 40.35 | M80: 5.46259
A81: 72 | B81: FRETAIL | C81: 409.65 | D81: 411.22 | E81: 403.43 | F81: 397.22 | G81: 389.43 | H81: 417.43 | I81: 425.22 | J81: 431.43 | K81: 419 | L81: 405 | M81: 2.69636
A82: 73 | B82: GAIL | C82: 337.5 | D82: 339.68 | E82: 334.22 | F82: 330.93 | G82: 325.47 | H82: 342.97 | I82: 348.43 | J82: 351.72 | K82: 345.15 | L82: 336.4 | M82: 36.81837
A83: 74 | B83: GMRINFRA | C83: 15.85 | D83: 15.90 | E83: 15.65 | F83: 15.45 | G83: 15.20 | H83: 16.10 | I83: 16.35 | J83: 16.55 | K83: 16.15 | L83: 15.7 | M83: 95.37037
A84: 75 | B84: GICRE | C84: 236.35 | D84: 238.78 | E84: 233.42 | F84: 230.48 | G84: 225.12 | H84: 241.72 | I84: 247.08 | J84: 250.02 | K84: 244.15 | L84: 235.85 | M84: 0.70285
A85: 76 | B85: GSKCONS | C85: 7020.6 | D85: 7016.48 | E85: 6974.02 | F85: 6927.43 | G85: 6884.97 | H85: 7063.07 | I85: 7105.53 | J85: 7152.12 | K85: 7058.95 | L85: 6969.9 | M85: 0.14965
A86: 77 | B86: GLENMARK | C86: 603.7 | D86: 612.08 | E86: 587.72 | F86: 571.73 | G86: 547.37 | H86: 628.07 | I86: 652.43 | J86: 668.42 | K86: 636.45 | L86: 596.1 | M86: 9.31282
A87: 78 | B87: GODREJAGRO | C87: 508.8 | D87: 512.60 | E87: 503.30 | F87: 497.80 | G87: 488.50 | H87: 518.10 | I87: 527.40 | J87: 532.90 | K87: 521.9 | L87: 507.1 | M87: 0.80426
A88: 79 | B88: GODREJCP | C88: 636.1 | D88: 634.33 | E88: 628.87 | F88: 621.63 | G88: 616.17 | H88: 641.57 | I88: 647.03 | J88: 654.27 | K88: 639.8 | L88: 627.1 | M88: 6.13906
A89: 80 | B89: GODREJIND | C89: 476.1 | D89: 476.73 | E89: 472.07 | F89: 468.03 | G89: 463.37 | H89: 480.77 | I89: 485.43 | J89: 489.47 | K89: 481.4 | L89: 472.7 | M89: 4.32092
A90: 81 | B90: GRAPHITE | C90: 385.6 | D90: 387.92 | E90: 381.88 | F90: 378.17 | G90: 372.13 | H90: 391.63 | I90: 397.67 | J90: 401.38 | K90: 393.95 | L90: 384.2 | M90: 6.93777
A91: 82 | B91: GRASIM | C91: 870.95 | D91: 870.92 | E91: 862.03 | F91: 853.12 | G91: 844.23 | H91: 879.83 | I91: 888.72 | J91: 897.63 | K91: 879.8 | L91: 862 | M91: 11.7046
A92: 83 | B92: GRUH | C92: 302.4 | D92: 304.35 | E92: 297.45 | F92: 292.50 | G92: 285.60 | H92: 309.30 | I92: 316.20 | J92: 321.15 | K92: 311.25 | L92: 299.4 | M92: 3.25195
A93: 84 | B93: GSPL | C93: 174.85 | D93: 177.42 | E93: 170.13 | F93: 165.42 | G93: 158.13 | H93: 182.13 | I93: 189.42 | J93: 194.13 | K93: 184.7 | L93: 172.7 | M93: 14.90366
A94: 85 | B94: HEG | C94: 1730.35 | D94: 1745.12 | E94: 1706.23 | F94: 1682.12 | G94: 1643.23 | H94: 1769.23 | I94: 1808.12 | J94: 1832.23 | K94: 1784 | L94: 1721 | M94: 2.3111
A95: 86 | B95: HCLTECH | C95: 1132.6 | D95: 1131.67 | E95: 1123.33 | F95: 1114.07 | G95: 1105.73 | H95: 1140.93 | I95: 1149.27 | J95: 1158.53 | K95: 1140 | L95: 1122.4 | M95: 14.93911
A96: 87 | B96: HDFCAMC | C96: 1633.65 | D96: 1639.88 | E96: 1615.77 | F96: 1597.88 | G96: 1573.77 | H96: 1657.77 | I96: 1681.88 | J96: 1699.77 | K96: 1664 | L96: 1622 | M96: 0.96879
A97: 88 | B97: HDFCBANK | C97: 2307.25 | D97: 2306.35 | E97: 2288.90 | F97: 2270.55 | G97: 2253.10 | H97: 2324.70 | I97: 2342.15 | J97: 2360.50 | K97: 2323.8 | L97: 2288 | M97: 30.16052
A98: 89 | B98: HDFCLIFE | C98: 410.25 | D98: 409.92 | E98: 406.43 | F98: 402.62 | G98: 399.13 | H98: 413.73 | I98: 417.22 | J98: 421.03 | K98: 413.4 | L98: 406.1 | M98: 38.93612
A99: 90 | B99: HAVELLS | C99: 734.15 | D99: 732.95 | E99: 726.00 | F99: 717.85 | G99: 710.90 | H99: 741.10 | I99: 748.05 | J99: 756.20 | K99: 739.9 | L99: 724.8 | M99: 10.53351
A100: 91 | B100: HEROMOTOCO | C100: 2499.7 | D100: 2507.38 | E100: 2473.92 | F100: 2448.13 | G100: 2414.67 | H100: 2533.17 | I100: 2566.63 | J100: 2592.42 | K100: 2540.85 | L100: 2481.6 | M100: 4.06025
A101: 92 | B101: HEXAWARE | C101: 341.25 | D101: 342.48 | E101: 338.07 | F101: 334.88 | G101: 330.47 | H101: 345.67 | I101: 350.08 | J101: 353.27 | K101: 346.9 | L101: 339.3 | M101: 4.53679
A102: 93 | B102: HINDALCO | C102: 200 | D102: 199.85 | E102: 196.80 | F102: 193.60 | G102: 190.55 | H102: 203.05 | I102: 206.10 | J102: 209.30 | K102: 202.9 | L102: 196.65 | M102: 78.83819
A103: 94 | B103: HINDPETRO | C103: 281.9 | D103: 283.27 | E103: 279.23 | F103: 276.57 | G103: 272.53 | H103: 285.93 | I103: 289.97 | J103: 292.63 | K103: 287.3 | L103: 280.6 | M103: 34.42649
A104: 95 | B104: HINDUNILVR | C104: 1688.7 | D104: 1687.07 | E104: 1676.63 | F104: 1664.57 | G104: 1654.13 | H104: 1699.13 | I104: 1709.57 | J104: 1721.63 | K104: 1697.5 | L104: 1675 | M104: 12.43338
A105: 96 | B105: HINDZINC | C105: 265.95 | D105: 266.30 | E105: 263.65 | F105: 261.35 | G105: 258.70 | H105: 268.60 | I105: 271.25 | J105: 273.55 | K105: 268.95 | L105: 264 | M105: 2.33408
A106: 97 | B106: HUDCO | C106: 39.2 | D106: 39.45 | E106: 38.30 | F106: 37.40 | G106: 36.25 | H106: 40.35 | I106: 41.50 | J106: 42.40 | K106: 40.6 | L106: 38.55 | M106: 7.78197
A107: 98 | B107: HDFC | C107: 1930.75 | D107: 1940.10 | E107: 1915.70 | F107: 1900.65 | G107: 1876.25 | H107: 1955.15 | I107: 1979.55 | J107: 1994.60 | K107: 1964.5 | L107: 1925.05 | M107: 36.26183
A108: 99 | B108: ICICIBANK | C108: 382.2 | D108: 384.10 | E108: 378.20 | F108: 374.20 | G108: 368.30 | H108: 388.10 | I108: 394.00 | J108: 398.00 | K108: 390 | L108: 380.1 | M108: 225.094
A109: 100 | B109: ICICIGI | C109: 1059.35 | D109: 1060.18 | E109: 1045.37 | F109: 1031.38 | G109: 1016.57 | H109: 1074.17 | I109: 1088.98 | J109: 1102.97 | K109: 1075 | L109: 1046.2 | M109: 10.17198
A110: 101 | B110: ICICIPRULI | C110: 356.9 | D110: 358.97 | E110: 352.58 | F110: 348.27 | G110: 341.88 | H110: 363.28 | I110: 369.67 | J110: 373.98 | K110: 365.35 | L110: 354.65 | M110: 13.18064
A111: 102 | B111: IDBI | C111: 37.05 | D111: 37.12 | E111: 36.68 | F111: 36.32 | G111: 35.88 | H111: 37.48 | I111: 37.92 | J111: 38.28 | K111: 37.55 | L111: 36.75 | M111: 39.90622
A112: 103 | B112: IDFCFIRSTB | C112: 49.35 | D112: 49.12 | E112: 48.33 | F112: 47.32 | G112: 46.53 | H112: 50.13 | I112: 50.92 | J112: 51.93 | K112: 49.9 | L112: 48.1 | M112: 164.14742
A113: 104 | B113: ITC | C113: 300.65 | D113: 300.90 | E113: 298.40 | F113: 296.15 | G113: 293.65 | H113: 303.15 | I113: 305.65 | J113: 307.90 | K113: 303.4 | L113: 298.65 | M113: 78.76031
A114: 105 | B114: IBULHSGFIN | C114: 673 | D114: 673.55 | E114: 665.50 | F114: 658.00 | G114: 649.95 | H114: 681.05 | I114: 689.10 | J114: 696.60 | K114: 681.6 | L114: 666.05 | M114: 52.68914
A115: 106 | B115: IBVENTURES | C115: 257.75 | D115: 260.25 | E115: 253.55 | F115: 249.35 | G115: 242.65 | H115: 264.45 | I115: 271.15 | J115: 275.35 | K115: 266.95 | L115: 256.05 | M115: 8.35171
A116: 107 | B116: INDIANB | C116: 239.05 | D116: 240.13 | E116: 236.47 | F116: 233.88 | G116: 230.22 | H116: 242.72 | I116: 246.38 | J116: 248.97 | K116: 243.8 | L116: 237.55 | M116: 14.40094
A117: 108 | B117: INDHOTEL | C117: 147.2 | D117: 148.13 | E117: 145.27 | F117: 143.33 | G117: 140.47 | H117: 150.07 | I117: 152.93 | J117: 154.87 | K117: 151 | L117: 146.2 | M117: 5.59878
A118: 109 | B118: IOC | C118: 152.2 | D118: 153.03 | E118: 150.87 | F118: 149.53 | G118: 147.37 | H118: 154.37 | I118: 156.53 | J118: 157.87 | K118: 155.2 | L118: 151.7 | M118: 57.88594
A119: 110 | B119: IGL | C119: 311.15 | D119: 310.32 | E119: 306.73 | F119: 302.32 | G119: 298.73 | H119: 314.73 | I119: 318.32 | J119: 322.73 | K119: 313.9 | L119: 305.9 | M119: 16.78666
A120: 111 | B120: INDUSINDBK | C120: 1488.75 | D120: 1498.93 | E120: 1471.92 | F120: 1455.08 | G120: 1428.07 | H120: 1515.77 | I120: 1542.78 | J120: 1559.62 | K120: 1525.95 | L120: 1482.1 | M120: 26.52472
A121: 112 | B121: NAUKRI | C121: 1952.65 | D121: 1960.88 | E121: 1936.77 | F121: 1920.88 | G121: 1896.77 | H121: 1976.77 | I121: 2000.88 | J121: 2016.77 | K121: 1985 | L121: 1945 | M121: 0.47629
A122: 113 | B122: INFY | C122: 719.35 | D122: 720.62 | E122: 715.23 | F122: 711.12 | G122: 705.73 | H122: 724.73 | I122: 730.12 | J122: 734.23 | K122: 726 | L122: 716.5 | M122: 62.47642
A123: 114 | B123: INDIGO | C123: 1574.45 | D123: 1568.25 | E123: 1551.50 | F123: 1528.55 | G123: 1511.80 | H123: 1591.20 | I123: 1607.95 | J123: 1630.90 | K123: 1585 | L123: 1545.3 | M123: 12.55089
A124: 115 | B124: JSWENERGY | C124: 68 | D124: 68.45 | E124: 67.30 | F124: 66.60 | G124: 65.45 | H124: 69.15 | I124: 70.30 | J124: 71.00 | K124: 69.6 | L124: 67.75 | M124: 4.21319
A125: 116 | B125: JSWSTEEL | C125: 289.25 | D125: 289.02 | E125: 285.23 | F125: 281.22 | G125: 277.43 | H125: 293.03 | I125: 296.82 | J125: 300.83 | K125: 292.8 | L125: 285 | M125: 79.00967
A126: 117 | B126: JINDALSTEL | C126: 170.15 | D126: 169.20 | E126: 166.70 | F126: 163.25 | G126: 160.75 | H126: 172.65 | I126: 175.15 | J126: 178.60 | K126: 171.7 | L126: 165.75 | M126: 110.40004
A127: 118 | B127: JUBLFOOD | C127: 1262.45 | D127: 1260.28 | E127: 1244.02 | F127: 1225.58 | G127: 1209.32 | H127: 1278.72 | I127: 1294.98 | J127: 1313.42 | K127: 1276.55 | L127: 1241.85 | M127: 10.39517
A128: 119 | B128: JUBILANT | C128: 614.1 | D128: 620.43 | E128: 605.27 | F128: 596.43 | G128: 581.27 | H128: 629.27 | I128: 644.43 | J128: 653.27 | K128: 635.6 | L128: 611.6 | M128: 1.92387
A129: 120 | B129: KOTAKBANK | C129: 1402.2 | D129: 1401.93 | E129: 1388.97 | F129: 1375.73 | G129: 1362.77 | H129: 1415.17 | I129: 1428.13 | J129: 1441.37 | K129: 1414.9 | L129: 1388.7 | M129: 25.39315
A130: 121 | B130: L&TFH | C130: 118.75 | D130: 120.10 | E130: 117.15 | F130: 115.55 | G130: 112.60 | H130: 121.70 | I130: 124.65 | J130: 126.25 | K130: 123.05 | L130: 118.5 | M130: 62.37188
A131: 122 | B131: LTTS | C131: 1698 | D131: 1694.70 | E131: 1674.40 | F131: 1650.80 | G131: 1630.50 | H131: 1718.30 | I131: 1738.60 | J131: 1762.20 | K131: 1715 | L131: 1671.1 | M131: 0.73519
A132: 123 | B132: LICHSGFIN | C132: 477.9 | D132: 478.80 | E132: 470.10 | F132: 462.30 | G132: 453.60 | H132: 486.60 | I132: 495.30 | J132: 503.10 | K132: 487.5 | L132: 471 | M132: 23.65548
A133: 124 | B133: LTI | C133: 1696.1 | D133: 1700.52 | E133: 1685.58 | F133: 1675.07 | G133: 1660.13 | H133: 1711.03 | I133: 1725.97 | J133: 1736.48 | K133: 1715.45 | L133: 1690 | M133: 2.9648
A134: 125 | B134: LT | C134: 1360.35 | D134: 1362.12 | E134: 1353.23 | F134: 1346.12 | G134: 1337.23 | H134: 1369.23 | I134: 1378.12 | J134: 1385.23 | K134: 1371 | L134: 1355 | M134: 16.017
A135: 126 | B135: LUPIN | C135: 850.95 | D135: 851.25 | E135: 843.70 | F135: 836.45 | G135: 828.90 | H135: 858.50 | I135: 866.05 | J135: 873.30 | K135: 858.8 | L135: 844 | M135: 9.26036
A136: 127 | B136: MRF | C136: 54117.75 | D136: 53872.58 | E136: 53245.17 | F136: 52372.58 | G136: 51745.17 | H136: 54745.17 | I136: 55372.58 | J136: 56245.17 | K136: 54500 | L136: 53000 | M136: 0.1218
A137: 128 | B137: MGL | C137: 927.1 | D137: 933.68 | E137: 915.47 | F137: 903.83 | G137: 885.62 | H137: 945.32 | I137: 963.53 | J137: 975.17 | K137: 951.9 | L137: 922.05 | M137: 1.57098
A138: 129 | B138: M&MFIN | C138: 379.1 | D138: 381.95 | E138: 374.80 | F138: 370.50 | G138: 363.35 | H138: 386.25 | I138: 393.40 | J138: 397.70 | K138: 389.1 | L138: 377.65 | M138: 16.78703
A139: 130 | B139: M&M | C139: 621.65 | D139: 625.88 | E139: 614.77 | F139: 607.88 | G139: 596.77 | H139: 632.77 | I139: 643.88 | J139: 650.77 | K139: 637 | L139: 619 | M139: 38.53705
A140: 131 | B140: MANAPPURAM | C140: 114.9 | D140: 115.55 | E140: 113.85 | F140: 112.80 | G140: 111.10 | H140: 116.60 | I140: 118.30 | J140: 119.35 | K140: 117.25 | L140: 114.5 | M140: 14.68848
A141: 132 | B141: MRPL | C141: 67.2 | D141: 67.53 | E141: 66.57 | F141: 65.93 | G141: 64.97 | H141: 68.17 | I141: 69.13 | J141: 69.77 | K141: 68.5 | L141: 66.9 | M141: 5.75662
A142: 133 | B142: MARICO | C142: 355.15 | D142: 353.72 | E142: 347.53 | F142: 339.92 | G142: 333.73 | H142: 361.33 | I142: 367.52 | J142: 375.13 | K142: 359.9 | L142: 346.1 | M142: 53.16216
A143: 134 | B143: MARUTI | C143: 6650.15 | D143: 6653.05 | E143: 6613.10 | F143: 6576.05 | G143: 6536.10 | H143: 6690.10 | I143: 6730.05 | J143: 6767.10 | K143: 6693 | L143: 6616 | M143: 5.52749
A144: 135 | B144: MFSL | C144: 411.5 | D144: 409.62 | E144: 402.43 | F144: 393.37 | G144: 386.18 | H144: 418.68 | I144: 425.87 | J144: 434.93 | K144: 416.8 | L144: 400.55 | M144: 4.13369
A145: 136 | B145: MINDTREE | C145: 980.5 | D145: 978.85 | E145: 972.70 | F145: 964.90 | G145: 958.75 | H145: 986.65 | I145: 992.80 | J145: 1000.60 | K145: 985 | L145: 971.05 | M145: 43.01316
A146: 137 | B146: MOTHERSUMI | C146: 130.5 | D146: 130.88 | E146: 129.27 | F146: 128.03 | G146: 126.42 | H146: 132.12 | I146: 133.73 | J146: 134.97 | K146: 132.5 | L146: 129.65 | M146: 61.40016
A147: 138 | B147: MPHASIS | C147: 952.75 | D147: 956.78 | E147: 945.97 | F147: 939.18 | G147: 928.37 | H147: 963.57 | I147: 974.38 | J147: 981.17 | K147: 967.6 | L147: 950 | M147: 0.80468
A148: 139 | B148: MUTHOOTFIN | C148: 561.45 | D148: 562.62 | E148: 555.13 | F148: 548.82 | G148: 541.33 | H148: 568.93 | I148: 576.42 | J148: 582.73 | K148: 570.1 | L148: 556.3 | M148: 13.26524
A149: 140 | B149: NATCOPHARM | C149: 538.1 | D149: 536.52 | E149: 530.18 | F149: 522.27 | G149: 515.93 | H149: 544.43 | I149: 550.77 | J149: 558.68 | K149: 542.85 | L149: 528.6 | M149: 1.32018
A150: 141 | B150: NBCC | C150: 54 | D150: 54.78 | E150: 53.07 | F150: 52.13 | G150: 50.42 | H150: 55.72 | I150: 57.43 | J150: 58.37 | K150: 56.5 | L150: 53.85 | M150: 72.91287
A151: 142 | B151: NHPC | C151: 22.9 | D151: 22.97 | E151: 22.68 | F151: 22.47 | G151: 22.18 | H151: 23.18 | I151: 23.47 | J151: 23.68 | K151: 23.25 | L151: 22.75 | M151: 12.16062
A152: 143 | B152: NMDC | C152: 95.85 | D152: 96.23 | E152: 95.02 | F152: 94.18 | G152: 92.97 | H152: 97.07 | I152: 98.28 | J152: 99.12 | K152: 97.45 | L152: 95.4 | M152: 20.8742
A153: 144 | B153: NTPC | C153: 130.8 | D153: 131.67 | E153: 129.33 | F153: 127.87 | G153: 125.53 | H153: 133.13 | I153: 135.47 | J153: 136.93 | K153: 134 | L153: 130.2 | M153: 87.42473
A154: 145 | B154: NATIONALUM | C154: 49.65 | D154: 49.90 | E154: 49.25 | F154: 48.85 | G154: 48.20 | H154: 50.30 | I154: 50.95 | J154: 51.35 | K154: 50.55 | L154: 49.5 | M154: 51.31084
A155: 146 | B155: OBEROIRLTY | C155: 492.35 | D155: 500.63 | E155: 480.72 | F155: 469.08 | G155: 449.17 | H155: 512.27 | I155: 532.18 | J155: 543.82 | K155: 520.55 | L155: 489 | M155: 5.06732
A156: 147 | B156: ONGC | C156: 168.9 | D156: 169.35 | E156: 167.30 | F156: 165.70 | G156: 163.65 | H156: 170.95 | I156: 173.00 | J156: 174.60 | K156: 171.4 | L156: 167.75 | M156: 86.03091
A157: 148 | B157: OIL | C157: 178.95 | D157: 179.78 | E157: 177.62 | F157: 176.28 | G157: 174.12 | H157: 181.12 | I157: 183.28 | J157: 184.62 | K157: 181.95 | L157: 178.45 | M157: 8.29291
A158: 149 | B158: OFSS | C158: 3440.35 | D158: 3435.12 | E158: 3402.28 | F158: 3364.22 | G158: 3331.38 | H158: 3473.18 | I158: 3506.02 | J158: 3544.08 | K158: 3467.95 | L158: 3397.05 | M158: 0.16756
A159: 150 | B159: PIIND | C159: 1028.8 | D159: 1029.45 | E159: 1019.40 | F159: 1010.00 | G159: 999.95 | H159: 1038.85 | I159: 1048.90 | J159: 1058.30 | K159: 1039.5 | L159: 1020.05 | M159: 0.22203
A160: 151 | B160: PNBHOUSING | C160: 694.7 | D160: 696.42 | E160: 687.83 | F160: 680.97 | G160: 672.38 | H160: 703.28 | I160: 711.87 | J160: 718.73 | K160: 705 | L160: 689.55 | M160: 4.02235
A161: 152 | B161: PAGEIND | C161: 21355.4 | D161: 21514.95 | E161: 21091.95 | F161: 20828.50 | G161: 20405.50 | H161: 21778.40 | I161: 22201.40 | J161: 22464.85 | K161: 21937.95 | L161: 21251.5 | M161: 0.25907
A162: 153 | B162: PETRONET | C162: 235.9 | D162: 236.83 | E162: 233.32 | F162: 230.73 | G162: 227.22 | H162: 239.42 | I162: 242.93 | J162: 245.52 | K162: 240.35 | L162: 234.25 | M162: 18.46768
A163: 154 | B163: PFIZER | C163: 3039.4 | D163: 3068.48 | E163: 2986.97 | F163: 2934.53 | G163: 2853.02 | H163: 3120.92 | I163: 3202.43 | J163: 3254.87 | K163: 3150 | L163: 3016.05 | M163: 0.13246
A164: 155 | B164: PIDILITIND | C164: 1164.35 | D164: 1168.42 | E164: 1153.63 | F164: 1142.92 | G164: 1128.13 | H164: 1179.13 | I164: 1193.92 | J164: 1204.63 | K164: 1183.2 | L164: 1157.7 | M164: 4.22536
A165: 156 | B165: PEL | C165: 2193.1 | D165: 2217.37 | E165: 2155.73 | F165: 2118.37 | G165: 2056.73 | H165: 2254.73 | I165: 2316.37 | J165: 2353.73 | K165: 2279 | L165: 2180 | M165: 5.07849
A166: 157 | B166: PFC | C166: 107.7 | D166: 108.72 | E166: 106.28 | F166: 104.87 | G166: 102.43 | H166: 110.13 | I166: 112.57 | J166: 113.98 | K166: 111.15 | L166: 107.3 | M166: 38.30606
A167: 158 | B167: POWERGRID | C167: 190 | D167: 190.88 | E167: 188.02 | F167: 186.03 | G167: 183.17 | H167: 192.87 | I167: 195.73 | J167: 197.72 | K167: 193.75 | L167: 188.9 | M167: 57.26663
A168: 159 | B168: PRESTIGE | C168: 266.7 | D168: 264.90 | E168: 260.00 | F168: 253.30 | G168: 248.40 | H168: 271.60 | I168: 276.50 | J168: 283.20 | K168: 269.8 | L168: 258.2 | M168: 0.88746
A169: 160 | B169: PGHH | C169: 10424.3 | D169: 10421.40 | E169: 10302.80 | F169: 10181.30 | G169: 10062.70 | H169: 10542.90 | I169: 10661.50 | J169: 10783.00 | K169: 10540 | L169: 10299.9 | M169: 0.08416
A170: 161 | B170: PNB | C170: 83.95 | D170: 84.20 | E170: 83.00 | F170: 82.05 | G170: 80.85 | H170: 85.15 | I170: 86.35 | J170: 87.30 | K170: 85.4 | L170: 83.25 | M170: 233.8069
A171: 162 | B171: QUESS | C171: 654.65 | D171: 659.85 | E171: 647.30 | F171: 639.95 | G171: 627.40 | H171: 667.20 | I171: 679.75 | J171: 687.10 | K171: 672.4 | L171: 652.5 | M171: 0.40867
A172: 163 | B172: RBLBANK | C172: 652.8 | D172: 656.98 | E172: 646.37 | F172: 639.93 | G172: 629.32 | H172: 663.42 | I172: 674.03 | J172: 680.47 | K172: 667.6 | L172: 650.55 | M172: 9.71817
A173: 164 | B173: RECLTD | C173: 137.65 | D173: 138.35 | E173: 136.15 | F173: 134.65 | G173: 132.45 | H173: 139.85 | I173: 142.05 | J173: 143.55 | K173: 140.55 | L173: 136.85 | M173: 32.08494
A174: 165 | B174: RAJESHEXPO | C174: 689.05 | D174: 690.08 | E174: 683.32 | F174: 677.58 | G174: 670.82 | H174: 695.82 | I174: 702.58 | J174: 708.32 | K174: 696.85 | L174: 684.35 | M174: 3.80403
A175: 166 | B175: RELCAPITAL | C175: 114.95 | D175: 115.83 | E175: 111.17 | F175: 107.38 | G175: 102.72 | H175: 119.62 | I175: 124.28 | J175: 128.07 | K175: 120.5 | L175: 112.05 | M175: 288.09909
A176: 167 | B176: RELIANCE | C176: 1299.45 | D176: 1310.55 | E176: 1281.10 | F176: 1262.75 | G176: 1233.30 | H176: 1328.90 | I176: 1358.35 | J176: 1376.70 | K176: 1340 | L176: 1292.2 | M176: 146.10543
A177: 168 | B177: RELINFRA | C177: 99.45 | D177: 99.48 | E177: 96.57 | F177: 93.68 | G177: 90.77 | H177: 102.37 | I177: 105.28 | J177: 108.17 | K177: 102.4 | L177: 96.6 | M177: 143.89998
A178: 169 | B178: RPOWER | C178: 5.85 | D178: 5.88 | E178: 5.67 | F178: 5.48 | G178: 5.27 | H178: 6.07 | I178: 6.28 | J178: 6.47 | K178: 6.1 | L178: 5.7 | M178: 660.28921
A179: 170 | B179: SBILIFE | C179: 650.55 | D179: 653.97 | E179: 646.53 | F179: 642.52 | G179: 635.08 | H179: 657.98 | I179: 665.42 | J179: 669.43 | K179: 661.4 | L179: 649.95 | M179: 2.90783
A180: 171 | B180: SRF | C180: 2444.4 | D180: 2462.68 | E180: 2407.37 | F180: 2370.33 | G180: 2315.02 | H180: 2499.72 | I180: 2555.03 | J180: 2592.07 | K180: 2518 | L180: 2425.65 | M180: 2.68042
A181: 172 | B181: SHREECEM | C181: 19832.5 | D181: 19740.17 | E181: 19580.33 | F181: 19328.17 | G181: 19168.33 | H181: 19992.33 | I181: 20152.17 | J181: 20404.33 | K181: 19900 | L181: 19488 | M181: 0.28232
A182: 173 | B182: SRTRANSFIN | C182: 1027.25 | D182: 1030.58 | E182: 1009.12 | F182: 990.98 | G182: 969.52 | H182: 1048.72 | I182: 1070.18 | J182: 1088.32 | K182: 1052.05 | L182: 1012.45 | M182: 16.29244
A183: 174 | B183: SIEMENS | C183: 1089.05 | D183: 1093.80 | E183: 1070.80 | F183: 1052.55 | G183: 1029.55 | H183: 1112.05 | I183: 1135.05 | J183: 1153.30 | K183: 1116.8 | L183: 1075.55 | M183: 8.83593
A184: 175 | B184: SBIN | C184: 298.25 | D184: 300.10 | E184: 294.90 | F184: 291.55 | G184: 286.35 | H184: 303.45 | I184: 308.65 | J184: 312.00 | K184: 305.3 | L184: 296.75 | M184: 221.03678
A185: 176 | B185: SAIL | C185: 52.85 | D185: 53.03 | E185: 52.12 | F185: 51.38 | G185: 50.47 | H185: 53.77 | I185: 54.68 | J185: 55.42 | K185: 53.95 | L185: 52.3 | M185: 188.34149
A186: 177 | B186: STRTECH | C186: 183.85 | D186: 187.48 | E186: 178.97 | F186: 174.08 | G186: 165.57 | H186: 192.37 | I186: 200.88 | J186: 205.77 | K186: 196 | L186: 182.6 | M186: 31.16373
A187: 178 | B187: SPARC | C187: 156.8 | D187: 158.58 | E187: 153.62 | F187: 150.43 | G187: 145.47 | H187: 161.77 | I187: 166.73 | J187: 169.92 | K187: 163.55 | L187: 155.4 | M187: 2.94343
A188: 179 | B188: SUNPHARMA | C188: 439.15 | D188: 440.82 | E188: 431.78 | F188: 424.42 | G188: 415.38 | H188: 448.18 | I188: 457.22 | J188: 464.58 | K188: 449.85 | L188: 433.45 | M188: 48.85249
A189: 180 | B189: SUNTV | C189: 528.9 | D189: 535.00 | E189: 519.10 | F189: 509.30 | G189: 493.40 | H189: 544.80 | I189: 560.70 | J189: 570.50 | K189: 550.9 | L189: 525.2 | M189: 30.09785
A190: 181 | B190: SYNGENE | C190: 613.95 | D190: 611.73 | E190: 603.47 | F190: 592.98 | G190: 584.72 | H190: 622.22 | I190: 630.48 | J190: 640.97 | K190: 620 | L190: 601.25 | M190: 0.44171
A191: 182 | B191: TVSMOTOR | C191: 493.25 | D191: 489.03 | E191: 478.77 | F191: 464.28 | G191: 454.02 | H191: 503.52 | I191: 513.78 | J191: 528.27 | K191: 499.3 | L191: 474.55 | M191: 18.66654
A192: 183 | B192: TATACHEM | C192: 590.25 | D192: 591.83 | E192: 582.67 | F192: 575.08 | G192: 565.92 | H192: 599.42 | I192: 608.58 | J192: 616.17 | K192: 601 | L192: 584.25 | M192: 5.78846
A193: 184 | B193: TCS | C193: 2152.85 | D193: 2150.42 | E193: 2132.83 | F193: 2112.82 | G193: 2095.23 | H193: 2170.43 | I193: 2188.02 | J193: 2208.03 | K193: 2168 | L193: 2130.4 | M193: 18.24895
A194: 185 | B194: TATAGLOBAL | C194: 199.45 | D194: 199.98 | E194: 197.72 | F194: 195.98 | G194: 193.72 | H194: 201.72 | I194: 203.98 | J194: 205.72 | K194: 202.25 | L194: 198.25 | M194: 14.52184
A195: 186 | B195: TATAMTRDVR | C195: 88.75 | D195: 89.47 | E195: 87.58 | F195: 86.42 | G195: 84.53 | H195: 90.63 | I195: 92.52 | J195: 93.68 | K195: 91.35 | L195: 88.3 | M195: 32.24574
A196: 187 | B196: TATAMOTORS | C196: 185.1 | D196: 186.60 | E196: 182.30 | F196: 179.50 | G196: 175.20 | H196: 189.40 | I196: 193.70 | J196: 196.50 | K196: 190.9 | L196: 183.8 | M196: 284.43735
A197: 188 | B197: TATAPOWER | C197: 64.5 | D197: 64.17 | E197: 63.53 | F197: 62.57 | G197: 61.93 | H197: 65.13 | I197: 65.77 | J197: 66.73 | K197: 64.8 | L197: 63.2 | M197: 66.15929
A198: 189 | B198: TATASTEEL | C198: 522.65 | D198: 525.55 | E198: 518.70 | F198: 514.75 | G198: 507.90 | H198: 529.50 | I198: 536.35 | J198: 540.30 | K198: 532.4 | L198: 521.6 | M198: 64.78432
A199: 190 | B199: TECHM | C199: 802.3 | D199: 805.33 | E199: 796.57 | F199: 790.83 | G199: 782.07 | H199: 811.07 | I199: 819.83 | J199: 825.57 | K199: 814.1 | L199: 799.6 | M199: 12.70071
A200: 191 | B200: NIACL | C200: 174.4 | D200: 175.17 | E200: 173.23 | F200: 172.07 | G200: 170.13 | H200: 176.33 | I200: 178.27 | J200: 179.43 | K200: 177.1 | L200: 174 | M200: 0.30068
A201: 192 | B201: RAMCOCEM | C201: 749.65 | D201: 750.82 | E201: 736.83 | F201: 724.02 | G201: 710.03 | H201: 763.63 | I201: 777.62 | J201: 790.43 | K201: 764.8 | L201: 738 | M201: 2.51148
A202: 193 | B202: TITAN | C202: 1088.7 | D202: 1085.52 | E202: 1071.03 | F202: 1053.37 | G202: 1038.88 | H202: 1103.18 | I202: 1117.67 | J202: 1135.33 | K202: 1100 | L202: 1067.85 | M202: 33.36769
A203: 194 | B203: TORNTPHARM | C203: 1693.95 | D203: 1698.98 | E203: 1676.97 | F203: 1659.98 | G203: 1637.97 | H203: 1715.97 | I203: 1737.98 | J203: 1754.97 | K203: 1721 | L203: 1682 | M203: 0.936
A204: 195 | B204: TORNTPOWER | C204: 252.1 | D204: 252.53 | E204: 250.57 | F204: 249.03 | G204: 247.07 | H204: 254.07 | I204: 256.03 | J204: 257.57 | K204: 254.5 | L204: 251 | M204: 4.04379
A205: 196 | B205: UPL | C205: 961.65 | D205: 958.48 | E205: 948.57 | F205: 935.48 | G205: 925.57 | H205: 971.57 | I205: 981.48 | J205: 994.57 | K205: 968.4 | L205: 945.4 | M205: 23.84763
... 30 more rows

Sheet MidCap Intra
L5: Back To Main Page
A6: FOR INTRA DAY TRADING | K6: =Main!B10 -> 2019-05-09
A9: Sr.no | B9: Scrip | C9: CLOSE RATE | D9: Pivot Point | E9: Supports | H9: Resistances
C10: Point | E10: S1 | F10: S2 | G10: S3 | H10: R1 | I10: R2 | J10: R3 | K10: HIGH | L10: LOW | M10: Total Trade Quanity in Lakhs
A11: 1 | B11: 3MINDIA | C11: 23122.25 | D11: 23140.52 | E11: 22982.03 | F11: 22841.82 | G11: 22683.33 | H11: 23280.73 | I11: 23439.22 | J11: 23579.43 | K11: 23299 | L11: 23000.3 | M11: 0.00349
A12: 2 | B12: ABB | C12: 1453.55 | D12: 1466.18 | E12: 1435.37 | F12: 1417.18 | G12: 1386.37 | H12: 1484.37 | I12: 1515.18 | J12: 1533.37 | K12: 1497 | L12: 1448 | M12: 1.7541
A13: 3 | B13: ACC | C13: 1593.2 | D13: 1587.90 | E13: 1568.85 | F13: 1544.50 | G13: 1525.45 | H13: 1612.25 | I13: 1631.30 | J13: 1655.65 | K13: 1606.95 | L13: 1563.55 | M13: 9.47559
A14: 4 | B14: AIAENG | C14: 1673.45 | D14: 1691.15 | E14: 1647.30 | F14: 1621.15 | G14: 1577.30 | H14: 1717.30 | I14: 1761.15 | J14: 1787.30 | K14: 1735 | L14: 1665 | M14: 0.22662
A15: 5 | B15: APLAPOLLO | C15: 1527.1 | D15: 1519.63 | E15: 1506.47 | F15: 1485.83 | G15: 1472.67 | H15: 1540.27 | I15: 1553.43 | J15: 1574.07 | K15: 1532.8 | L15: 1499 | M15: 0.18946
A16: 6 | B16: AUBANK | C16: 641.3 | D16: 639.00 | E16: 634.50 | F16: 627.70 | G16: 623.20 | H16: 645.80 | I16: 650.30 | J16: 657.10 | K16: 643.5 | L16: 632.2 | M16: 7.76828
A17: 7 | B17: AAVAS | C17: 1426.6 | D17: 1418.98 | E17: 1389.77 | F17: 1352.93 | G17: 1323.72 | H17: 1455.82 | I17: 1485.03 | J17: 1521.87 | K17: 1448.2 | L17: 1382.15 | M17: 6.66307
A18: 8 | B18: ADANIGREEN | C18: 38.05 | D18: 38.62 | E18: 37.23 | F18: 36.42 | G18: 35.03 | H18: 39.43 | I18: 40.82 | J18: 41.63 | K18: 40 | L18: 37.8 | M18: 7.93079
A19: 9 | B19: ADANIPORTS | C19: 369.8 | D19: 370.80 | E19: 366.70 | F19: 363.60 | G19: 359.50 | H19: 373.90 | I19: 378.00 | J19: 381.10 | K19: 374.9 | L19: 367.7 | M19: 16.8811
A20: 10 | B20: ADANIPOWER | C20: 41.35 | D20: 41.40 | E20: 40.70 | F20: 40.05 | G20: 39.35 | H20: 42.05 | I20: 42.75 | J20: 43.40 | K20: 42.1 | L20: 40.75 | M20: 75.10676
A21: 11 | B21: ADANITRANS | C21: 206 | D21: 207.48 | E21: 202.52 | F21: 199.03 | G21: 194.07 | H21: 210.97 | I21: 215.93 | J21: 219.42 | K21: 212.45 | L21: 204 | M21: 0.66922
A22: 12 | B22: ABCAPITAL | C22: 98.6 | D22: 98.78 | E22: 97.82 | F22: 97.03 | G22: 96.07 | H22: 99.57 | I22: 100.53 | J22: 101.32 | K22: 99.75 | L22: 98 | M22: 30.21121
A23: 13 | B23: ABFRL | C23: 207.15 | D23: 207.15 | E23: 204.60 | F23: 202.05 | G23: 199.50 | H23: 209.70 | I23: 212.25 | J23: 214.80 | K23: 209.7 | L23: 204.6 | M23: 3.29716
A24: 14 | B24: ADVENZYMES | C24: 179.95 | D24: 180.52 | E24: 178.03 | F24: 176.12 | G24: 173.63 | H24: 182.43 | I24: 184.92 | J24: 186.83 | K24: 183 | L24: 178.6 | M24: 0.67734
A25: 15 | B25: AEGISCHEM | C25: 193.4 | D25: 194.85 | E25: 188.80 | F25: 184.20 | G25: 178.15 | H25: 199.45 | I25: 205.50 | J25: 210.10 | K25: 200.9 | L25: 190.25 | M25: 1.57025
A26: 16 | B26: AJANTPHARM | C26: 1057.95 | D26: 1055.28 | E26: 1045.67 | F26: 1033.38 | G26: 1023.77 | H26: 1067.57 | I26: 1077.18 | J26: 1089.47 | K26: 1064.9 | L26: 1043 | M26: 2.02055
A27: 17 | B27: AKZOINDIA | C27: 1661.95 | D27: 1662.52 | E27: 1655.03 | F27: 1648.12 | G27: 1640.63 | H27: 1669.43 | I27: 1676.92 | J27: 1683.83 | K27: 1670 | L27: 1655.6 | M27: 0.01226
A28: 18 | B28: APLLTD | C28: 551.45 | D28: 553.63 | E28: 538.57 | F28: 525.68 | G28: 510.62 | H28: 566.52 | I28: 581.58 | J28: 594.47 | K28: 568.7 | L28: 540.75 | M28: 2.28052
A29: 19 | B29: ALKEM | C29: 1687.15 | D29: 1784.78 | E29: 1582.37 | F29: 1477.58 | G29: 1275.17 | H29: 1889.57 | I29: 2091.98 | J29: 2196.77 | K29: 1987.2 | L29: 1680 | M29: 0.20667
A30: 20 | B30: ALBK | C30: 44.45 | D30: 44.47 | E30: 43.83 | F30: 43.22 | G30: 42.58 | H30: 45.08 | I30: 45.72 | J30: 46.33 | K30: 45.1 | L30: 43.85 | M30: 39.62709
A31: 21 | B31: ALLCARGO | C31: 104.05 | D31: 104.03 | E31: 102.47 | F31: 100.88 | G31: 99.32 | H31: 105.62 | I31: 107.18 | J31: 108.77 | K31: 105.6 | L31: 102.45 | M31: 1.32075
A32: 22 | B32: AMARAJABAT | C32: 636 | D32: 637.77 | E32: 630.83 | F32: 625.67 | G32: 618.73 | H32: 642.93 | I32: 649.87 | J32: 655.03 | K32: 644.7 | L32: 632.6 | M32: 2.97982
A33: 23 | B33: AMBUJACEM | C33: 213.35 | D33: 214.95 | E33: 210.80 | F33: 208.25 | G33: 204.10 | H33: 217.50 | I33: 221.65 | J33: 224.20 | K33: 219.1 | L33: 212.4 | M33: 33.50658
A34: 24 | B34: ANDHRABANK | C34: 23.75 | D34: 23.83 | E34: 23.37 | F34: 22.98 | G34: 22.52 | H34: 24.22 | I34: 24.68 | J34: 25.07 | K34: 24.3 | L34: 23.45 | M34: 8.94123
A35: 25 | B35: APOLLOHOSP | C35: 1170.3 | D35: 1168.63 | E35: 1153.67 | F35: 1137.03 | G35: 1122.07 | H35: 1185.27 | I35: 1200.23 | J35: 1216.87 | K35: 1183.6 | L35: 1152 | M35: 2.46581
A36: 26 | B36: APOLLOTYRE | C36: 191.75 | D36: 193.32 | E36: 189.43 | F36: 187.12 | G36: 183.23 | H36: 195.63 | I36: 199.52 | J36: 201.83 | K36: 197.2 | L36: 191 | M36: 25.11215
A37: 27 | B37: ASHOKLEY | C37: 85.95 | D37: 85.77 | E37: 85.13 | F37: 84.32 | G37: 83.68 | H37: 86.58 | I37: 87.22 | J37: 88.03 | K37: 86.4 | L37: 84.95 | M37: 130.38488
A38: 28 | B38: ASHOKA | C38: 115.45 | D38: 116.97 | E38: 113.48 | F38: 111.52 | G38: 108.03 | H38: 118.93 | I38: 122.42 | J38: 124.38 | K38: 120.45 | L38: 115 | M38: 0.67803
A39: 29 | B39: ASIANPAINT | C39: 1385.7 | D39: 1381.10 | E39: 1367.20 | F39: 1348.70 | G39: 1334.80 | H39: 1399.60 | I39: 1413.50 | J39: 1432.00 | K39: 1395 | L39: 1362.6 | M39: 14.14591
A40: 30 | B40: ASTERDM | C40: 143.75 | D40: 143.07 | E40: 141.18 | F40: 138.62 | G40: 136.73 | H40: 145.63 | I40: 147.52 | J40: 150.08 | K40: 144.95 | L40: 140.5 | M40: 0.17641
A41: 31 | B41: ASTRAZEN | C41: 2157.9 | D41: 2182.93 | E41: 2053.92 | F41: 1949.93 | G41: 1820.92 | H41: 2286.92 | I41: 2415.93 | J41: 2519.92 | K41: 2311.95 | L41: 2078.95 | M41: 0.16967
A42: 32 | B42: ASTRAL | C42: 1168.3 | D42: 1177.03 | E42: 1155.52 | F42: 1142.73 | G42: 1121.22 | H42: 1189.82 | I42: 1211.33 | J42: 1224.12 | K42: 1198.55 | L42: 1164.25 | M42: 0.06606
A43: 33 | B43: ATUL | C43: 3559.45 | D43: 3542.78 | E43: 3505.57 | F43: 3451.68 | G43: 3414.47 | H43: 3596.67 | I43: 3633.88 | J43: 3687.77 | K43: 3580 | L43: 3488.9 | M43: 0.28745
A44: 34 | B44: AUROPHARMA | C44: 765.2 | D44: 765.25 | E44: 754.50 | F44: 743.80 | G44: 733.05 | H44: 775.95 | I44: 786.70 | J44: 797.40 | K44: 776 | L44: 754.55 | M44: 16.4818
A45: 35 | B45: AVANTIFEED | C45: 351 | D45: 353.03 | E45: 347.72 | F45: 344.43 | G45: 339.12 | H45: 356.32 | I45: 361.63 | J45: 364.92 | K45: 358.35 | L45: 349.75 | M45: 1.68741
A46: 36 | B46: DMART | C46: 1245.55 | D46: 1244.85 | E46: 1226.70 | F46: 1207.85 | G46: 1189.70 | H46: 1263.70 | I46: 1281.85 | J46: 1300.70 | K46: 1263 | L46: 1226 | M46: 6.70753
A47: 37 | B47: AXISBANK | C47: 735.5 | D47: 737.87 | E47: 730.98 | F47: 726.47 | G47: 719.58 | H47: 742.38 | I47: 749.27 | J47: 753.78 | K47: 744.75 | L47: 733.35 | M47: 67.39894
A48: 38 | B48: BASF | C48: 1256.1 | D48: 1266.05 | E48: 1232.05 | F48: 1208.00 | G48: 1174.00 | H48: 1290.10 | I48: 1324.10 | J48: 1348.15 | K48: 1300.05 | L48: 1242 | M48: 0.05053
A49: 39 | B49: BEML | C49: 832.2 | D49: 832.73 | E49: 824.52 | F49: 816.83 | G49: 808.62 | H49: 840.42 | I49: 848.63 | J49: 856.32 | K49: 840.95 | L49: 825.05 | M49: 7.64649
A50: 40 | B50: BSE | C50: 614.85 | D50: 616.48 | E50: 609.37 | F50: 603.88 | G50: 596.77 | H50: 621.97 | I50: 629.08 | J50: 634.57 | K50: 623.6 | L50: 611 | M50: 3.51828
A51: 41 | B51: BAJAJ-AUTO | C51: 2957.75 | D51: 2980.85 | E51: 2928.70 | F51: 2899.65 | G51: 2847.50 | H51: 3009.90 | I51: 3062.05 | J51: 3091.10 | K51: 3033 | L51: 2951.8 | M51: 4.27476
A52: 42 | B52: BAJAJCON | C52: 338 | D52: 342.23 | E52: 332.67 | F52: 327.33 | G52: 317.77 | H52: 347.57 | I52: 357.13 | J52: 362.47 | K52: 351.8 | L52: 336.9 | M52: 1.27909
A53: 43 | B53: BAJAJELEC | C53: 534.45 | D53: 541.82 | E53: 522.63 | F53: 510.82 | G53: 491.63 | H53: 553.63 | I53: 572.82 | J53: 584.63 | K53: 561 | L53: 530 | M53: 1.60037
A54: 44 | B54: BAJFINANCE | C54: 2921.3 | D54: 2946.10 | E54: 2875.20 | F54: 2829.10 | G54: 2758.20 | H54: 2992.20 | I54: 3063.10 | J54: 3109.20 | K54: 3017 | L54: 2900 | M54: 11.55023
A55: 45 | B55: BAJAJFINSV | C55: 7345.75 | D55: 7403.02 | E55: 7255.03 | F55: 7164.32 | G55: 7016.33 | H55: 7493.73 | I55: 7641.72 | J55: 7732.43 | K55: 7551 | L55: 7312.3 | M55: 2.30383
A56: 46 | B56: BAJAJHLDNG | C56: 3102.25 | D56: 3120.30 | E56: 3062.05 | F56: 3021.85 | G56: 2963.60 | H56: 3160.50 | I56: 3218.75 | J56: 3258.95 | K56: 3178.55 | L56: 3080.1 | M56: 0.18724
A57: 47 | B57: BALKRISIND | C57: 827.3 | D57: 835.67 | E57: 814.08 | F57: 800.87 | G57: 779.28 | H57: 848.88 | I57: 870.47 | J57: 883.68 | K57: 857.25 | L57: 822.45 | M57: 5.48966
A58: 48 | B58: BALMLAWRIE | C58: 167.75 | D58: 168.10 | E58: 166.20 | F58: 164.65 | G58: 162.75 | H58: 169.65 | I58: 171.55 | J58: 173.10 | K58: 170 | L58: 166.55 | M58: 0.34842
A59: 49 | B59: BALRAMCHIN | C59: 141.05 | D59: 142.18 | E59: 137.57 | F59: 134.08 | G59: 129.47 | H59: 145.67 | I59: 150.28 | J59: 153.77 | K59: 146.8 | L59: 138.7 | M59: 14.66708
A60: 50 | B60: BANDHANBNK | C60: 571.25 | D60: 576.37 | E60: 560.98 | F60: 550.72 | G60: 535.33 | H60: 586.63 | I60: 602.02 | J60: 612.28 | K60: 591.75 | L60: 566.1 | M60: 24.0633
A61: 51 | B61: BANKBARODA | C61: 110.95 | D61: 111.68 | E61: 109.52 | F61: 108.08 | G61: 105.92 | H61: 113.12 | I61: 115.28 | J61: 116.72 | K61: 113.85 | L61: 110.25 | M61: 172.53993
A62: 52 | B62: BANKINDIA | C62: 83.9 | D62: 84.32 | E62: 82.93 | F62: 81.97 | G62: 80.58 | H62: 85.28 | I62: 86.67 | J62: 87.63 | K62: 85.7 | L62: 83.35 | M62: 58.29503
A63: 53 | B63: MAHABANK | C63: 15 | D63: 15.07 | E63: 14.78 | F63: 14.57 | G63: 14.28 | H63: 15.28 | I63: 15.57 | J63: 15.78 | K63: 15.35 | L63: 14.85 | M63: 13.85786
A64: 54 | B64: BATAINDIA | C64: 1347.9 | D64: 1349.05 | E64: 1332.10 | F64: 1316.30 | G64: 1299.35 | H64: 1364.85 | I64: 1381.80 | J64: 1397.60 | K64: 1366 | L64: 1333.25 | M64: 6.10792
A65: 55 | B65: BERGEPAINT | C65: 303.7 | D65: 302.92 | E65: 299.13 | F65: 294.57 | G65: 290.78 | H65: 307.48 | I65: 311.27 | J65: 315.83 | K65: 306.7 | L65: 298.35 | M65: 6.28049
A66: 56 | B66: BDL | C66: 272.95 | D66: 275.00 | E66: 269.95 | F66: 266.95 | G66: 261.90 | H66: 278.00 | I66: 283.05 | J66: 286.05 | K66: 280.05 | L66: 272 | M66: 0.30823
A67: 57 | B67: BEL | C67: 86.9 | D67: 86.60 | E67: 85.90 | F67: 84.90 | G67: 84.20 | H67: 87.60 | I67: 88.30 | J67: 89.30 | K67: 87.3 | L67: 85.6 | M67: 51.96636
A68: 58 | B68: BHARATFORG | C68: 462.4 | D68: 465.92 | E68: 456.93 | F68: 451.47 | G68: 442.48 | H68: 471.38 | I68: 480.37 | J68: 485.83 | K68: 474.9 | L68: 460.45 | M68: 11.23373
A69: 59 | B69: BHEL | C69: 61.75 | D69: 62.40 | E69: 60.90 | F69: 60.05 | G69: 58.55 | H69: 63.25 | I69: 64.75 | J69: 65.60 | K69: 63.9 | L69: 61.55 | M69: 153.03026
A70: 60 | B70: BPCL | C70: 379.8 | D70: 378.77 | E70: 374.13 | F70: 368.47 | G70: 363.83 | H70: 384.43 | I70: 389.07 | J70: 394.73 | K70: 383.4 | L70: 373.1 | M70: 38.01308
A71: 61 | B71: BHARTIARTL | C71: 324.5 | D71: 324.02 | E71: 320.58 | F71: 316.67 | G71: 313.23 | H71: 327.93 | I71: 331.37 | J71: 335.28 | K71: 327.45 | L71: 320.1 | M71: 47.74792
A72: 62 | B72: INFRATEL | C72: 266.7 | D72: 266.88 | E72: 263.47 | F72: 260.23 | G72: 256.82 | H72: 270.12 | I72: 273.53 | J72: 276.77 | K72: 270.3 | L72: 263.65 | M72: 22.25529
A73: 63 | B73: BIOCON | C73: 545.7 | D73: 549.67 | E73: 539.33 | F73: 532.97 | G73: 522.63 | H73: 556.03 | I73: 566.37 | J73: 572.73 | K73: 560 | L73: 543.3 | M73: 24.70546
A74: 64 | B74: BIRLACORPN | C74: 548.05 | D74: 548.67 | E74: 539.43 | F74: 530.82 | G74: 521.58 | H74: 557.28 | I74: 566.52 | J74: 575.13 | K74: 557.9 | L74: 540.05 | M74: 1.4255
A75: 65 | B75: BLISSGVS | C75: 160.15 | D75: 160.78 | E75: 158.57 | F75: 156.98 | G75: 154.77 | H75: 162.37 | I75: 164.58 | J75: 166.17 | K75: 163 | L75: 159.2 | M75: 8.48502
A76: 66 | B76: BLUEDART | C76: 2997.75 | D76: 2990.25 | E76: 2978.50 | F76: 2959.25 | G76: 2947.50 | H76: 3009.50 | I76: 3021.25 | J76: 3040.50 | K76: 3002 | L76: 2971 | M76: 0.00973
A77: 67 | B77: BLUESTARCO | C77: 766.9 | D77: 765.93 | E77: 739.92 | F77: 712.93 | G77: 686.92 | H77: 792.92 | I77: 818.93 | J77: 845.92 | K77: 791.95 | L77: 738.95 | M77: 5.51034
A78: 68 | B78: BBTC | C78: 1182.35 | D78: 1184.23 | E78: 1173.47 | F78: 1164.58 | G78: 1153.82 | H78: 1193.12 | I78: 1203.88 | J78: 1212.77 | K78: 1195 | L78: 1175.35 | M78: 0.22462
A79: 69 | B79: BOMDYEING | C79: 119.35 | D79: 120.12 | E79: 115.93 | F79: 112.52 | G79: 108.33 | H79: 123.53 | I79: 127.72 | J79: 131.13 | K79: 124.3 | L79: 116.7 | M79: 19.95002
A80: 70 | B80: BOSCHLTD | C80: 17328.85 | D80: 17392.15 | E80: 16954.30 | F80: 16579.75 | G80: 16141.90 | H80: 17766.70 | I80: 18204.55 | J80: 18579.10 | K80: 17830 | L80: 17017.6 | M80: 0.22326
A81: 71 | B81: BRIGADE | C81: 227.95 | D81: 231.20 | E81: 221.85 | F81: 215.75 | G81: 206.40 | H81: 237.30 | I81: 246.65 | J81: 252.75 | K81: 240.55 | L81: 225.1 | M81: 3.74445
A82: 72 | B82: BRITANNIA | C82: 2649.5 | D82: 2644.15 | E82: 2621.20 | F82: 2592.90 | G82: 2569.95 | H82: 2672.45 | I82: 2695.40 | J82: 2723.70 | K82: 2667.1 | L82: 2615.85 | M82: 7.23429
A83: 73 | B83: CARERATING | C83: 937.25 | D83: 948.83 | E83: 914.07 | F83: 890.88 | G83: 856.12 | H83: 972.02 | I83: 1006.78 | J83: 1029.97 | K83: 983.6 | L83: 925.65 | M83: 0.339
A84: 74 | B84: CCL | C84: 259.95 | D84: 258.50 | E84: 257.00 | F84: 254.05 | G84: 252.55 | H84: 261.45 | I84: 262.95 | J84: 265.90 | K84: 260 | L84: 255.55 | M84: 0.25724
A85: 75 | B85: CESC | C85: 670.2 | D85: 675.37 | E85: 663.83 | F85: 657.47 | G85: 645.93 | H85: 681.73 | I85: 693.27 | J85: 699.63 | K85: 686.9 | L85: 669 | M85: 2.54357
A86: 77 | B86: CGPOWER | C86: 39.2 | D86: 38.68 | E86: 35.77 | F86: 32.33 | G86: 29.42 | H86: 42.12 | I86: 45.03 | J86: 48.47 | K86: 41.6 | L86: 35.25 | M86: 448.1587
A87: 78 | B87: CRISIL | C87: 1420.15 | D87: 1420.78 | E87: 1401.62 | F87: 1383.08 | G87: 1363.92 | H87: 1439.32 | I87: 1458.48 | J87: 1477.02 | K87: 1439.95 | L87: 1402.25 | M87: 0.04385
A88: 79 | B88: CADILAHC | C88: 286.6 | D88: 290.42 | E88: 280.83 | F88: 275.07 | G88: 265.48 | H88: 296.18 | I88: 305.77 | J88: 311.53 | K88: 300 | L88: 284.65 | M88: 20.44037
A89: 80 | B89: CANFINHOME | C89: 321.1 | D89: 319.52 | E89: 312.63 | F89: 304.17 | G89: 297.28 | H89: 327.98 | I89: 334.87 | J89: 343.33 | K89: 326.4 | L89: 311.05 | M89: 12.30045
A90: 81 | B90: CANBK | C90: 256.75 | D90: 257.90 | E90: 253.40 | F90: 250.05 | G90: 245.55 | H90: 261.25 | I90: 265.75 | J90: 269.10 | K90: 262.4 | L90: 254.55 | M90: 51.93078
A91: 82 | B91: CAPLIPOINT | C91: 335.35 | D91: 334.03 | E91: 323.27 | F91: 311.18 | G91: 300.42 | H91: 346.12 | I91: 356.88 | J91: 368.97 | K91: 344.8 | L91: 321.95 | M91: 0.51699
A92: 83 | B92: CARBORUNIV | C92: 354.7 | D92: 356.18 | E92: 351.37 | F92: 348.03 | G92: 343.22 | H92: 359.52 | I92: 364.33 | J92: 367.67 | K92: 361 | L92: 352.85 | M92: 0.60039
A93: 84 | B93: CASTROLIND | C93: 149.9 | D93: 149.17 | E93: 147.68 | F93: 145.47 | G93: 143.98 | H93: 151.38 | I93: 152.87 | J93: 155.08 | K93: 150.65 | L93: 146.95 | M93: 10.36074
A94: 85 | B94: CEATLTD | C94: 1056.85 | D94: 1049.28 | E94: 1033.57 | F94: 1010.28 | G94: 994.57 | H94: 1072.57 | I94: 1088.28 | J94: 1111.57 | K94: 1065 | L94: 1026 | M94: 22.89447
A95: 86 | B95: CENTRALBK | C95: 27.95 | D95: 28.33 | E95: 27.52 | F95: 27.08 | G95: 26.27 | H95: 28.77 | I95: 29.58 | J95: 30.02 | K95: 29.15 | L95: 27.9 | M95: 9.24596
A96: 87 | B96: CDSL | C96: 225.65 | D96: 226.93 | E96: 223.82 | F96: 221.98 | G96: 218.87 | H96: 228.77 | I96: 231.88 | J96: 233.72 | K96: 230.05 | L96: 225.1 | M96: 1.43672
A97: 88 | B97: CENTURYPLY | C97: 161.3 | D97: 162.07 | E97: 160.13 | F97: 158.97 | G97: 157.03 | H97: 163.23 | I97: 165.17 | J97: 166.33 | K97: 164 | L97: 160.9 | M97: 1.00234
A98: 89 | B98: CERA | C98: 2763.85 | D98: 2769.27 | E98: 2730.58 | F98: 2697.32 | G98: 2658.63 | H98: 2802.53 | I98: 2841.22 | J98: 2874.48 | K98: 2807.95 | L98: 2736 | M98: 0.02361
A99: 90 | B99: CHAMBLFERT | C99: 144.4 | D99: 146.25 | E99: 140.50 | F99: 136.60 | G99: 130.85 | H99: 150.15 | I99: 155.90 | J99: 159.80 | K99: 152 | L99: 142.35 | M99: 1.58688
A100: 91 | B100: CHENNPETRO | C100: 242.6 | D100: 245.88 | E100: 237.72 | F100: 232.83 | G100: 224.67 | H100: 250.77 | I100: 258.93 | J100: 263.82 | K100: 254.05 | L100: 241 | M100: 12.86577
A101: 92 | B101: CHOLAHLDNG | C101: 507.65 | D101: 506.47 | E101: 504.18 | F101: 500.72 | G101: 498.43 | H101: 509.93 | I101: 512.22 | J101: 515.68 | K101: 508.75 | L101: 503 | M101: 0.16156
A102: 93 | B102: CHOLAFIN | C102: 1282.1 | D102: 1288.30 | E102: 1270.65 | F102: 1259.20 | G102: 1241.55 | H102: 1299.75 | I102: 1317.40 | J102: 1328.85 | K102: 1305.95 | L102: 1276.85 | M102: 1.70601
A103: 94 | B103: CIPLA | C103: 558 | D103: 556.13 | E103: 550.87 | F103: 543.73 | G103: 538.47 | H103: 563.27 | I103: 568.53 | J103: 575.67 | K103: 561.4 | L103: 549 | M103: 18.90174
A104: 95 | B104: CUB | C104: 197.4 | D104: 196.87 | E104: 193.73 | F104: 190.07 | G104: 186.93 | H104: 200.53 | I104: 203.67 | J104: 207.33 | K104: 200 | L104: 193.2 | M104: 6.02373
A105: 96 | B105: COALINDIA | C105: 249.1 | D105: 249.92 | E105: 247.73 | F105: 246.37 | G105: 244.18 | H105: 251.28 | I105: 253.47 | J105: 254.83 | K105: 252.1 | L105: 248.55 | M105: 42.15463
A106: 97 | B106: COCHINSHIP | C106: 365.65 | D106: 367.85 | E106: 362.80 | F106: 359.95 | G106: 354.90 | H106: 370.70 | I106: 375.75 | J106: 378.60 | K106: 372.9 | L106: 365 | M106: 0.37316
A107: 98 | B107: COFFEEDAY | C107: 251.5 | D107: 251.77 | E107: 248.88 | F107: 246.27 | G107: 243.38 | H107: 254.38 | I107: 257.27 | J107: 259.88 | K107: 254.65 | L107: 249.15 | M107: 0.51465
A108: 99 | B108: COLPAL | C108: 1142.4 | D108: 1147.70 | E108: 1135.05 | F108: 1127.70 | G108: 1115.05 | H108: 1155.05 | I108: 1167.70 | J108: 1175.05 | K108: 1160.35 | L108: 1140.35 | M108: 3.18621
A109: 100 | B109: CONCOR | C109: 477.2 | D109: 481.87 | E109: 470.43 | F109: 463.67 | G109: 452.23 | H109: 488.63 | I109: 500.07 | J109: 506.83 | K109: 493.3 | L109: 475.1 | M109: 6.5485
A110: 101 | B110: COROMANDEL | C110: 418.7 | D110: 417.43 | E110: 414.87 | F110: 411.03 | G110: 408.47 | H110: 421.27 | I110: 423.83 | J110: 427.67 | K110: 420 | L110: 413.6 | M110: 0.32299
A111: 102 | B111: CORPBANK | C111: 25.65 | D111: 25.67 | E111: 25.18 | F111: 24.72 | G111: 24.23 | H111: 26.13 | I111: 26.62 | J111: 27.08 | K111: 26.15 | L111: 25.2 | M111: 1.41646
A112: 103 | B112: COX&KINGS | C112: 105.7 | D112: 108.37 | E112: 102.58 | F112: 99.47 | G112: 93.68 | H112: 111.48 | I112: 117.27 | J112: 120.38 | K112: 114.15 | L112: 105.25 | M112: 2.40712
A113: 104 | B113: CREDITACC | C113: 498.05 | D113: 504.63 | E113: 488.42 | F113: 478.78 | G113: 462.57 | H113: 514.27 | I113: 530.48 | J113: 540.12 | K113: 520.85 | L113: 495 | M113: 0.74028
A114: 105 | B114: CROMPTON | C114: 225.65 | D114: 223.27 | E114: 218.73 | F114: 211.82 | G114: 207.28 | H114: 230.18 | I114: 234.72 | J114: 241.63 | K114: 227.8 | L114: 216.35 | M114: 2.32538
A115: 106 | B115: CUMMINSIND | C115: 700.1 | D115: 700.93 | E115: 694.92 | F115: 689.73 | G115: 683.72 | H115: 706.12 | I115: 712.13 | J115: 717.32 | K115: 706.95 | L115: 695.75 | M115: 2.64029
A116: 107 | B116: CYIENT | C116: 567 | D116: 568.35 | E116: 561.70 | F116: 556.40 | G116: 549.75 | H116: 573.65 | I116: 580.30 | J116: 585.60 | K116: 575 | L116: 563.05 | M116: 3.97662
A117: 108 | B117: DBCORP | C117: 187 | D117: 185.93 | E117: 183.07 | F117: 179.13 | G117: 176.27 | H117: 189.87 | I117: 192.73 | J117: 196.67 | K117: 188.8 | L117: 182 | M117: 0.31166
A118: 109 | B118: DCBBANK | C118: 211.9 | D118: 212.32 | E118: 210.48 | F118: 209.07 | G118: 207.23 | H118: 213.73 | I118: 215.57 | J118: 216.98 | K118: 214.15 | L118: 210.9 | M118: 21.08201
A119: 110 | B119: DCMSHRIRAM | C119: 477.7 | D119: 475.43 | E119: 469.52 | F119: 461.33 | G119: 455.42 | H119: 483.62 | I119: 489.53 | J119: 497.72 | K119: 481.35 | L119: 467.25 | M119: 4.1785
A120: 111 | B120: DLF | C120: 168.95 | D120: 168.23 | E120: 166.32 | F120: 163.68 | G120: 161.77 | H120: 170.87 | I120: 172.78 | J120: 175.42 | K120: 170.15 | L120: 165.6 | M120: 67.41133
A121: 112 | B121: DABUR | C121: 367.25 | D121: 369.33 | E121: 362.92 | F121: 358.58 | G121: 352.17 | H121: 373.67 | I121: 380.08 | J121: 384.42 | K121: 375.75 | L121: 365 | M121: 52.9006
A122: 113 | B122: DEEPAKFERT | C122: 133.4 | D122: 134.63 | E122: 131.27 | F122: 129.13 | G122: 125.77 | H122: 136.77 | I122: 140.13 | J122: 142.27 | K122: 138 | L122: 132.5 | M122: 1.19856
A123: 114 | B123: DEEPAKNTR | C123: 271.8 | D123: 276.13 | E123: 264.62 | F123: 257.43 | G123: 245.92 | H123: 283.32 | I123: 294.83 | J123: 302.02 | K123: 287.65 | L123: 268.95 | M123: 5.74555
A124: 115 | B124: DELTACORP | C124: 233.05 | D124: 234.00 | E124: 231.05 | F124: 229.05 | G124: 226.10 | H124: 236.00 | I124: 238.95 | J124: 240.95 | K124: 236.95 | L124: 232 | M124: 5.4434
A125: 116 | B125: DHFL | C125: 116.3 | D125: 115.63 | E125: 110.77 | F125: 105.23 | G125: 100.37 | H125: 121.17 | I125: 126.03 | J125: 131.57 | K125: 120.5 | L125: 110.1 | M125: 434.62525
A126: 117 | B126: DBL | C126: 456.9 | D126: 464.30 | E126: 447.60 | F126: 438.30 | G126: 421.60 | H126: 473.60 | I126: 490.30 | J126: 499.60 | K126: 481 | L126: 455 | M126: 2.36158
A127: 118 | B127: DISHTV | C127: 31.15 | D127: 30.88 | E127: 29.37 | F127: 27.58 | G127: 26.07 | H127: 32.67 | I127: 34.18 | J127: 35.97 | K127: 32.4 | L127: 29.1 | M127: 370.24351
A128: 119 | B128: DCAL | C128: 203.75 | D128: 207.10 | E128: 199.65 | F128: 195.55 | G128: 188.10 | H128: 211.20 | I128: 218.65 | J128: 222.75 | K128: 214.55 | L128: 203 | M128: 0.9357
A129: 120 | B129: DIVISLAB | C129: 1668.5 | D129: 1672.83 | E129: 1649.77 | F129: 1631.03 | G129: 1607.97 | H129: 1691.57 | I129: 1714.63 | J129: 1733.37 | K129: 1695.9 | L129: 1654.1 | M129: 4.43167
A130: 121 | B130: DIXON | C130: 2289.95 | D130: 2298.58 | E130: 2271.37 | F130: 2252.78 | G130: 2225.57 | H130: 2317.17 | I130: 2344.38 | J130: 2362.97 | K130: 2325.8 | L130: 2280 | M130: 0.09673
A131: 122 | B131: LALPATHLAB | C131: 1006.1 | D131: 1009.28 | E131: 998.72 | F131: 991.33 | G131: 980.77 | H131: 1016.67 | I131: 1027.23 | J131: 1034.62 | K131: 1019.85 | L131: 1001.9 | M131: 0.18048
A132: 123 | B132: DRREDDY | C132: 2900.5 | D132: 2910.30 | E132: 2872.80 | F132: 2845.10 | G132: 2807.60 | H132: 2938.00 | I132: 2975.50 | J132: 3003.20 | K132: 2947.8 | L132: 2882.6 | M132: 4.50398
A133: 124 | B133: EIDPARRY | C133: 184.1 | D133: 185.42 | E133: 181.83 | F133: 179.57 | G133: 175.98 | H133: 187.68 | I133: 191.27 | J133: 193.53 | K133: 189 | L133: 183.15 | M133: 0.7991
A134: 125 | B134: EIHOTEL | C134: 175.45 | D134: 176.82 | E134: 172.13 | F134: 168.82 | G134: 164.13 | H134: 180.13 | I134: 184.82 | J134: 188.13 | K134: 181.5 | L134: 173.5 | M134: 0.4695
A135: 126 | B135: EDELWEISS | C135: 146.5 | D135: 144.58 | E135: 139.17 | F135: 131.83 | G135: 126.42 | H135: 151.92 | I135: 157.33 | J135: 164.67 | K135: 150 | L135: 137.25 | M135: 40.42359
A136: 127 | B136: EICHERMOT | C136: 20336.55 | D136: 20352.18 | E136: 20234.37 | F136: 20132.18 | G136: 20014.37 | H136: 20454.37 | I136: 20572.18 | J136: 20674.37 | K136: 20470 | L136: 20250 | M136: 0.43021
A137: 128 | B137: ELGIEQUIP | C137: 257.25 | D137: 257.83 | E137: 256.02 | F137: 254.78 | G137: 252.97 | H137: 259.07 | I137: 260.88 | J137: 262.12 | K137: 259.65 | L137: 256.6 | M137: 0.03721
A138: 129 | B138: EMAMILTD | C138: 371.05 | D138: 371.55 | E138: 365.10 | F138: 359.15 | G138: 352.70 | H138: 377.50 | I138: 383.95 | J138: 389.90 | K138: 378 | L138: 365.6 | M138: 2.50334
A139: 130 | B139: ENDURANCE | C139: 1134.1 | D139: 1140.70 | E139: 1123.40 | F139: 1112.70 | G139: 1095.40 | H139: 1151.40 | I139: 1168.70 | J139: 1179.40 | K139: 1158 | L139: 1130 | M139: 1.00994
A140: 131 | B140: ENGINERSIN | C140: 106.7 | D140: 107.07 | E140: 105.88 | F140: 105.07 | G140: 103.88 | H140: 107.88 | I140: 109.07 | J140: 109.88 | K140: 108.25 | L140: 106.25 | M140: 10.87422
A141: 132 | B141: EQUITAS | C141: 125.35 | D141: 126.38 | E141: 124.02 | F141: 122.68 | G141: 120.32 | H141: 127.72 | I141: 130.08 | J141: 131.42 | K141: 128.75 | L141: 125.05 | M141: 7.73701
A142: 133 | B142: ERIS | C142: 603.35 | D142: 601.72 | E142: 596.43 | F142: 589.52 | G142: 584.23 | H142: 608.63 | I142: 613.92 | J142: 620.83 | K142: 607 | L142: 594.8 | M142: 0.02376
A143: 134 | B143: ESCORTS | C143: 627.75 | D143: 633.53 | E143: 619.22 | F143: 610.68 | G143: 596.37 | H143: 642.07 | I143: 656.38 | J143: 664.92 | K143: 647.85 | L143: 625 | M143: 28.24401
A144: 135 | B144: ESSELPACK | C144: 133 | D144: 133.37 | E144: 132.18 | F144: 131.37 | G144: 130.18 | H144: 134.18 | I144: 135.37 | J144: 136.18 | K144: 134.55 | L144: 132.55 | M144: 3.31637
A145: 136 | B145: EXIDEIND | C145: 208.35 | D145: 209.70 | E145: 205.85 | F145: 203.35 | G145: 199.50 | H145: 212.20 | I145: 216.05 | J145: 218.55 | K145: 213.55 | L145: 207.2 | M145: 22.34014
A146: 137 | B146: FDC | C146: 167.5 | D146: 166.97 | E146: 164.08 | F146: 160.67 | G146: 157.78 | H146: 170.38 | I146: 173.27 | J146: 176.68 | K146: 169.85 | L146: 163.55 | M146: 0.24569
A147: 138 | B147: FEDERALBNK | C147: 98.6 | D147: 98.77 | E147: 97.58 | F147: 96.57 | G147: 95.38 | H147: 99.78 | I147: 100.97 | J147: 101.98 | K147: 99.95 | L147: 97.75 | M147: 144.51987
A148: 139 | B148: FINEORG | C148: 1366.65 | D148: 1376.92 | E148: 1324.73 | F148: 1282.82 | G148: 1230.63 | H148: 1418.83 | I148: 1471.02 | J148: 1512.93 | K148: 1429.1 | L148: 1335 | M148: 0.16693
A149: 140 | B149: FINCABLES | C149: 425.9 | D149: 420.45 | E149: 412.55 | F149: 399.20 | G149: 391.30 | H149: 433.80 | I149: 441.70 | J149: 455.05 | K149: 428.35 | L149: 407.1 | M149: 0.7283
A150: 141 | B150: FINPIPE | C150: 458.4 | D150: 457.98 | E150: 455.77 | F150: 453.13 | G150: 450.92 | H150: 460.62 | I150: 462.83 | J150: 465.47 | K150: 460.2 | L150: 455.35 | M150: 0.09677
A151: 142 | B151: FSL | C151: 49.95 | D151: 50.17 | E151: 49.48 | F151: 49.02 | G151: 48.33 | H151: 50.63 | I151: 51.32 | J151: 51.78 | K151: 50.85 | L151: 49.7 | M151: 15.028
A152: 143 | B152: FORTIS | C152: 133.6 | D152: 134.22 | E152: 132.68 | F152: 131.77 | G152: 130.23 | H152: 135.13 | I152: 136.67 | J152: 137.58 | K152: 135.75 | L152: 133.3 | M152: 3.77871
A153: 144 | B153: FCONSUMER | C153: 40.8 | D153: 40.83 | E153: 40.32 | F153: 39.83 | G153: 39.32 | H153: 41.32 | I153: 41.83 | J153: 42.32 | K153: 41.35 | L153: 40.35 | M153: 5.46259
A154: 145 | B154: FLFL | C154: 479.75 | D154: 481.52 | E154: 477.03 | F154: 474.32 | G154: 469.83 | H154: 484.23 | I154: 488.72 | J154: 491.43 | K154: 486 | L154: 478.8 | M154: 1.53398
A155: 146 | B155: FRETAIL | C155: 409.65 | D155: 411.22 | E155: 403.43 | F155: 397.22 | G155: 389.43 | H155: 417.43 | I155: 425.22 | J155: 431.43 | K155: 419 | L155: 405 | M155: 2.69636
A156: 147 | B156: GAIL | C156: 337.5 | D156: 339.68 | E156: 334.22 | F156: 330.93 | G156: 325.47 | H156: 342.97 | I156: 348.43 | J156: 351.72 | K156: 345.15 | L156: 336.4 | M156: 36.81837
A157: 148 | B157: GEPIL | C157: 890.8 | D157: 892.60 | E157: 879.15 | F157: 867.50 | G157: 854.05 | H157: 904.25 | I157: 917.70 | J157: 929.35 | K157: 906.05 | L157: 880.95 | M157: 0.13113
A158: 149 | B158: GET&D | C158: 233.1 | D158: 234.57 | E158: 231.13 | F158: 229.17 | G158: 225.73 | H158: 236.53 | I158: 239.97 | J158: 241.93 | K158: 238 | L158: 232.6 | M158: 0.24381
A159: 150 | B159: GHCL | C159: 240.6 | D159: 241.85 | E159: 238.75 | F159: 236.90 | G159: 233.80 | H159: 243.70 | I159: 246.80 | J159: 248.65 | K159: 244.95 | L159: 240 | M159: 1.38337
A160: 151 | B160: GMRINFRA | C160: 15.85 | D160: 15.90 | E160: 15.65 | F160: 15.45 | G160: 15.20 | H160: 16.10 | I160: 16.35 | J160: 16.55 | K160: 16.15 | L160: 15.7 | M160: 95.37037
A161: 152 | B161: GALAXYSURF | C161: 1015.85 | D161: 1013.80 | E161: 987.60 | F161: 959.35 | G161: 933.15 | H161: 1042.05 | I161: 1068.25 | J161: 1096.50 | K161: 1040 | L161: 985.55 | M161: 0.05018
A162: 153 | B162: GDL | C162: 128.7 | D162: 129.50 | E162: 126.35 | F162: 124.00 | G162: 120.85 | H162: 131.85 | I162: 135.00 | J162: 137.35 | K162: 132.65 | L162: 127.15 | M162: 0.77157
A163: 154 | B163: GAYAPROJ | C163: 161.2 | D163: 160.40 | E163: 158.20 | F163: 155.20 | G163: 153.00 | H163: 163.40 | I163: 165.60 | J163: 168.60 | K163: 162.6 | L163: 157.4 | M163: 0.32755
A164: 155 | B164: GICRE | C164: 236.35 | D164: 238.78 | E164: 233.42 | F164: 230.48 | G164: 225.12 | H164: 241.72 | I164: 247.08 | J164: 250.02 | K164: 244.15 | L164: 235.85 | M164: 0.70285
A165: 156 | B165: GILLETTE | C165: 7297 | D165: 7308.65 | E165: 7202.30 | F165: 7107.60 | G165: 7001.25 | H165: 7403.35 | I165: 7509.70 | J165: 7604.40 | K165: 7415 | L165: 7213.95 | M165: 0.03177
A166: 157 | B166: GSKCONS | C166: 7020.6 | D166: 7016.48 | E166: 6974.02 | F166: 6927.43 | G166: 6884.97 | H166: 7063.07 | I166: 7105.53 | J166: 7152.12 | K166: 7058.95 | L166: 6969.9 | M166: 0.14965
A167: 158 | B167: GLAXO | C167: 1270 | D167: 1271.38 | E167: 1259.62 | F167: 1249.23 | G167: 1237.47 | H167: 1281.77 | I167: 1293.53 | J167: 1303.92 | K167: 1283.15 | L167: 1261 | M167: 0.11748
A168: 159 | B168: GLENMARK | C168: 603.7 | D168: 612.08 | E168: 587.72 | F168: 571.73 | G168: 547.37 | H168: 628.07 | I168: 652.43 | J168: 668.42 | K168: 636.45 | L168: 596.1 | M168: 9.31282
A169: 160 | B169: GODFRYPHLP | C169: 1024.75 | D169: 1023.88 | E169: 1011.87 | F169: 998.98 | G169: 986.97 | H169: 1036.77 | I169: 1048.78 | J169: 1061.67 | K169: 1035.9 | L169: 1011 | M169: 1.46071
A170: 161 | B170: GODREJAGRO | C170: 508.8 | D170: 512.60 | E170: 503.30 | F170: 497.80 | G170: 488.50 | H170: 518.10 | I170: 527.40 | J170: 532.90 | K170: 521.9 | L170: 507.1 | M170: 0.80426
A171: 162 | B171: GODREJCP | C171: 636.1 | D171: 634.33 | E171: 628.87 | F171: 621.63 | G171: 616.17 | H171: 641.57 | I171: 647.03 | J171: 654.27 | K171: 639.8 | L171: 627.1 | M171: 6.13906
A172: 163 | B172: GODREJIND | C172: 476.1 | D172: 476.73 | E172: 472.07 | F172: 468.03 | G172: 463.37 | H172: 480.77 | I172: 485.43 | J172: 489.47 | K172: 481.4 | L172: 472.7 | M172: 4.32092
A173: 164 | B173: GODREJPROP | C173: 779.5 | D173: 775.50 | E173: 757.00 | F173: 734.50 | G173: 716.00 | H173: 798.00 | I173: 816.50 | J173: 839.00 | K173: 794 | L173: 753 | M173: 3.59071
A174: 165 | B174: GRANULES | C174: 108.85 | D174: 109.92 | E174: 106.93 | F174: 105.02 | G174: 102.03 | H174: 111.83 | I174: 114.82 | J174: 116.73 | K174: 112.9 | L174: 108 | M174: 8.42868
A175: 166 | B175: GRAPHITE | C175: 385.6 | D175: 387.92 | E175: 381.88 | F175: 378.17 | G175: 372.13 | H175: 391.63 | I175: 397.67 | J175: 401.38 | K175: 393.95 | L175: 384.2 | M175: 6.93777
A176: 167 | B176: GRASIM | C176: 870.95 | D176: 870.92 | E176: 862.03 | F176: 853.12 | G176: 844.23 | H176: 879.83 | I176: 888.72 | J176: 897.63 | K176: 879.8 | L176: 862 | M176: 11.7046
A177: 168 | B177: GESHIP | C177: 268.35 | D177: 270.75 | E177: 262.30 | F177: 256.25 | G177: 247.80 | H177: 276.80 | I177: 285.25 | J177: 291.30 | K177: 279.2 | L177: 264.7 | M177: 0.6088
A178: 169 | B178: GREAVESCOT | C178: 141.25 | D178: 142.57 | E178: 139.38 | F178: 137.52 | G178: 134.33 | H178: 144.43 | I178: 147.62 | J178: 149.48 | K178: 145.75 | L178: 140.7 | M178: 2.19833
A179: 170 | B179: GRINDWELL | C179: 587.7 | D179: 590.33 | E179: 582.37 | F179: 577.03 | G179: 569.07 | H179: 595.67 | I179: 603.63 | J179: 608.97 | K179: 598.3 | L179: 585 | M179: 0.08061
A180: 171 | B180: GRUH | C180: 302.4 | D180: 304.35 | E180: 297.45 | F180: 292.50 | G180: 285.60 | H180: 309.30 | I180: 316.20 | J180: 321.15 | K180: 311.25 | L180: 299.4 | M180: 3.25195
A181: 172 | B181: GUJALKALI | C181: 522.9 | D181: 529.60 | E181: 513.30 | F181: 503.70 | G181: 487.40 | H181: 539.20 | I181: 555.50 | J181: 565.10 | K181: 545.9 | L181: 520 | M181: 0.75777
A182: 173 | B182: GUJFLUORO | C182: 985.35 | D182: 993.80 | E182: 972.55 | F182: 959.75 | G182: 938.50 | H182: 1006.60 | I182: 1027.85 | J182: 1040.65 | K182: 1015.05 | L182: 981 | M182: 0.36851
A183: 174 | B183: GUJGASLTD | C183: 160.35 | D183: 160.55 | E183: 158.20 | F183: 156.05 | G183: 153.70 | H183: 162.70 | I183: 165.05 | J183: 167.20 | K183: 162.9 | L183: 158.4 | M183: 2.85028
A184: 175 | B184: GMDCLTD | C184: 72.95 | D184: 73.05 | E184: 72.40 | F184: 71.85 | G184: 71.20 | H184: 73.60 | I184: 74.25 | J184: 74.80 | K184: 73.7 | L184: 72.5 | M184: 1.6856
A185: 176 | B185: GNFC | C185: 304.6 | D185: 304.65 | E185: 301.35 | F185: 298.10 | G185: 294.80 | H185: 307.90 | I185: 311.20 | J185: 314.45 | K185: 307.95 | L185: 301.4 | M185: 2.07271
A186: 177 | B186: GPPL | C186: 83.2 | D186: 84.20 | E186: 81.60 | F186: 80.00 | G186: 77.40 | H186: 85.80 | I186: 88.40 | J186: 90.00 | K186: 86.8 | L186: 82.6 | M186: 4.74737
A187: 178 | B187: GSFC | C187: 93.85 | D187: 94.27 | E187: 93.03 | F187: 92.22 | G187: 90.98 | H187: 95.08 | I187: 96.32 | J187: 97.13 | K187: 95.5 | L187: 93.45 | M187: 5.52857
A188: 179 | B188: GSPL | C188: 174.85 | D188: 177.42 | E188: 170.13 | F188: 165.42 | G188: 158.13 | H188: 182.13 | I188: 189.42 | J188: 194.13 | K188: 184.7 | L188: 172.7 | M188: 14.90366
A189: 180 | B189: GULFOILLUB | C189: 821.35 | D189: 826.55 | E189: 815.00 | F189: 808.65 | G189: 797.10 | H189: 832.90 | I189: 844.45 | J189: 850.80 | K189: 838.1 | L189: 820.2 | M189: 0.02599
A190: 181 | B190: HEG | C190: 1730.35 | D190: 1745.12 | E190: 1706.23 | F190: 1682.12 | G190: 1643.23 | H190: 1769.23 | I190: 1808.12 | J190: 1832.23 | K190: 1784 | L190: 1721 | M190: 2.3111
A191: 182 | B191: HCLTECH | C191: 1132.6 | D191: 1131.67 | E191: 1123.33 | F191: 1114.07 | G191: 1105.73 | H191: 1140.93 | I191: 1149.27 | J191: 1158.53 | K191: 1140 | L191: 1122.4 | M191: 14.93911
A192: 183 | B192: HDFCAMC | C192: 1633.65 | D192: 1639.88 | E192: 1615.77 | F192: 1597.88 | G192: 1573.77 | H192: 1657.77 | I192: 1681.88 | J192: 1699.77 | K192: 1664 | L192: 1622 | M192: 0.96879
A193: 184 | B193: HDFCBANK | C193: 2307.25 | D193: 2306.35 | E193: 2288.90 | F193: 2270.55 | G193: 2253.10 | H193: 2324.70 | I193: 2342.15 | J193: 2360.50 | K193: 2323.8 | L193: 2288 | M193: 30.16052
A194: 185 | B194: HDFCLIFE | C194: 410.25 | D194: 409.92 | E194: 406.43 | F194: 402.62 | G194: 399.13 | H194: 413.73 | I194: 417.22 | J194: 421.03 | K194: 413.4 | L194: 406.1 | M194: 38.93612
A195: 186 | B195: HATHWAY | C195: 28.05 | D195: 28.17 | E195: 27.38 | F195: 26.72 | G195: 25.93 | H195: 28.83 | I195: 29.62 | J195: 30.28 | K195: 28.95 | L195: 27.5 | M195: 3.51447
A196: 187 | B196: HATSUN | C196: 719.3 | D196: 718.40 | E196: 711.90 | F196: 704.50 | G196: 698.00 | H196: 725.80 | I196: 732.30 | J196: 739.70 | K196: 724.9 | L196: 711 | M196: 0.05863
A197: 188 | B197: HAVELLS | C197: 734.15 | D197: 732.95 | E197: 726.00 | F197: 717.85 | G197: 710.90 | H197: 741.10 | I197: 748.05 | J197: 756.20 | K197: 739.9 | L197: 724.8 | M197: 10.53351
A198: 189 | B198: HEIDELBERG | C198: 175.8 | D198: 174.80 | E198: 172.50 | F198: 169.20 | G198: 166.90 | H198: 178.10 | I198: 180.40 | J198: 183.70 | K198: 177.1 | L198: 171.5 | M198: 2.86468
A199: 190 | B199: HERITGFOOD | C199: 450 | D199: 455.35 | E199: 440.65 | F199: 431.30 | G199: 416.60 | H199: 464.70 | I199: 479.40 | J199: 488.75 | K199: 470.05 | L199: 446 | M199: 0.18733
A200: 191 | B200: HEROMOTOCO | C200: 2499.7 | D200: 2507.38 | E200: 2473.92 | F200: 2448.13 | G200: 2414.67 | H200: 2533.17 | I200: 2566.63 | J200: 2592.42 | K200: 2540.85 | L200: 2481.6 | M200: 4.06025
A201: 192 | B201: HEXAWARE | C201: 341.25 | D201: 342.48 | E201: 338.07 | F201: 334.88 | G201: 330.47 | H201: 345.67 | I201: 350.08 | J201: 353.27 | K201: 346.9 | L201: 339.3 | M201: 4.53679
A202: 193 | B202: HFCL | C202: 21.95 | D202: 21.90 | E202: 21.45 | F202: 20.95 | G202: 20.50 | H202: 22.40 | I202: 22.85 | J202: 23.35 | K202: 22.35 | L202: 21.4 | M202: 29.90336
A203: 194 | B203: HSCL | C203: 104.1 | D203: 104.63 | E203: 103.32 | F203: 102.53 | G203: 101.22 | H203: 105.42 | I203: 106.73 | J203: 107.52 | K203: 105.95 | L203: 103.85 | M203: 2.96607
A204: 195 | B204: HIMATSEIDE | C204: 195.95 | D204: 199.10 | E204: 192.10 | F204: 188.25 | G204: 181.25 | H204: 202.95 | I204: 209.95 | J204: 213.80 | K204: 206.1 | L204: 195.25 | M204: 0.52234
A205: 196 | B205: HINDALCO | C205: 200 | D205: 199.85 | E205: 196.80 | F205: 193.60 | G205: 190.55 | H205: 203.05 | I205: 206.10 | J205: 209.30 | K205: 202.9 | L205: 196.65 | M205: 78.83819
A206: 197 | B206: HAL | C206: 638.35 | D206: 639.68 | E206: 630.47 | F206: 622.58 | G206: 613.37 | H206: 647.57 | I206: 656.78 | J206: 664.67 | K206: 648.9 | L206: 631.8 | M206: 0.07166
... 320 more rows

Sheet Bulk Deals
E6: Back To Main Page
A7: Subject : | B7: BULK DEAL | D7: =Main!B10 -> 2019-05-09
A9: Date | B9: Scrip code | C9: Scrip Name | D9: Client Name | E9: Buy / Sell | F9: Quantity Traded | G9: Trade Price / Wt.Avg.trade price | H9: Exchange
A10: 2019-05-08 | B10: 532975 | C10: AISHWARYA | D10: SRINIDHI INFIN LIMITED | E10: BUY | F10: 260,000 | G10: 2.08 | H10: BSE
A11: 2019-05-08 | B11: 532975 | C11: AISHWARYA | D11: NAYANSIKH REDDY BADDAM | E11: SELL | F11: 260,000 | G11: 2.08 | H11: BSE
A12: 2019-05-08 | B12: 538716 | C12: ARYACAPM | D12: JHAVERI TRADING AND INVESTMENT PVT LTD | E12: SELL | F12: 80,000 | G12: 27.9 | H12: BSE
A13: 2019-05-08 | B13: 538716 | C13: ARYACAPM | D13: HARSH SHAILESH JHAVERI | E13: SELL | F13: 90,000 | G13: 27.9 | H13: BSE
A14: 2019-05-08 | B14: 538716 | C14: ARYACAPM | D14: JAI AMBE TRADEXIM PRIVATE LIMITED | E14: BUY | F14: 60,000 | G14: 27.9 | H14: BSE
A15: 2019-05-08 | B15: 538716 | C15: ARYACAPM | D15: PARESH BABULAL SHAH | E15: BUY | F15: 65,000 | G15: 27.9 | H15: BSE
A16: 2019-05-08 | B16: 537766 | C16: BCP | D16: ACHINTYA SECURITIES PVT. LTD. | E16: BUY | F16: 613,438 | G16: 38.32 | H16: BSE
A17: 2019-05-08 | B17: 537766 | C17: BCP | D17: ACHINTYA SECURITIES PVT. LTD. | E17: SELL | F17: 635,438 | G17: 37.62 | H17: BSE
A18: 2019-05-08 | B18: 537766 | C18: BCP | D18: ITJ RETAILS PRIVATE LIMITED | E18: SELL | F18: 313,830 | G18: 38.22 | H18: BSE
A19: 2019-05-08 | B19: 539770 | C19: DARJEELING | D19: CHOKSHI KINSHIL KIRANBHAI | E19: BUY | F19: 19,000 | G19: 85.85 | H19: BSE
A20: 2019-05-08 | B20: 539770 | C20: DARJEELING | D20: SHAH DEEPAK BHOGILAL | E20: SELL | F20: 19,000 | G20: 85.85 | H20: BSE
A21: 2019-05-08 | B21: 542666 | C21: GKP | D21: CHIRAG JAIN | E21: SELL | F21: 52,000 | G21: 34.45 | H21: BSE
A22: 2019-05-08 | B22: 542666 | C22: GKP | D22: CURE SPECTS EYE CARE LASER PVT LTD | E22: SELL | F22: 148,000 | G22: 34.45 | H22: BSE
A23: 2019-05-08 | B23: 542666 | C23: GKP | D23: HITESH MOHANBHAI PATEL | E23: BUY | F23: 100,000 | G23: 34.45 | H23: BSE
A24: 2019-05-08 | B24: 542666 | C24: GKP | D24: VIPUL D SHAH (HUF) | E24: BUY | F24: 576,000 | G24: 34.45 | H24: BSE
A25: 2019-05-08 | B25: 542666 | C25: GKP | D25: VISMAY AMITKUMAR SHAH | E25: SELL | F25: 100,000 | G25: 34.45 | H25: BSE
A26: 2019-05-08 | B26: 542666 | C26: GKP | D26: DIMPLE VIPUL PATEL . | E26: BUY | F26: 252,000 | G26: 34.2 | H26: BSE
A27: 2019-05-08 | B27: 542653 | C27: JINAAM | D27: DEE KARTAVYA FINANCE LIMITED . | E27: BUY | F27: 140,000 | G27: 56.75 | H27: BSE
A28: 2019-05-08 | B28: 542653 | C28: JINAAM | D28: AMRAPALI FINCAP PVT LTD | E28: SELL | F28: 220,000 | G28: 56.64 | H28: BSE
A29: 2019-05-08 | B29: 533103 | C29: JINDCOT | D29: SWING INFRASPACE PRIVATE LIMITED | E29: BUY | F29: 858,500 | G29: 3.67 | H29: BSE
A30: 2019-05-08 | B30: 533103 | C30: JINDCOT | D30: GIRABEN ATULBHAI SHAH | E30: SELL | F30: 800,500 | G30: 3.67 | H30: BSE
A31: 2019-05-08 | B31: 539408 | C31: KUBERJI | D31: NILESHKUMAR MADHUKARBHAI JOSHI | E31: BUY | F31: 27,703 | G31: 3.26 | H31: BSE
A32: 2019-05-08 | B32: 539408 | C32: KUBERJI | D32: SHIVALI VINOD AGRAWAL | E32: SELL | F32: 27,403 | G32: 3.26 | H32: BSE
A33: 2019-05-08 | B33: 539519 | C33: MAYUKH | D33: RAMAKANT GAGGAR | E33: SELL | F33: 24,700 | G33: 14 | H33: BSE
A34: 2019-05-08 | B34: 539519 | C34: MAYUKH | D34: KESAR TRACOM INDIA LLP | E34: BUY | F34: 25,000 | G34: 14 | H34: BSE
A35: 2019-05-08 | B35: 519003 | C35: MODINATUR | D35: DEVIDAS NARAINDAS BUDHRANI | E35: BUY | F35: 67,000 | G35: 74.05 | H35: BSE
A36: 2019-05-08 | B36: 519003 | C36: MODINATUR | D36: DEVIDAS NARAINDAS BUDHRANI | E36: SELL | F36: 66,000 | G36: 74.05 | H36: BSE
A37: 2019-05-08 | B37: 538668 | C37: NAYSAA | D37: JAYKUMAR PITAMBARBHAI CHAUHAN | E37: BUY | F37: 20,000 | G37: 41.69 | H37: BSE
A38: 2019-05-08 | B38: 538668 | C38: NAYSAA | D38: DEVANG LABHSHANKAR JANI | E38: SELL | F38: 20,000 | G38: 42 | H38: BSE
A39: 2019-05-08 | B39: 538668 | C39: NAYSAA | D39: PARAG BHALCHANDRA PANDYA | E39: BUY | F39: 20,000 | G39: 42 | H39: BSE
A40: 2019-05-08 | B40: 538668 | C40: NAYSAA | D40: GORDHANBHAI CHIMANBHAI SOLANKI | E40: SELL | F40: 20,000 | G40: 41.69 | H40: BSE
A41: 2019-05-08 | B41: 538647 | C41: PURSHOTTAM | D41: PEEYUSH KUMAR AGGARWAL HUF | E41: SELL | F41: 70,102 | G41: 9.97 | H41: BSE
A42: 2019-05-08 | B42: 539814 | C42: RADHEY | D42: SWAR VINCOM PRIVATE LIMITED | E42: SELL | F42: 17,000 | G42: 15.97 | H42: BSE
A43: 2019-05-08 | B43: 541634 | C43: RAWEDGE | D43: SAMIR PRAKASHKUMAR SHAH | E43: BUY | F43: 72,000 | G43: 69.05 | H43: BSE
A44: 2019-05-08 | B44: AKG | C44: AKG Exim Limited | D44: CHANDRAKUMAR LAXMINARAYAN RATHI | E44: BUY | F44: 64,000 | G44: 34.03 | H44: NSE
A45: 2019-05-08 | B45: CGPOWER | C45: CG Power & Ind. Sol. Ltd. | D45: TOWER RESEARCH CAPITAL MARKETS INDIA PRIVATE LIMITED | E45: BUY | F45: 3842556 | G45: 39.35 | H45: NSE
A46: 2019-05-08 | B46: DHFL | C46: Dewan Housing Fin Corp | D46: ALPHAGREP SECURITIES PRIVATE LIMITED | E46: BUY | F46: 2963632 | G46: 116.44 | H46: NSE
A47: 2019-05-08 | B47: DHFL | C47: Dewan Housing Fin Corp | D47: CROSSLAND TRADING CO | E47: BUY | F47: 2432674 | G47: 116.41 | H47: NSE
A48: 2019-05-08 | B48: DHFL | C48: Dewan Housing Fin Corp | D48: GRAVITON RESEARCH CAPITAL LLP | E48: BUY | F48: 2237480 | G48: 116.4 | H48: NSE
A49: 2019-05-08 | B49: DHFL | C49: Dewan Housing Fin Corp | D49: TOWER RESEARCH CAPITAL MARKETS INDIA PRIVATE LIMITED | E49: BUY | F49: 3828490 | G49: 116.32 | H49: NSE
A50: 2019-05-08 | B50: GSS | C50: GSS Infotech Limited | D50: SHAH NIRAJ RAJNIKANT | E50: BUY | F50: 100000 | G50: 119 | H50: NSE
A51: 2019-05-08 | B51: IVRCLINFRA | C51: IVRCL Limited | D51: NIDHI JAIN FAMILY TRUST | E51: BUY | F51: 4000000 | G51: 0.4 | H51: NSE
A52: 2019-05-08 | B52: JETAIRWAYS | C52: Jet Airways (India) Ltd. | D52: ALPHAGREP SECURITIES PRIVATE LIMITED | E52: BUY | F52: 1035410 | G52: 131.41 | H52: NSE
A53: 2019-05-08 | B53: JETAIRWAYS | C53: Jet Airways (India) Ltd. | D53: CROSSLAND TRADING CO | E53: BUY | F53: 816427 | G53: 131.85 | H53: NSE
A54: 2019-05-08 | B54: JETAIRWAYS | C54: Jet Airways (India) Ltd. | D54: DIVYA PORTFOLIO PRIVATE LIMITED | E54: BUY | F54: 1303657 | G54: 130.92 | H54: NSE
A55: 2019-05-08 | B55: JETAIRWAYS | C55: Jet Airways (India) Ltd. | D55: QE SECURITIES LLP | E55: BUY | F55: 831734 | G55: 131.39 | H55: NSE
A56: 2019-05-08 | B56: JETAIRWAYS | C56: Jet Airways (India) Ltd. | D56: TOWER RESEARCH CAPITAL MARKETS INDIA PRIVATE LIMITED | E56: BUY | F56: 1930684 | G56: 130.8 | H56: NSE
A57: 2019-05-08 | B57: MINDTREE | C57: MindTree Limited | D57: LARSEN & TOUBRO LIMITED | E57: BUY | F57: 3753358 | G57: 979.96 | H57: NSE
A58: 2019-05-08 | B58: NEOGEN | C58: Neogen Chemicals Limited | D58: GANESH TRADING INVESTMENT | E58: BUY | F58: 125000 | G58: 253.4 | H58: NSE
A59: 2019-05-08 | B59: PCJEWELLER | C59: PC Jeweller Ltd | D59: TOWER RESEARCH CAPITAL MARKETS INDIA PRIVATE LIMITED | E59: BUY | F59: 2227952 | G59: 122.09 | H59: NSE
A60: 2019-05-08 | B60: RAJRAYON | C60: Raj Rayon Industries Ltd | D60: ALPHA LEON ENTERPRISES LLP | E60: BUY | F60: 2159873 | G60: 0.05 | H60: NSE
A61: 2019-05-08 | B61: RELCAPITAL | C61: Reliance Capital Limited | D61: ALPHAGREP SECURITIES PRIVATE LIMITED | E61: BUY | F61: 1930223 | G61: 116.1 | H61: NSE
A62: 2019-05-08 | B62: RELCAPITAL | C62: Reliance Capital Limited | D62: GRAVITON RESEARCH CAPITAL LLP | E62: BUY | F62: 1761467 | G62: 116.12 | H62: NSE
A63: 2019-05-08 | B63: RELCAPITAL | C63: Reliance Capital Limited | D63: TOWER RESEARCH CAPITAL MARKETS INDIA PRIVATE LIMITED | E63: BUY | F63: 1927031 | G63: 116.38 | H63: NSE
A64: 2019-05-08 | B64: SANCO | C64: Sanco Industries Ltd. | D64: SEJALBEN PRAYASHKUMAR SATHVARA | E64: BUY | F64: 104761 | G64: 15.44 | H64: NSE
A65: 2019-05-08 | B65: AKG | C65: AKG Exim Limited | D65: ACE STONECRAFT LIMITED | E65: SELL | F65: 64000 | G65: 34.03 | H65: NSE
A66: 2019-05-08 | B66: CGPOWER | C66: CG Power & Ind. Sol. Ltd. | D66: TOWER RESEARCH CAPITAL MARKETS INDIA PRIVATE LIMITED | E66: SELL | F66: 3842556 | G66: 39.47 | H66: NSE
A67: 2019-05-08 | B67: DHFL | C67: Dewan Housing Fin Corp | D67: ALPHAGREP SECURITIES PRIVATE LIMITED | E67: SELL | F67: 2964003 | G67: 116.46 | H67: NSE
A68: 2019-05-08 | B68: DHFL | C68: Dewan Housing Fin Corp | D68: CROSSLAND TRADING CO | E68: SELL | F68: 2432674 | G68: 116.43 | H68: NSE
A69: 2019-05-08 | B69: DHFL | C69: Dewan Housing Fin Corp | D69: GRAVITON RESEARCH CAPITAL LLP | E69: SELL | F69: 2237480 | G69: 116.47 | H69: NSE
A70: 2019-05-08 | B70: DHFL | C70: Dewan Housing Fin Corp | D70: TOWER RESEARCH CAPITAL MARKETS INDIA PRIVATE LIMITED | E70: SELL | F70: 3828490 | G70: 116.35 | H70: NSE
A71: 2019-05-08 | B71: GSS | C71: GSS Infotech Limited | D71: JHAVERI TRADING AND INVESTMENT PVT. LTD. | E71: SELL | F71: 92965 | G71: 122.64 | H71: NSE
A72: 2019-05-08 | B72: IVRCLINFRA | C72: IVRCL Limited | D72: IDBI BANK LIMITED | E72: SELL | F72: 5000000 | G72: 0.4 | H72: NSE
A73: 2019-05-08 | B73: JETAIRWAYS | C73: Jet Airways (India) Ltd. | D73: ALPHAGREP SECURITIES PRIVATE LIMITED | E73: SELL | F73: 1035410 | G73: 131.41 | H73: NSE
A74: 2019-05-08 | B74: JETAIRWAYS | C74: Jet Airways (India) Ltd. | D74: CROSSLAND TRADING CO | E74: SELL | F74: 816427 | G74: 131.79 | H74: NSE
A75: 2019-05-08 | B75: JETAIRWAYS | C75: Jet Airways (India) Ltd. | D75: DIVYA PORTFOLIO PRIVATE LIMITED | E75: SELL | F75: 1303657 | G75: 131.15 | H75: NSE
A76: 2019-05-08 | B76: JETAIRWAYS | C76: Jet Airways (India) Ltd. | D76: QE SECURITIES LLP | E76: SELL | F76: 832496 | G76: 131.02 | H76: NSE
A77: 2019-05-08 | B77: JETAIRWAYS | C77: Jet Airways (India) Ltd. | D77: TOWER RESEARCH CAPITAL MARKETS INDIA PRIVATE LIMITED | E77: SELL | F77: 1930684 | G77: 130.72 | H77: NSE
A78: 2019-05-08 | B78: MINDTREE | C78: MindTree Limited | D78: REKHA N SHAH | E78: SELL | F78: 2684246 | G78: 980 | H78: NSE
A79: 2019-05-08 | B79: PCJEWELLER | C79: PC Jeweller Ltd | D79: TOWER RESEARCH CAPITAL MARKETS INDIA PRIVATE LIMITED | E79: SELL | F79: 2227952 | G79: 122.15 | H79: NSE
A80: 2019-05-08 | B80: RAJRAYON | C80: Raj Rayon Industries Ltd | D80: ALPHA LEON ENTERPRISES LLP | E80: SELL | F80: 782899 | G80: 0.1 | H80: NSE
A81: 2019-05-08 | B81: RELCAPITAL | C81: Reliance Capital Limited | D81: ALPHAGREP SECURITIES PRIVATE LIMITED | E81: SELL | F81: 1930223 | G81: 116.14 | H81: NSE
A82: 2019-05-08 | B82: RELCAPITAL | C82: Reliance Capital Limited | D82: GRAVITON RESEARCH CAPITAL LLP | E82: SELL | F82: 1761467 | G82: 116.29 | H82: NSE
A83: 2019-05-08 | B83: RELCAPITAL | C83: Reliance Capital Limited | D83: TOWER RESEARCH CAPITAL MARKETS INDIA PRIVATE LIMITED | E83: SELL | F83: 1927031 | G83: 116.24 | H83: NSE
A84: 2019-05-08 | B84: SANCO | C84: Sanco Industries Ltd. | D84: SEJALBEN PRAYASHKUMAR SATHVARA | E84: SELL | F84: 104761 | G84: 14.81 | H84: NSE
A85: 2019-05-08 | B85: ZEEL | C85: Zee Entertain. Enterp.Ltd | D85: CATALYST TRUSTEESHIP LIMITED | E85: SELL | F85: 8600000 | G85: 342.33 | H85: NSE

Sheet Call Tracker (Equity & F&O)
M5: Back To Main Page
A6: Retail Research Technical Calls & Fundamental Performance Report for the month of May-2019
M7: =Main!B10 -> 2019-05-09
B8: Positional Call
A9: Sr.no | B9: Date | D9: Company | E9: Rec | F9: Rec Price | G9: Stop Loss*** | H9: Call Closed At | I9: Target | J9: Remark | K9: Profit / Loss per Share | L9: Gain / Loss % | M9: Status | N9: Closed Date | O9: NSE Closed Price
A10: 1 | B10: 2019-04-03 | D10: BOSCHLTD | E10: Buy | F10: 17950-18000 | G10: 16850 | I10: 19500-20000 | J10: Open | O10: =VLOOKUP(D10,Sheet2!A22:M1817,6,0) -> 17328.85 | R10: R
A11: 2 | B11: 2019-04-08 | D11: BAJFINANCE | E11: Sell | F11: 3005 | G11: 3166.6 | H11: 2910 | I11: 2750-2700 | J11: Part Profit of Rs.95 | K11: =F11-H11 -> 95 | L11: =K11/F11 -> 3.16% | M11: Successful | N11: 2019-05-08 | R11: R
A12: 3 | B12: 2019-04-23 | D12: DMART | E12: Buy | F12: 1300-1310 | G12: 1212 | I12: 1470-1500 | J12: Open | O12: =VLOOKUP(D12,Sheet2!A29:M1824,6,0) -> 1245.55 | R12: R
A13: 4 | B13: 2019-04-24 | D13: VEDL | E13: Buy | F13: 173 | G13: 164 | H13: 164 | I13: 190-195 | J13: Loss of Rs.9/- | K13: =H13-F13 -> -9 | L13: =K13/F13 -> -5.20% | M13: Unsuccessful | N13: 2019-05-07 | R13: H
A14: 5 | B14: 2019-04-25 | D14: GRASIM | E14: Sell | F14: 900.5 | G14: 945.6 | H14: 873 | I14: 820-810 | J14: Part Profit of Rs.27.5 | K14: =F14-H14 -> 27.5 | L14: =K14/F14 -> 3.05% | M14: Successful | N14: 2019-05-07 | R14: R
A15: 6 | B15: 2019-05-02 | D15: BAJAJFINSV | E15: Sell | F15: 7620 | G15: 7880 | H15: 7375 | I15: 7200 | J15: Part Profit of Rs.245 | K15: =F15-H15 -> 245 | L15: =K15/F15 -> 3.22% | M15: Successful | N15: 2019-05-08 | R15: H
A16: 7 | B16: 2019-05-02 | D16: IDFCFIRSTB | E16: Buy | F16: 50.20-50.70 | G16: 48 | I16: 55-56 | J16: Open | O16: =VLOOKUP(D16,Sheet2!A34:M1829,6,0) -> 49.35 | R16: H
A17: 8 | B17: 2019-05-03 | D17: APOLLOTYRE | E17: Buy | F17: 202-204 | G17: 189 | I17: 225-230 | J17: Open | O17: =VLOOKUP(D17,Sheet2!A35:M1830,6,0) -> 191.75 | R17: H
A18: 9 | B18: 2019-05-03 | D18: M&M | E18: Buy | F18: 642-646 | G18: 615 | I18: 690-700 | J18: Open | O18: =VLOOKUP(D18,Sheet2!A36:M1831,6,0) -> 621.65 | R18: H
A19: 10 | B19: 2019-05-06 | D19: MARUTI | E19: Buy | F19: 6650-6700 | G19: 6400 | I19: 7200-7300 | J19: Open | O19: =VLOOKUP(D19,Sheet2!A37:M1832,6,0) -> 6650.15 | R19: H
A20: 11 | B20: 2019-05-08 | D20: COLPAL | E20: Buy | F20: 1140-1150 | G20: 1089 | I20: 1240-1260 | J20: Open | O20: =VLOOKUP(D20,Sheet2!A38:M1833,6,0) -> 1142.4 | R20: H
A25: CLBS = Closing Basis *** | F25: Reinitiated $
A26: Dividend adjusted <> | F26: Revised stoploss #
A27: Part book {}
A28: Master Trade High Risk
A29: Sr.no | B29: Date | D29: Company | E29: Rec | F29: Rec Price | G29: Stop Loss | H29: Call Closed At | I29: Target | J29: Remark | K29: Profit / Loss per share | L29: Gain / Loss per Lot | M29: Lot | N29: Status | O29: Closed Date
A30: 1 | B30: 2019-05-02 | D30: NIFTY MAY FUT | E30: Sell | F30: 11827.5 | G30: 11945 | H30: 11750 | I30: 11650-11630 | J30: Profit of Rs.77.5/- | K30: =F30-H30 -> 77.5 | L30: =M30*K30 -> 5812.5 | M30: 75 | N30: Successful | O30: 2019-05-02 | R30: R
A31: 2 | B31: 2019-05-02 | D31: ICICIBANK MAY FUT | E31: Buy | F31: 398 | G31: 385 | H31: 404.5 | I31: 415 | J31: Profit of Rs.4.5/- | K31: =H31-F31 -> 6.5 | L31: =M31*4.5 -> 6187.5 | M31: 1375 | N31: Successful | O31: 2019-05-03 | R31: H
D32: ICICIBANK 415 CE | E32: Sell | F32: 9.5 | H32: 11.5 | K32: =F32-H32 -> -2
A33: 3 | B33: 2019-05-06 | D33: HDFC MAY FUT | E33: Buy | F33: 1992 | G33: 1945 | H33: 2017.5 | I33: 2050 | J33: Profit of Rs.19/- | K33: =H33-F33 -> 25.5 | L33: =M33*19 -> 9500 | M33: 500 | N33: Successful | O33: 2019-05-07 | R33: H
D34: HDFC MAY 2040 CE | E34: Sell | F34: 47.5 | H34: 54 | K34: =F34-H34 -> -6.5
A35: 4 | B35: 2019-05-06 | D35: HDFC MAY FUT | E35: Buy | F35: 1991.5 | G35: 1945 | H35: 1950 | I35: 2050 | J35: Loss of Rs.23/- | K35: =H35-F35 -> -41.5 | L35: =M35*-23 -> -11500 | M35: 500 | N35: Unsuccessful | O35: 2019-05-08 | R35: H
D36: HDFC MAY 2040 CE | E36: Sell | F36: 47.5 | H36: 29 | K36: =F36-H36 -> 18.5
A37: 5 | B37: 2019-05-08 | D37: CANBK MAY FUT | E37: Buy | F37: 258-259 | G37: 247.5 | I37: 280 | J37: Open | R37: N
D38: CANBK 275 CE | E38: Sell | F38: 9.50-10
A43: Master Trade Medium Risk
A44: Sr.no | B44: Date | D44: Company | E44: Rec | F44: Rec Price | G44: Stop Loss | H44: Call Closed At | I44: Target | J44: Remark | K44: Profit/ Loss per lot | L44: Gain / Loss per Lot | M44: Lot | N44: Status | O44: Closed Date
A45: 1 | B45: 2019-04-30 | D45: NIFTY 09-MAY 11600 PE | E45: Buy | F45: 46 | H45: 51 | I45: 100 | J45: Profit of Rs.5/- | K45: =H45-F45 -> 5 | L45: =K45*M45 -> 375 | M45: 75 | N45: Neutral | O45: 2019-05-06 | R45: H
A46: 2 | B46: 2019-05-07 | D46: NIFTY 09-MAY 11600 CE | E46: Buy | F46: 37-39 | I46: 90 | J46: Open | R46: H
B51: Smart Delivery Trade
A52: Sr.no | B52: Date | D52: Company | E52: Rec | F52: Rec Price | G52: Stop Loss*** | H52: Call Closed At | I52: Target | J52: Remark | K52: Profit / Loss per Share | L52: Gain / Loss % | M52: Status | N52: Closed Date | O52: NSE Closed Price
A53: 1 | B53: 2019-04-09 | D53: BRITANNIA | E53: Buy | F53: 2950 | G53: 2870 | H53: 2850 | I53: 3100 | J53: Loss of Rs.100/- | K53: =H53-F53 -> -100 | L53: =K53/F53 -> -3.39% | M53: Unsuccessful | N53: 2019-05-02 | R53: H
A54: 2 | B54: 2019-04-24 | D54: COLPAL | E54: Buy | F54: 1210 | G54: 1173 | H54: 1170.5 | I54: 1275-1285 | J54: Loss of Rs.39.5/- | K54: =H54-F54 -> -39.5 | L54: -3.26% | M54: Unsuccessful | N54: 2019-05-03 | R54: R
A55: 3 | B55: 2019-04-24 | D55: DABUR | E55: Buy | F55: 401 | G55: 387.7 | H55: 386 | I55: 418-422 | J55: Loss of Rs.15/- | K55: =H55-F55 -> -15 | L55: =K55/F55 -> -3.74% | M55: Unsuccessful | N55: 2019-05-02 | R55: R
A56: 4 | B56: 2019-04-26 | D56: MUTHOOTFIN | E56: Buy | F56: 588.5 | G56: 571 | H56: 604 | I56: 615-625 | J56: Profit of Rs.15.5/- | K56: =H56-F56 -> 15.5 | L56: =K56/F56 -> 2.63% | M56: Successful | N56: 2019-05-02 | R56: R
A57: 5 | B57: 2019-04-26 | D57: MGL | E57: Buy | F57: 968-970 | G57: 937.7 | I57: 1020-1030 | J57: Open | O57: =VLOOKUP(D57,Sheet2!A108:M1603,6,0) -> 927.1 | R57: R
A58: 6 | B58: 2019-04-26 | D58: PIDILITIND | E58: Buy | F58: 1211 | G58: 1172.2 | H58: 1244 | I58: 1275-1285 | J58: Profit of Rs.33/- | K58: =H58-F58 -> 33 | L58: =K58/F58 -> 2.73% | M58: Successful | N58: 2019-05-02 | R58: R
A59: 7 | B59: 2019-05-02 | D59: RAYMOND | E59: Buy | F59: 741 | G59: 714.4 | H59: 758 | I59: 785-795 | J59: Profit of Rs.17/- | K59: =H59-F59 -> 17 | L59: =K59/F59 -> 2.29% | M59: Successful | N59: 2019-05-03 | R59: R
A60: 8 | B60: 2019-05-03 | D60: PIDILITIND | E60: Buy | F60: 1209.5 | G60: 1172.2 | H60: 1167.5 | I60: 1275-1285 | J60: Loss of Rs.42/- | K60: =H60-F60 -> -42 | L60: =K60/F60 -> -3.47% | M60: Unsuccessful | N60: 2019-05-08 | R60: R
A61: 9 | B61: 2019-05-03 | D61: BIOCON | E61: Buy | F61: 559-561 | G61: 542.2 | I61: 595-605 | J61: Open | O61: =VLOOKUP(D61,Sheet2!A112:M1607,6,0) -> 545.7 | R61: R
A62: 10 | B62: 2019-05-06 | D62: INFY | E62: Buy | F62: 716-720 | G62: 694.4 | I62: 760-780 | J62: Open | O62: =VLOOKUP(D62,Sheet2!A113:M1608,6,0) -> 719.35 | R62: R
A63: 11 | B63: 2019-05-06 | D63: ASIANPAINT | E63: Buy | F63: 1418-1422 | G63: 1378 | I63: 1480-1500 | J63: Open | O63: =VLOOKUP(D63,Sheet2!A114:M1609,6,0) -> 1385.7 | R63: H
A64: 12 | B64: 2019-05-07 | D64: ICICIBANK | E64: Sell | F64: 401 | G64: 413 | H64: 391 | I64: 380-375 | J64: Profit of Rs.10/- | K64: =F64-H64 -> 10 | L64: =K64/F64 -> 2.49% | M64: Successful | N64: 2019-05-07 | R64: H
A69: CLBS = Closing Basis *** | F69: Reinitiated $
A70: Dividend adjusted <> | F70: Revised stoploss #
B73: Momentum Call
A74: Sr.no | B74: Date | D74: Company | E74: Rec | F74: Rec Price | G74: Stop Loss | H74: Call Closed At | I74: Target | J74: Remark | K74: Profit / Loss per Share/Lot | L74: Gain / Loss % | M74: Gain / Loss per Lot | N74: Lot | O74: Status | P74: Closed Date
A75: 1 | B75: 2019-04-23 | D75: JUBLFOOD | E75: Buy | F75: 1342.5 | G75: 1314 | H75: 1364 | I75: 1400 | J75: Profit of Rs.21.5/- | K75: =H75-F75 -> 21.5 | L75: =K75/F75 -> 1.60% | O75: Successful | P75: 2019-05-02 | R75: H
A76: 2 | B76: 2019-04-30 | D76: WIPRO MAY FUT | E76: Buy | F76: 297.75 | G76: 294 | H76: 294 | I76: 305 | J76: Loss of Rs.3.75/- | K76: -3.75 | M76: =N76*K76 -> -12000 | N76: 3200 | O76: UnSuccessful | P76: 2019-05-02 | R76: N
A77: 3 | B77: 2019-05-03 | D77: CEATLTD MAY FUT | E77: Buy | F77: 1047.5 | G77: 1017.5 | H77: 1027.5 | I77: 1095 | J77: Loss of Rs.20/- | K77: -20 | M77: -8000 | N77: 400 | O77: UnSuccessful | P77: 2019-05-07 | R77: N
A78: 4 | B78: 2019-05-03 | D78: UBL MAY FUT | E78: Buy | F78: 1413.5 | G78: 1399 | H78: 1399 | I78: 1440 | J78: Loss of Rs.-14.5/- | K78: -14.5 | M78: -10150 | N78: 700 | O78: UnSuccessful | P78: 2019-05-03 | R78: R
A79: 5 | B79: 2019-05-06 | D79: EXIDEIND MAY FUT | E79: Buy | F79: 215.5 | G79: 210 | H79: 210 | I79: 225 | J79: Loss of Rs.-5.5/- | K79: -5.5 | M79: -11000 | N79: 2000 | O79: UnSuccessful | P79: 2019-05-08 | R79: N
A80: 6 | B80: 2019-05-06 | D80: CONCOR MAY FUT | E80: Buy | F80: 505 | G80: 495 | H80: 497 | I80: 523 | J80: Loss of Rs.8/- | K80: -8 | M80: -12504 | N80: 1563 | O80: UnSuccessful | P80: 2019-05-06 | R80: N
A81: 7 | B81: 2019-05-06 | D81: TITAN | E81: Buy | F81: 1125 | G81: 1098 | H81: 1095 | I81: 1170 | J81: Loss of Rs.30/- | K81: -30 | L81: =K81/F81 -> -2.67% | O81: UnSuccessful | P81: 2019-05-06 | R81: H
A82: 8 | B82: 2019-05-08 | D82: RELIANCE MAY FUT | E82: Buy | F82: 1332.5 | G82: 1307.7 | H82: 1307.7 | I82: 1370-1380 | J82: Loss of Rs.24.8/- | K82: -24.8 | M82: -12400 | N82: 500 | O82: UnSuccessful | P82: 2019-05-08 | R82: R
A83: 9 | B83: 2019-05-08 | D83: NIFTY MAY FUT | E83: Buy | F83: 11495 | G83: 11446 | H83: 11446 | I83: 11600 | J83: Loss of Rs.49/- | K83: -49 | M83: =N83*K83 -> -3675 | N83: 75 | O83: UnSuccessful | P83: 2019-05-08 | R83: R
A84: 10 | B84: 2019-05-08 | D84: SBIN | E84: Buy | F84: 301-303 | G84: 294 | I84: 315 | J84: Open | R84: H
A87: CLBS = Closing Basis ***
A88: Dividend adjusted <> | F88: Reinitiated $
F89: Revised stoploss #
B90: Quick Pick Intraday
A91: Sr.no | B91: Date | D91: Company | E91: Rec | F91: Rec Price | G91: Stop Loss*** | H91: Call Closed At | I91: Target | J91: Remark | K91: Profit / Loss per Share | L91: Status | M91: Closed Date
A105: Techno -Funda (positional)
A106: Sr.no | B106: Date | D106: Company | E106: Rec | F106: Rec Price | G106: Stop Loss*** | H106: Call Closed At | I106: Target | J106: Remark | K106: Profit / Loss per Share | L106: Gain / Loss % | M106: Status | N106: Closed Date | O106: NSE Closed Price
A107: 1 | B107: 2019-04-04 | D107: FINPIPE | E107: Buy | F107: 473-476 | G107: 435 | I107: 560 | J107: Open | O107: =VLOOKUP(D107,Sheet2!A142:M1637,6,0) -> 458.4 | R107: H
A111: CLBS = Closing Basis *** | F111: Reinitiated $
A112: Dividend adjusted <> | F112: Revised stoploss #
B117: Investment Idea
A118: Sr.no | B118: Date | D118: Company | E118: Rec | F118: Rec Price | G118: Point of Review | H118: Close Rate | I118: Target | J118: Remark | K118: Profit / Loss per Share | L118: Gain / Loss % | M118: Status | N118: Closed Date
A119: 1 | B119: 2013-11-01 | D119: L&T Finance Holding | E119: Accu | F119: 82.00 | G119: - | H119: 100 | I119: 100.00 | J119: Target Achieved | K119: =H119-F119 -> 18.00 | L119: =K119/F119 -> 21.95% | M119: Successful | N119: 2016-10-14
A120: 2 | B120: 2014-06-04 | D120: Finolex Inds | E120: Buy | F120: 257.00 | G120: - | H120: 300 | I120: 300.00 | J120: Target Achieved | K120: =H120-F120 -> 43.00 | L120: 16.73% | M120: Successful | N120: 2014-07-02
A121: =1+A120 -> 3 | B121: 2014-07-08 | D121: JK Cement | E121: Buy | F121: 393.00 | G121: - | H121: 468 | I121: 468.00 | J121: Target Achieved | K121: =H121-F121 -> 75.00 | L121: 19.08% | M121: Successful | N121: 2014-08-12
A122: 4 | B122: 2014-08-06 | D122: Finolex Cables | E122: Buy | F122: 205.00 | G122: - | H122: 275 | I122: 250.00 | J122: Target Achieved | K122: 70.00 | L122: 34.15% | M122: Successful | N122: 2014-11-19
A123: 5 | B123: 2014-09-04 | D123: Exide Inds | E123: Buy | F123: 162.00 | G123: - | H123: 190 | I123: 190.00 | J123: Target Achieved | K123: 28.00 | L123: 17.28% | M123: Successful | N123: 2015-01-02
A124: 6 | B124: 2014-09-04 | D124: Deepak Nitrite | E124: Buy | F124: 75.00 | G124: - | H124: 91.5 | I124: 95-100 | J124: Profit of Rs.16.50/- | K124: 16.50 | L124: 22.00% | M124: Successful | N124: 2014-11-11
A125: 7 | B125: 2014-10-01 | D125: Mercks | E125: Buy | F125: 850.00 | G125: - | H125: 982.5 | I125: 1050.00 | J125: Profit of Rs.132.50/- | K125: 132.50 | L125: 15.59% | M125: Successful | N125: 2015-02-04
A126: 8 | B126: 2014-10-01 | D126: Grindwell Norton | E126: Buy | F126: 475.00 | G126: - | H126: 515 | I126: 600.00 | J126: Profit of Rs.40/- | K126: 40.00 | L126: 8.42% | M126: Successful | N126: 2014-10-27
A127: 9 | B127: 2014-10-01 | D127: Snowman Logistics | E127: Buy | F127: 86.00 | G127: - | H127: 99 | I127: 140.00 | J127: Profit of Rs.13.00/- | K127: 13.00 | L127: 15.12% | M127: Successful | N127: 2014-10-27
A128: 10 | B128: 2014-10-14 | D128: Birla Corp | E128: Buy | F128: 496.60 | G128: - | H128: 621 | I128: 580.00 | J128: Target Achieved | K128: 124.40 | L128: 25.05% | M128: Successful | N128: 2016-08-23
A129: 11 | B129: 2014-10-14 | D129: Ultratech Cem | E129: Buy | F129: 2481.90 | G129: - | H129: 2840 | I129: 2870.00 | J129: Profit of Rs.358.10/- | K129: 358.10 | L129: 14.43% | M129: Successful | N129: 2015-01-13
A130: =1+A127 -> 10 | B130: 2014-10-16 | D130: Sintex Inds | E130: Buy | F130: 84.50 | G130: - | H130: 93 | I130: 110.00 | J130: Profit of Rs.8.50/- | K130: 8.50 | L130: 10.06% | M130: Successful | N130: 2014-10-27
A131: =1+A130 -> 11 | B131: 2014-10-16 | D131: HSIL | E131: Buy | F131: 401.00 | G131: - | H131: 428 | I131: 450.00 | J131: Profit of Rs.27.00/- | K131: 27.00 | L131: 6.73% | M131: Successful | N131: 2015-01-16
A132: 12 | B132: 2014-10-16 | D132: Eveready Inds | E132: Buy | F132: 101.00 | G132: - | H132: 112 | I132: 120.00 | J132: Profit of Rs.11.00/- | K132: 11.00 | L132: 10.89% | M132: Successful | N132: 2014-10-27
A133: 13 | B133: 2014-11-11 | D133: Pennar Inds | E133: Buy | F133: 59.00 | G133: - | H133: 76 | I133: 76.00 | J133: Target Achieved | K133: 17.00 | L133: 28.81% | M133: Successful | N133: 2017-10-24
A134: 14 | B134: 2014-11-11 | D134: Snowman Logistics | E134: Buy | F134: 99.00 | G134: - | H134: 120 | I134: 120.00 | J134: Profit of Rs.21/- | K134: 21.00 | L134: 21.21% | M134: Successful | N134: 2014-11-17
A135: 15 | B135: 2014-11-13 | D135: Dharamsi Morarji Chem | E135: Buy | F135: 22.00 | G135: - | H135: 33.55 | I135: 32.00 | J135: Profit of Rs 11.55/- | K135: 11.55 | L135: 52.50% | M135: Successful | N135: 2015-07-03
A136: 16 | B136: 2014-12-03 | D136: Tatachem | E136: Buy | F136: 440.00 | G136: - | H136: 520 | I136: 520.00 | J136: Profit of Rs 80.00/- | K136: 80.00 | L136: 18.18% | M136: Successful | N136: 2015-07-23
A137: 17 | B137: 2014-12-03 | D137: Advanta | E137: Buy | F137: 360.00 | G137: - | H137: 427 | I137: 425.00 | J137: Profit of Rs.67.00/- | K137: 67.00 | L137: 18.61% | M137: Successful | N137: 2015-02-23
A138: 18 | B138: 2015-01-08 | D138: GDL | E138: Buy | F138: 360.00 | G138: - | H138: 455 | I138: 420.00 | J138: Profit of Rs.95.00/- | K138: 95.00 | L138: 26.39% | M138: Successful | N138: 2015-01-20
A139: 19 | B139: 2015-01-08 | D139: NRB Bearing | E139: Buy | F139: 130.00 | H139: 175.5 | I139: 165.00 | J139: Profit of Rs 45.50/- | K139: 45.50 | L139: 35.00% | M139: Successful | N139: 2017-12-19
A140: 20 | B140: 2015-02-05 | D140: GSFC | E140: Accu | F140: 98.00 | H140: 120 | I140: 120.00 | J140: Target Achieved | K140: 22.00 | L140: 22.45% | M140: Successful | N140: 2017-01-18
A141: 21 | B141: 2015-02-05 | D141: Sundrmfast | E141: Accu | F141: 196.00 | H141: 262 | I141: 255.00 | J141: Target Achieved | K141: 66.00 | L141: 33.67% | M141: Successful | N141: 2016-08-17
A142: 22 | B142: 2015-03-04 | D142: GPPL | E142: Accu | F142: 235 | H142: 77.00 | I142: 280-285 | J142: Loss of Rs.158/- | K142: =H142-F142 -> -158.00 | L142: -67.23% | M142: Unsuccessful | N142: 2019-02-26
A143: 23 | B143: 2015-03-04 | D143: ORIENTCEM | E143: Accu | F143: 185.00 | H143: 224 | I143: 220-225 | J143: Target Achieved | K143: 39.00 | L143: =K143/F143 -> 21.08% | M143: Successful | N143: 2016-10-04
A144: 24 | B144: 2015-03-27 | D144: PFS | E144: Accu | F144: 49-50 | I144: 67.00 | J144: Open
A145: 25 | B145: 2015-03-30 | D145: Walchandnagar Ind Ltd | E145: Accu | F145: 183.50 | H145: 219 | I145: 218.00 | J145: Profit of Rs.35.50/- | K145: 35.50 | L145: =K145/F145 -> 19.35% | M145: Successful | N145: 2015-04-09
A146: 26 | B146: 2015-04-20 | D146: Kalpataru Power Transmission Ltd | E146: Accu | F146: =(227+237)/2 -> 232.00 | H146: 298 | I146: 298.00 | J146: Target Achieved | K146: 66.00 | L146: 28.45% | M146: Successful | N146: 2017-03-29
A147: 27 | B147: 2015-05-04 | D147: Mastek Ltd | E147: Buy | F147: 385.00 | H147: =212.5+331 -> 543.5 | I147: 510.00 | J147: Profit of Rs 158.50/- | K147: 158.50 | L147: 41.17% | M147: Successful | N147: 2015-08-19
A148: 28 | B148: 2015-05-04 | D148: Suprajit Eng | E148: Buy | F148: 115.50 | H148: 146 | I148: 142.00 | J148: Profit of Rs 30.50/- | K148: 30.50 | L148: 26.41% | M148: Successful | N148: 2015-07-17
A149: 29 | B149: 2015-05-27 | D149: TCI | E149: Buy | F149: 237.50 | H149: 279.5 | I149: 278.00 | J149: Target Achieved | K149: 42.00 | L149: 17.68% | M149: Successful | N149: 2015-08-06
A150: 30 | B150: 2015-06-19 | D150: HSIL | E150: Accu | F150: 340.00 | H150: 448 | I150: 448.00 | J150: Target Achieved | K150: 108.00 | L150: 31.76% | M150: Successful | N150: 2017-10-10
A151: 31 | B151: 2015-07-06 | D151: Capital First | E151: Accu | F151: 390.00 | H151: 460 | I151: 460.00 | J151: Target Achieved | K151: 70.00 | L151: 17.95% | M151: Successful | N151: 2016-04-18
A152: 32 | B152: 2015-07-10 | D152: Dolphin OffShore | E152: Accu | F152: 122.5 | H152: 61.00 | I152: 172.00 | J152: Loss of Rs.61.50/- | K152: -61.50 | L152: -50.20% | M152: Unsuccessful | N152: 2018-08-21
A153: 33 | B153: 2015-08-03 | D153: Allcargo logistics | E153: Accu | F153: 297.50 | H153: 350 | I153: 360.00 | J153: Profit of Rs 52.50/- | K153: 52.50 | L153: =K153/F153 -> 17.65% | M153: Successful | N153: 2015-08-16
A154: 34 | B154: 2015-08-03 | D154: Camline Fine | E154: Accu | F154: 115.50 | H154: 149 | I154: 140.00 | J154: Profit of Rs 33.50/- | K154: 33.50 | L154: 29.00% | M154: Successful | N154: 2017-01-05
A155: 35 | B155: 2015-09-04 | D155: TCI | E155: Accu | F155: 226.00 | H155: 292 | I155: 292.00 | J155: Target Achieved | K155: 66.00 | L155: 29.20% | M155: Successful | N155: 2015-10-09
A156: 36 | B156: 2015-09-07 | D156: Kalpataru Power Transmission Ltd | E156: Accu | F156: 232.50 | H156: 312.5 | I156: 310.00 | J156: Target Achieved | K156: 80.00 | L156: 34.41% | M156: Successful | N156: 2017-03-29
A157: 37 | B157: 2015-09-21 | D157: LLOYD ELECTRIC & ENG LTD | E157: Accu | F157: 196.50 | H157: 238 | I157: 238.00 | J157: Target Achieved | K157: 41.50 | L157: 21.12% | M157: Successful | N157: 2015-10-14
A158: 38 | B158: 2015-09-24 | D158: L&T Finance Holding | E158: Accu | F158: 65.00 | H158: 82 | I158: 82.00 | J158: Target Achieved | K158: 17.00 | L158: 26.15% | M158: Successful | N158: 2016-07-27
A159: 39 | B159: 2015-10-14 | D159: KEC International ltd | E159: Accu | F159: 144.00 | H159: 182.5 | I159: 181.00 | J159: Target Achieved | K159: 38.50 | L159: 26.74% | M159: Successful | N159: 2017-03-23
A160: 40 | B160: 2015-10-14 | D160: Gruh Finance | E160: Accu | F160: 264.00 | H160: 311 | I160: 311.00 | J160: Target Achieved | K160: 47.00 | L160: 17.80% | M160: Successful | N160: 2016-08-22
A161: 41 | B161: 2015-11-10 | D161: Pidilitind | E161: Buy | F161: 549.50 | H161: 630 | I161: 630.00 | J161: Target Achieved | K161: 80.50 | L161: 14.65% | M161: Successful | N161: 2016-02-19
A162: 42 | B162: 2015-12-04 | D162: Zensar Technology | E162: Accu | F162: 1027.50 | H162: 1315 | I162: 1250.00 | J162: Target Achieved | K162: =H162-F162 -> 287.50 | L162: 27.98% | M162: Successful | N162: 2018-05-24
A163: 43 | B163: 2015-12-29 | D163: Vinati Organics Ltd | E163: Accu | F163: 465.00 | H163: 540 | I163: 540.00 | J163: Target Achieved | K163: 75.00 | L163: =K163/F163 -> 16.13% | M163: Successful | N163: 2016-06-09
A164: 44 | B164: 2016-01-11 | D164: GSFC | E164: Buy | F164: 81.00 | H164: 110 | I164: 110.00 | J164: Target Achieved | K164: 29.00 | L164: 35.80% | M164: Successful | N164: 2017-01-10
A165: 45 | B165: 2016-01-13 | D165: SSWL | E165: Buy | F165: 417.50 | H165: 547 | I165: 535.00 | J165: Target Achieved | K165: 129.50 | L165: 31.02% | M165: Successful | N165: 2016-07-27
A166: 46 | B166: 2016-02-08 | D166: Persistent System Ltd | E166: Accu | F166: 650.00 | H166: 800 | I166: 800.00 | J166: Target Achieved | K166: 150.00 | L166: 23.08% | M166: Successful | N166: 2018-02-23
A167: 47 | B167: 2016-03-04 | D167: UPL | E167: Accu | F167: 437.50 | H167: 504.5 | I167: 522.00 | J167: Profit of Rs.67/- | K167: 67.00 | L167: 15.31% | M167: Successful | N167: 2016-04-20
A168: 48 | B168: 2016-03-09 | D168: Ashoka Buildcon Ltd | E168: Accu | F168: 189.50 | H168: 218 | I168: 218.00 | J168: Target Achieved | K168: 28.50 | L168: 15.04% | M168: Successful | N168: 2017-10-26
A169: 49 | B169: 2016-04-11 | D169: PTC INDIA FIN SERV LTD | E169: Accu | F169: 36-37 | I169: 60.00 | J169: Open
A170: 50 | B170: 2016-04-12 | D170: CAMLINFINE $ | E170: Accu | F170: 93.00 | H170: 149 | I170: 140.00 | J170: Profit of Rs 56/- | K170: 56.00 | L170: =K170/F170 -> 60.22% | M170: Successful | N170: 2017-01-05
A171: 51 | B171: 2016-04-12 | D171: Greaves Cotton Ltd. | E171: Accu | F171: 130.00 | H171: 150 | I171: 150-155 | J171: Target Achieved | K171: 20.00 | L171: 15.38% | M171: Successful | N171: 2016-07-13
A172: 52 | B172: 2016-04-13 | D172: DHFL | E172: Accu | F172: 196.00 | H172: 299 | I172: 299.00 | J172: Target Achieved | K172: 103.00 | L172: 52.55% | M172: Successful | N172: 2016-09-07
A173: 53 | B173: 2016-04-13 | D173: Magma | E173: Accu | F173: 88.00 | H173: 103 | I173: 103.00 | J173: Target Achieved | K173: 15.00 | L173: 17.05% | M173: Successful | N173: 2016-06-09
A174: 54 | B174: 2016-05-02 | D174: KEC International ltd $ | E174: Accu | F174: 127.50 | H174: 148 | I174: 148-150 | J174: Target Achieved | K174: 20.50 | L174: 16.08% | M174: Successful | N174: 2016-07-13
A175: 55 | B175: 2016-05-03 | D175: Mindtree | E175: Accu | F175: 675.00 | H175: 815 | I175: 790-800 | J175: Target Achieved | K175: 140.00 | L175: 20.74% | M175: Successful | N175: 2018-02-23
A176: 56 | B176: 2016-06-01 | D176: Atulauto | E176: Accu | F176: 495-505 | I176: 565-570 | J176: Open
A177: 57 | B177: 2016-06-06 | D177: TRITURBINE | E177: Accu | F177: 110.00 | H177: 126.5 | I177: 125.00 | J177: Profit of Rs.16.50/- | K177: 16.50 | L177: =K177/F177 -> 15.00% | M177: Successful | N177: 2016-07-01
A178: 58 | B178: 2016-06-17 | D178: Pennar Industries Ltd | E178: Accu | F178: 44.00 | H178: 69.5 | I178: 69.50 | J178: Profit of Rs.25.50/- | K178: 25.50 | L178: =K178/F178 -> 57.95% | M178: Successful | N178: 2017-08-30
A179: 59 | B179: 2016-06-28 | D179: EVEREADY INDS. IND. LTD. | E179: Accu | F179: 262.50 | H179: 340 | I179: 333.00 | J179: Profit of Rs.77.50/- | K179: 77.50 | L179: =K179/F179 -> 29.52% | M179: Successful | N179: 2017-10-09
A180: 60 | B180: 2016-06-28 | D180: FIEM INDUSTRIES LIMITED | E180: Accu | F180: 840.00 | H180: 1230 | I180: 1230.00 | J180: Target Achieved | K180: 390.00 | L180: =K180/F180 -> 46.43% | M180: Successful | N180: 2016-10-06
A181: 61 | B181: 2016-07-05 | D181: Bajaj Corp Ltd | E181: Accu | F181: 395 | H181: 468.50 | I181: 510.00 | J181: Part profit of Rs.73.50/- | K181: 73.50 | L181: =K181/F181 -> 19% | M181: Successful | N181: 2017-08-30
A182: 62 | B182: 2016-08-02 | D182: GPPL $ | E182: Buy | F182: 169.5 | H182: 77.00 | I182: 198-200 | J182: Loss of Rs.92.5/- | K182: -92.50 | L182: =K182/F182 -> -54.57% | M182: Unsuccessful | N182: 2019-02-26
A183: 63 | B183: 2016-08-04 | D183: WONDERLA HOLIDAYS LTD | E183: Accu | F183: 395-405 | I183: 475.00 | J183: Open
A184: 64 | B184: 2016-08-11 | D184: CAMLINFINE | E184: Accu | F184: 86.50 | H184: 130 | I184: 130.00 | J184: Profit of Rs.43.50/- | K184: =H184-F184 -> 43.50 | L184: =K184/F184 -> 50.29% | M184: Successful | N184: 2017-12-22
A185: 65 | B185: 2016-08-18 | D185: GRANULES | E185: Accu | F185: 133.5 | H185: 126.50 | I185: 178.00 | J185: Exit | K185: -7.00 | L185: -5.24% | M185: Unsuccessful | N185: 2016-09-02
A186: 66 | B186: 2016-08-31 | D186: VA TECH WABAG | E186: Accu | F186: 560.00 | H186: 725 | I186: 725.00 | J186: Target Achieved | K186: 165.00 | L186: 29.46% | M186: Successful | N186: 2016-03-27
A187: 67 | B187: 2016-09-01 | D187: SKIPPER LIMITED | E187: Accu | F187: 160.50 | H187: 210 | I187: 210.00 | J187: Target Achieved | K187: 49.50 | L187: 30.84% | M187: Successful | N187: 2017-05-16
A188: 68 | B188: 2016-10-03 | D188: IFB Industries | E188: Accu | F188: 430.00 | H188: 596 | I188: 575.00 | J188: Profit of Rs.166/- | K188: 166.00 | L188: 38.60% | M188: Successful | N188: 2017-02-03
A189: 69 | B189: 2016-10-14 | D189: ASIANTILES | E189: Accu | F189: 280.00 | H189: 345 | I189: 345.00 | J189: Target Achieved | K189: 65.00 | L189: 23.21% | M189: Successful | N189: 2017-03-20
A190: 70 | B190: 2016-10-14 | D190: DEEPIND | E190: Accu | F190: 245.00 | H190: 325.5 | I190: 330.00 | J190: Profit of Rs.80.5/- | K190: 80.50 | L190: 32.86% | M190: Successful | N190: 2017-02-03
A191: 71 | B191: 2016-10-17 | D191: DCBBANK | E191: Accu | F191: 125.00 | H191: 160 | I191: 160.00 | J191: Target Achieved | K191: 35.00 | L191: 28.00% | M191: Successful | N191: 2017-03-09
A192: 72 | B192: 2016-10-17 | D192: ORIENTREF | E192: Accu | F192: 114.00 | H192: 145 | I192: 145.00 | J192: Target Achieved | K192: 31.00 | L192: =K192/F192 -> 27.19% | M192: Successful | N192: 2017-05-04
A193: 73 | B193: 2016-10-17 | D193: GANECOS | E193: Accu | F193: 212.00 | H193: 280 | I193: 276.00 | J193: Profit of Rs.68/- | K193: 68.00 | L193: =K193/F193 -> 32.08% | M193: Successful | N193: 2017-05-03
A194: 74 | B194: 2016-11-04 | D194: NBCC | E194: Accu | F194: 155.00 | H194: 210 | I194: 210.00 | J194: Profit of Rs.55/- | K194: 55.00 | L194: =K194/F194 -> 35.48% | M194: Successful | N194: 2017-07-28
A195: 75 | B195: 2016-12-06 | D195: PRECAM | E195: Accu | F195: 150.5 | H195: 72.50 | I195: 174.00 | J195: Loss of Rs.78/- | K195: -78.00 | L195: =K195/F195 -> -51.83% | M195: Unsuccessful | N195: 2018-08-21
A196: 76 | B196: 2016-12-08 | D196: INFRATEL | E196: Accu | F196: 380.00 | H196: 478 | I196: 468.00 | J196: Target Achieved | K196: 98.00 | L196: =K196/F196 -> 25.79% | M196: Successful | N196: 2017-10-17
A197: 77 | B197: 2016-12-30 | D197: GODREJPROP | E197: Accu | F197: 305.00 | H197: 375 | I197: 375.00 | J197: Target Achieved | K197: 70.00 | L197: 22.95% | M197: Successful | N197: 2017-02-02
A198: 78 | B198: 2017-01-04 | D198: DEEPAKNTR | E198: Accu | F198: 99.50 | H198: 158 | I198: 158.00 | J198: Target Achieved | K198: 58.50 | L198: 58.79% | M198: Successful | N198: 2017-06-12
A199: 79 | B199: 2017-02-20 | D199: SUBROS | E199: Accu | F199: 202.50 | H199: 234 | I199: 234.00 | J199: Target Achieved | K199: 31.50 | L199: 15.56% | M199: Successful | N199: 2017-04-11
A200: 80 | B200: 2017-02-20 | D200: RECLTD | E200: Accu | F200: 140.50 | H200: 220 | I200: 220.00 | J200: Target Achieved | K200: 79.50 | L200: 56.58% | M200: Successful | N200: 2017-05-09
A201: 81 | B201: 2017-03-24 | D201: VRLLOG | E201: Accu | F201: 300.50 | H201: 417.5 | I201: 420.00 | J201: Profit of Rs.117/- | K201: 117.00 | L201: 38.94% | M201: Successful | N201: 2017-12-01
A202: 82 | B202: 2017-03-24 | D202: FIEMIND | E202: Accu | F202: 850.00 | H202: 1042.5 | I202: 1023.00 | J202: Profit of Rs 192.50/- | K202: 192.50 | L202: 22.65% | M202: Successful | N202: 2017-04-05
A203: 83 | B203: 2017-04-05 | D203: RATNAMANI | E203: Accu | F203: 785.00 | H203: 930 | I203: 920.00 | J203: Profit of Rs.145/- | K203: 145.00 | L203: 18.47% | M203: Successful | N203: 2017-08-29
A204: 84 | B204: 2017-04-06 | D204: ZEEMEDIA | E204: Accu | F204: 40 | H204: 13.10 | I204: 60.00 | J204: Loss of Rs.26.9/- | K204: =H204-F204 -> -26.90 | L204: -67.25% | M204: Unsuccessful | N204: 2018-02-07
A205: 85 | B205: 2017-04-12 | D205: DABUR | E205: Accu | F205: 289.50 | H205: 354 | I205: 360.00 | J205: Profit of Rs.64.5/- | K205: 64.50 | L205: =K205/F205 -> 22.28% | M205: Successful | N205: 2017-11-01
A206: 86 | B206: 2017-04-20 | D206: KPRMILL | E206: Accu | F206: 700.00 | H206: 840 | I206: 840.00 | J206: Profit of Rs.140/- | K206: 140.00 | L206: =K206/F206 -> 20.00% | M206: Successful | N206: 2017-06-07
A207: 87 | B207: 2017-05-22 | D207: GREAVESCOT | E207: Accu | F207: 153-158 | I207: 190.00 | J207: Open
A208: 88 | B208: 2017-06-01 | D208: ESSELPACK | E208: Accu | F208: 130 | H208: 155.50 | I208: 170.00 | J208: Part profit of Rs.51/- | K208: =H208-F208 -> 25.50 | L208: =K208/F208 -> 20% | M208: Successful | N208: 2017-11-17
A209: 89 | B209: 2017-06-15 | D209: KEI | E209: Accu | F209: 214.50 | H209: 262 | I209: 262.00 | J209: Profit of Rs.47.5/- | K209: =H209-F209 -> 47.50 | L209: 22.14% | M209: Successful | N209: 2017-08-30
A210: 90 | B210: 2017-07-17 | D210: MAYURUNIQ | E210: Accu | F210: 370.00 | H210: 447.5 | I210: 450.00 | J210: Target Achieved | K210: 77.50 | L210: 20.95% | M210: Successful | N210: 2017-10-27
A211: 91 | B211: 2017-07-27 | D211: RAMCOCEM | E211: Accu | F211: 657.50 | H211: 825 | I211: 820.00 | J211: Target Achieved | K211: 167.50 | L211: 25.48% | M211: Successful | N211: 2017-12-21
A212: 92 | B212: 2017-08-17 | D212: FINPIPE | E212: Accu | F212: 605.00 | H212: 750 | I212: 750.00 | J212: Profit of Rs.145/- | K212: 145.00 | L212: 23.97% | M212: Successful | N212: 2017-10-19
A213: 93 | B213: 2017-09-01 | D213: SHK | E213: Accu | F213: 255 | H213: 307.50 | I213: 320.00 | J213: Part profit of Rs.52.5/- | K213: 52.50 | L213: 21% | M213: Successful | N213: 2017-12-29
A214: 94 | B214: 2017-09-19 | D214: SKIPPER | E214: Accu | F214: 215.00 | H214: 258 | I214: 258.00 | J214: Target Achieved | K214: 43.00 | L214: 20.00% | M214: Successful | N214: 2017-11-01
A215: 95 | B215: 2017-09-20 | D215: CAMLINFINE | E215: Accu | F215: 75.00 | H215: 90 | I215: 90.00 | J215: Profit of Rs.15.00/- | K215: 15.00 | L215: 20.00% | M215: Successful | N215: 2017-10-11
A216: 96 | B216: 2017-10-03 | D216: GNA | E216: Accu | F216: 315.00 | H216: 392 | I216: 384.00 | J216: Profit of Rs.77/- | K216: 77.00 | L216: 24.44% | M216: Successful | N216: 2017-10-09
A217: 97 | B217: 2017-10-05 | D217: NOCIL | E217: Accu | F217: 145.00 | H217: 179 | I217: 180.00 | J217: Profit of Rs.34/- | K217: 34.00 | L217: 23.45% | M217: Successful | N217: 2017-10-17
A218: 98 | B218: 2017-10-06 | D218: CENTURYPLY | E218: Accu | F218: 256.00 | H218: 323 | I218: 320.00 | J218: Target Achieved | K218: 67.00 | L218: 26.17% | M218: Successful | N218: 2017-11-28
A219: 99 | B219: 2017-10-09 | D219: RECLTD | E219: Accu | F219: 152.5 | H219: 183.50 | I219: 210.00 | J219: Part Profit of Rs.31/- | K219: 31.00 | L219: 20% | M219: Successful | N219: 2017-11-03
A220: 100 | B220: 2017-10-09 | D220: EIHOTEL | E220: Accu | F220: 137.50 | H220: 184 | I220: 183.00 | J220: Profit of Rs.46.5/- | K220: 46.50 | L220: 33.82% | M220: Successful | N220: 2018-01-08
A221: 101 | B221: 2017-10-10 | D221: BOROSIL | E221: Accu | F221: 895.00 | H221: 1122.5 | I221: 1078.00 | J221: Profit of Rs.227.5/- | K221: 227.50 | L221: 25.42% | M221: Successful | N221: 2018-01-17
A222: 102 | B222: 2017-10-10 | D222: NRBBEARING | E222: Accu | F222: 125.50 | H222: 158 | I222: 155.00 | J222: Profit of Rs.32.5/- | K222: 32.50 | L222: 25.90% | M222: Successful | N222: 2017-11-28
A223: 103 | B223: 2017-10-12 | D223: CYIENT | E223: Accu | F223: 525.00 | H223: 629 | I223: 629.00 | J223: Target Achieved | K223: 104.00 | L223: 19.81% | M223: Successful | N223: 2018-01-19
A224: 104 | B224: 2017-11-07 | D224: HATSUN | E224: Accu | F224: 740.00 | H224: 892.5 | I224: 900.00 | J224: Profit of Rs.152.5/- | K224: 152.50 | L224: 20.61% | M224: Successful | N224: 2017-11-13
A225: 105 | B225: 2017-12-04 | D225: SANGHIIND | E225: Accu | F225: 118.50 | H225: 143.5 | I225: 145.00 | J225: Profit of Rs.25/- | K225: 25.00 | L225: 21.10% | M225: Successful | N225: 2017-12-28
A226: 106 | B226: 2017-12-05 | D226: ALLCARGO | E226: Accu | F226: 177.5 | H226: 215.00 | I226: 230.00 | J226: Part Profit of Rs.37.5/- | K226: 37.50 | L226: 21% | M226: Successful | N226: 2017-12-27
A227: 107 | B227: 2017-12-21 | D227: KAJARIACER | E227: Accu | F227: 710-720 | I227: 872.00 | J227: Open
A228: 108 | B228: 2017-12-29 | D228: GNA | E228: Accu | F228: 435.00 | H228: 542.5 | I228: 539.00 | J228: Target Achieved | K228: =H228-F228 -> 107.50 | L228: =K228/F228 -> 24.71% | M228: Successful | N228: 2018-04-16
A229: 109 | B229: 2017-12-29 | D229: ZENSARTECH | E229: Accu | F229: 885.00 | H229: 1090 | I229: 1084.00 | J229: Target Achieved | K229: 205.00 | L229: =K229/F229 -> 23.16% | M229: Successful | N229: 2018-04-23
A230: 110 | B230: 2018-02-07 | D230: GREAVESCOT | E230: Accu | F230: 130-132 | I230: 190.00 | J230: Open
A231: 111 | B231: 2018-02-27 | D231: MOLDTKPAC | E231: Accu | F231: 320-330 | I231: 398.00 | J231: Open
A232: 112 | B232: 2018-03-05 | D232: LICHSGFIN | E232: Accu | F232: 505-515 | I232: 672.00 | J232: Open
A233: 113 | B233: 2018-04-02 | D233: EVERESTIND | E233: Accu | F233: 492.5 | H233: 589.00 | I233: 613.00 | J233: Part Profit of Rs.37.5/- | K233: =H233-F233 -> 96.50 | L233: =K233/F233 -> 20% | M233: Successful | N233: 2018-08-21
A234: 114 | B234: 2018-04-04 | D234: GPPL | E234: Accu | F234: 141.5 | H234: 77.00 | I234: 180.00 | J234: Loss of Rs.64.5/- | K234: -64.50 | L234: -45.58% | M234: Unsuccessful | N234: 2019-02-26
A235: 115 | B235: 2018-04-19 | D235: MANPASAND | E235: Accu | F235: 430 | H235: 220.00 | I235: 537.00 | J235: Loss of Rs.210/- | K235: =H235-F235 -> -210.00 | L235: =K235/F235 -> -48.84% | M235: Unsuccessful | N235: 2018-06-01
A236: 116 | B236: 2018-04-30 | D236: HEIDELBERG | E236: Accu | F236: 156 | H236: 182.50 | I236: 196.00 | J236: Part Profit of Rs.26.5/- | K236: 26.50 | L236: 17% | M236: Successful | N236: 2019-03-11
A237: 117 | B237: 2018-05-17 | D237: PHILIPCARB | E237: Accu | F237: 230-240 | I237: 348.00 | J237: Open
A238: 118 | B238: 2018-06-07 | D238: KEC | E238: Accu | F238: 340-345 | I238: 439.00 | J238: Open
A239: 119 | B239: 2018-07-04 | D239: ASHOKLEY | E239: Accu | F239: 125-130 | I239: 170.00 | J239: Open
A240: 120 | B240: 2018-07-13 | D240: FCONSUMER | E240: Accu | F240: 46-47 | I240: 59.00 | J240: Open
A241: 121 | B241: 2018-07-25 | D241: ZEEMEDIA | E241: Accu | F241: 27.5 | H241: 13.10 | I241: 60.00 | J241: Loss of Rs.14.40/- | K241: =H241-F241 -> -14.40 | L241: =K241/F241 -> -52.36% | M241: Unsuccessful | N241: 2018-02-07
A242: 122 | B242: 2018-08-06 | D242: GABRIEL | E242: Accu | F242: 148-152 | I242: 182.00 | J242: Open
A243: 123 | B243: 2018-08-23 | D243: INDIANHUME | E243: Accu | F243: 285.00 | H243: 355 | I243: 364.00 | J243: Profit of Rs.70/- | K243: =H243-F243 -> 70.00 | L243: =K243/F243 -> 24.56% | M243: Successful | N243: 2018-12-21
A244: 124 | B244: 2018-08-29 | D244: GRINDWELL | E244: Accu | F244: 520-530 | I244: 635.00 | J244: Open
... 26 more rows

Sheet Sheet2 (hidden)
A1: SYMBOL | B1: SERIES | C1: OPEN | D1: HIGH | E1: LOW | F1: CLOSE | G1: LAST | H1: PREVCLOSE | I1: TOTTRDQTY | J1: TOTTRDVAL | K1: TIMESTAMP | L1: TOTALTRADES | M1: ISIN | N1: ISIN
A2: 20MICRONS | B2: EQ | C2: 37.4 | D2: 37.4 | E2: 35.3 | F2: 35.5 | G2: 35.65 | H2: 37 | I2: 19122 | J2: 687990.25 | K2: 2019-05-08 | L2: 319 | M2: INE144J01027
A3: 21STCENMGM | B3: EQ | C3: 22 | D3: 22 | E3: 21.3 | F3: 21.3 | G3: 21.3 | H3: 21.7 | I3: 2404 | J3: 51919.2 | K3: 2019-05-08 | L3: 17 | M3: INE253B01015
A4: 3IINFOTECH | B4: EQ | C4: 3.8 | D4: 4.1 | E4: 3.75 | F4: 3.9 | G4: 3.95 | H4: 3.8 | I4: 4521562 | J4: 17942730.7 | K4: 2019-05-08 | L4: 2628 | M4: INE748C01020
A5: 3MINDIA | B5: EQ | C5: 23000.55 | D5: 23299 | E5: 23000.3 | F5: 23122.25 | G5: 23010 | H5: 23225.7 | I5: 349 | J5: 8088590.1 | K5: 2019-05-08 | L5: 216 | M5: INE470A01017
A6: 3PLAND | B6: BE | C6: 11.3 | D6: 11.3 | E6: 11.3 | F6: 11.3 | G6: 11.3 | H6: 11.3 | I6: 300 | J6: 3390 | K6: 2019-05-08 | L6: 1 | M6: INE105C01023
A7: 5PAISA | B7: EQ | C7: 285.2 | D7: 289.95 | E7: 282 | F7: 286.45 | G7: 286 | H7: 291.1 | I7: 5510 | J7: 1570746.65 | K7: 2019-05-08 | L7: 237 | M7: INE618L01018
A8: 63MOONS | B8: EQ | C8: 175.4 | D8: 175.4 | E8: 175.4 | F8: 175.4 | G8: 175.4 | H8: 167.05 | I8: 101708 | J8: 17839583.2 | K8: 2019-05-08 | L8: 675 | M8: INE111B01023
A9: 8KMILES | B9: EQ | C9: 105.05 | D9: 105.4 | E9: 102.15 | F9: 102.7 | G9: 103.45 | H9: 106.45 | I9: 101230 | J9: 10525279 | K9: 2019-05-08 | L9: 1555 | M9: INE650K01021
A10: A2ZINFRA | B10: EQ | C10: 16.6 | D10: 16.7 | E10: 15.25 | F10: 15.45 | G10: 15.6 | H10: 16.5 | I10: 356655 | J10: 5657376.6 | K10: 2019-05-08 | L10: 489 | M10: INE619I01012
A11: AARTIDRUGS | B11: EQ | C11: 619.95 | D11: 619.95 | E11: 612.95 | F11: 616.25 | G11: 618.8 | H11: 617.9 | I11: 4934 | J11: 3043263.6 | K11: 2019-05-08 | L11: 298 | M11: INE767A01016
A12: AARTIIND | B12: EQ | C12: 1600 | D12: 1603.95 | E12: 1572.45 | F12: 1578 | G12: 1581 | H12: 1599.5 | I12: 28976 | J12: 45800689.35 | K12: 2019-05-08 | L12: 4641 | M12: INE769A01020
A13: AARVEEDEN | B13: EQ | C13: 24.3 | D13: 24.3 | E13: 22.85 | F13: 22.9 | G13: 22.9 | H13: 23.8 | I13: 4766 | J13: 110512.3 | K13: 2019-05-08 | L13: 130 | M13: INE273D01019
A14: AAVAS | B14: EQ | C14: 1399.9 | D14: 1448.2 | E14: 1382.15 | F14: 1426.6 | G14: 1429.95 | H14: 1411.6 | I14: 666307 | J14: 952377956 | K14: 2019-05-08 | L14: 14168 | M14: INE216P01012
A15: ABAN | B15: BE | C15: 50.8 | D15: 50.8 | E15: 49 | F15: 49.2 | G15: 49.85 | H15: 50.5 | I15: 54164 | J15: 2677091.55 | K15: 2019-05-08 | L15: 522 | M15: INE421A01028
A16: ABB | B16: EQ | C16: 1480.25 | D16: 1497 | E16: 1448 | F16: 1453.55 | G16: 1453.6 | H16: 1478.8 | I16: 175410 | J16: 257435118.8 | K16: 2019-05-08 | L16: 9793 | M16: INE117A01022
A17: ABBOTINDIA | B17: EQ | C17: 7300 | D17: 7314 | E17: 7260 | F17: 7267.9 | G17: 7265 | H17: 7287.3 | I17: 7624 | J17: 55620306.35 | K17: 2019-05-08 | L17: 837 | M17: INE358A01014
A18: ABCAPITAL | B18: EQ | C18: 99.7 | D18: 99.75 | E18: 98 | F18: 98.6 | G18: 98.75 | H18: 100.35 | I18: 3021121 | J18: 298044783.2 | K18: 2019-05-08 | L18: 71761 | M18: INE674K01013
A19: ABFRL | B19: EQ | C19: 207.95 | D19: 209.7 | E19: 204.6 | F19: 207.15 | G19: 207 | H19: 209 | I19: 329716 | J19: 68181325.25 | K19: 2019-05-08 | L19: 8359 | M19: INE647O01011
A20: ABSLNN50ET | B20: EQ | C20: 303 | D20: 318.49 | E20: 280.04 | F20: 280.04 | G20: 280.04 | H20: 313.2 | I20: 20 | J20: 5939.82 | K20: 2019-05-08 | L20: 6 | M20: INF209KB1B87
A21: ACC | B21: EQ | C21: 1601 | D21: 1606.95 | E21: 1563.55 | F21: 1593.2 | G21: 1590.1 | H21: 1596.9 | I21: 947559 | J21: 1503540608 | K21: 2019-05-08 | L21: 24987 | M21: INE012A01025
A22: ACCELYA | B22: EQ | C22: 916 | D22: 925 | E22: 902 | F22: 906 | G22: 906 | H22: 922.05 | I22: 5712 | J22: 5202087.95 | K22: 2019-05-08 | L22: 486 | M22: INE793A01012
A23: ACE | B23: EQ | C23: 95 | D23: 95.2 | E23: 90 | F23: 90.5 | G23: 90.45 | H23: 95.1 | I23: 305069 | J23: 28101580.25 | K23: 2019-05-08 | L23: 4387 | M23: INE731H01025
A24: ADANIENT | B24: EQ | C24: 121.8 | D24: 123.65 | E24: 120.4 | F24: 120.9 | G24: 121.1 | H24: 122.35 | I24: 2661345 | J24: 324388610.3 | K24: 2019-05-08 | L24: 15803 | M24: INE423A01024
A25: ADANIGAS | B25: EQ | C25: 133.05 | D25: 134.7 | E25: 128.85 | F25: 130.95 | G25: 130.9 | H25: 134.8 | I25: 309514 | J25: 40871077.95 | K25: 2019-05-08 | L25: 5742 | M25: INE399L01023
A26: ADANIGREEN | B26: EQ | C26: 39.85 | D26: 40 | E26: 37.8 | F26: 38.05 | G26: 38.1 | H26: 39.45 | I26: 793079 | J26: 30499572.9 | K26: 2019-05-08 | L26: 3668 | M26: INE364U01010
A27: ADANIPORTS | B27: EQ | C27: 370.05 | D27: 374.9 | E27: 367.7 | F27: 369.8 | G27: 369.5 | H27: 371.9 | I27: 1688110 | J27: 627385579.8 | K27: 2019-05-08 | L27: 66318 | M27: INE742F01042
A28: ADANIPOWER | B28: EQ | C28: 41.4 | D28: 42.1 | E28: 40.75 | F28: 41.35 | G28: 41.2 | H28: 41.5 | I28: 7510676 | J28: 310995879 | K28: 2019-05-08 | L28: 19750 | M28: INE814H01011
A29: ADANITRANS | B29: EQ | C29: 207.25 | D29: 212.45 | E29: 204 | F29: 206 | G29: 206.9 | H29: 211.1 | I29: 66922 | J29: 13906911.15 | K29: 2019-05-08 | L29: 2177 | M29: INE931S01010
A30: ADFFOODS | B30: EQ | C30: 241.15 | D30: 246.85 | E30: 241 | F30: 242.95 | G30: 242 | H30: 245 | I30: 19227 | J30: 4663484.8 | K30: 2019-05-08 | L30: 724 | M30: INE982B01019
A31: ADHUNIK | B31: BE | C31: 2.5 | D31: 2.6 | E31: 2.5 | F31: 2.6 | G31: 2.6 | H31: 2.5 | I31: 20708 | J31: 53605.8 | K31: 2019-05-08 | L31: 27 | M31: INE400H01019
A32: ADHUNIKIND | B32: EQ | C32: 69 | D32: 70.3 | E32: 68.7 | F32: 69.75 | G32: 70.1 | H32: 69.55 | I32: 27471 | J32: 1916501.65 | K32: 2019-05-08 | L32: 206 | M32: INE452L01012
A33: ADLABS | B33: EQ | C33: 8.4 | D33: 8.4 | E33: 7.6 | F33: 7.7 | G33: 7.65 | H33: 8 | I33: 210625 | J33: 1656052.7 | K33: 2019-05-08 | L33: 486 | M33: INE172N01012
A34: ADORWELD | B34: EQ | C34: 319.45 | D34: 319.45 | E34: 299.15 | F34: 301.05 | G34: 300.9 | H34: 315.4 | I34: 15658 | J34: 4734642.55 | K34: 2019-05-08 | L34: 745 | M34: INE045A01017
A35: ADROITINFO | B35: BE | C35: 14.5 | D35: 15.95 | E35: 14.5 | F35: 15.95 | G35: 15.95 | H35: 15.2 | I35: 7708 | J35: 120441.1 | K35: 2019-05-08 | L35: 37 | M35: INE737B01033
A36: ADSL | B36: EQ | C36: 14.65 | D36: 15.35 | E36: 14.5 | F36: 14.7 | G36: 14.95 | H36: 15.15 | I36: 34772 | J36: 517357.65 | K36: 2019-05-08 | L36: 89 | M36: INE102I01027
A37: ADVANIHOTR | B37: EQ | C37: 62.05 | D37: 63 | E37: 56.05 | F37: 57.05 | G37: 56.9 | H37: 62.4 | I37: 27741 | J37: 1621139.2 | K37: 2019-05-08 | L37: 384 | M37: INE199C01026
A38: ADVENZYMES | B38: EQ | C38: 183 | D38: 183 | E38: 178.6 | F38: 179.95 | G38: 179 | H38: 183.75 | I38: 67734 | J38: 12246043.1 | K38: 2019-05-08 | L38: 1854 | M38: INE837H01020
A39: AEGISCHEM | B39: EQ | C39: 194.95 | D39: 200.9 | E39: 190.25 | F39: 193.4 | G39: 195 | H39: 196.1 | I39: 157025 | J39: 30889065.45 | K39: 2019-05-08 | L39: 3503 | M39: INE208C01025
A40: AGARIND | B40: EQ | C40: 170.35 | D40: 176.5 | E40: 165 | F40: 170.8 | G40: 165 | H40: 173.75 | I40: 1514 | J40: 258508.65 | K40: 2019-05-08 | L40: 48 | M40: INE204E01012
A41: AGCNET | B41: EQ | C41: 103 | D41: 103 | E41: 94 | F41: 95.85 | G41: 98.75 | H41: 102.75 | I41: 3937 | J41: 390909.4 | K41: 2019-05-08 | L41: 63 | M41: INE676A01019
A42: AGLSL | B42: EQ | C42: 58.65 | D42: 59.75 | E42: 58.5 | F42: 59.75 | G42: 59.75 | H42: 59.35 | I42: 3292 | J42: 195383.45 | K42: 2019-05-08 | L42: 40 | M42: INE517U01013
A43: AGRITECH | B43: EQ | C43: 60.6 | D43: 63.05 | E43: 58.65 | F43: 59.8 | G43: 60 | H43: 62 | I43: 13921 | J43: 840435.1 | K43: 2019-05-08 | L43: 247 | M43: INE449G01018
A44: AGROPHOS | B44: BE | C44: 71.95 | D44: 71.95 | E44: 68.2 | F44: 71 | G44: 71 | H44: 71.75 | I44: 101545 | J44: 7067214 | K44: 2019-05-08 | L44: 66 | M44: INE740V01019
A45: AHLEAST | B45: EQ | C45: 229.05 | D45: 229.9 | E45: 222.2 | F45: 225.2 | G45: 225 | H45: 231.1 | I45: 488 | J45: 111176.55 | K45: 2019-05-08 | L45: 59 | M45: INE926K01017
A46: AHLUCONT | B46: EQ | C46: 323.25 | D46: 323.45 | E46: 314 | F46: 315.3 | G46: 314.9 | H46: 323.2 | I46: 1672 | J46: 530759.35 | K46: 2019-05-08 | L46: 97 | M46: INE758C01029
A47: AHLWEST | B47: EQ | C47: 330 | D47: 332.5 | E47: 322 | F47: 332.5 | G47: 332.5 | H47: 326 | I47: 421 | J47: 138784.8 | K47: 2019-05-08 | L47: 21 | M47: INE915K01010
A48: AIAENG | B48: EQ | C48: 1707.05 | D48: 1735 | E48: 1665 | F48: 1673.45 | G48: 1670.1 | H48: 1722.1 | I48: 22662 | J48: 38595619.65 | K48: 2019-05-08 | L48: 1375 | M48: INE212H01026
A49: AIFL | B49: BE | C49: 9.85 | D49: 9.85 | E49: 9.05 | F49: 9.05 | G49: 9.05 | H49: 9.5 | I49: 60877 | J49: 554040.1 | K49: 2019-05-08 | L49: 181 | M49: INE428O01016
A50: AIONJSW | B50: EQ | C50: 22.8 | D50: 23 | E50: 22 | F50: 22.15 | G50: 22.35 | H50: 22.95 | I50: 12959 | J50: 291114.75 | K50: 2019-05-08 | L50: 165 | M50: INE743C01021
A51: AIRAN | B51: EQ | C51: 38.7 | D51: 38.7 | E51: 36.5 | F51: 36.7 | G51: 36.5 | H51: 38.05 | I51: 34713 | J51: 1286040.65 | K51: 2019-05-08 | L51: 110 | M51: INE645W01026
A52: AJANTPHARM | B52: EQ | C52: 1048 | D52: 1064.9 | E52: 1043 | F52: 1057.95 | G52: 1063 | H52: 1051.4 | I52: 202055 | J52: 213011176.7 | K52: 2019-05-08 | L52: 6947 | M52: INE031B01049
A53: AJMERA | B53: EQ | C53: 157 | D53: 159.95 | E53: 156.2 | F53: 157.25 | G53: 157 | H53: 158.65 | I53: 14433 | J53: 2278687.15 | K53: 2019-05-08 | L53: 790 | M53: INE298G01027
A54: AKSHARCHEM | B54: EQ | C54: 311.65 | D54: 341.85 | E54: 295 | F54: 301.95 | G54: 295 | H54: 307.1 | I54: 20714 | J54: 6379358.9 | K54: 2019-05-08 | L54: 3054 | M54: INE542B01011
A55: AKSHOPTFBR | B55: EQ | C55: 16.1 | D55: 16.1 | E55: 15.6 | F55: 15.7 | G55: 15.65 | H55: 16.1 | I55: 333802 | J55: 5266389.05 | K55: 2019-05-08 | L55: 1405 | M55: INE523B01011
A56: AKZOINDIA | B56: EQ | C56: 1665.1 | D56: 1670 | E56: 1655.6 | F56: 1661.95 | G56: 1657.75 | H56: 1669.4 | I56: 1226 | J56: 2038099.8 | K56: 2019-05-08 | L56: 304 | M56: INE133A01011
A57: ALANKIT | B57: EQ | C57: 34 | D57: 34.1 | E57: 33 | F57: 33.1 | G57: 33 | H57: 33.5 | I57: 634247 | J57: 21200885.9 | K57: 2019-05-08 | L57: 4603 | M57: INE914E01040
A58: ALBERTDAVD | B58: EQ | C58: 383 | D58: 400.05 | E58: 383 | F58: 394.4 | G58: 398 | H58: 390.55 | I58: 2816 | J58: 1109358.85 | K58: 2019-05-08 | L58: 168 | M58: INE155C01010
A59: ALBK | B59: EQ | C59: 44.9 | D59: 45.1 | E59: 43.85 | F59: 44.45 | G59: 44.4 | H59: 44.9 | I59: 3962709 | J59: 176570973.2 | K59: 2019-05-08 | L59: 8967 | M59: INE428A01015
A60: ALCHEM | B60: BE | C60: 1.9 | D60: 1.95 | E60: 1.9 | F60: 1.9 | G60: 1.9 | H60: 1.95 | I60: 216 | J60: 411.15 | K60: 2019-05-08 | L60: 5 | M60: INE964B01033
A61: ALEMBICLTD | B61: EQ | C61: 42.7 | D61: 43.25 | E61: 41.6 | F61: 42.4 | G61: 42.1 | H61: 42 | I61: 401460 | J61: 16983704.7 | K61: 2019-05-08 | L61: 1869 | M61: INE426A01027
A62: ALICON | B62: EQ | C62: 613.95 | D62: 620 | E62: 605.9 | F62: 611.55 | G62: 614 | H62: 612.25 | I62: 1502 | J62: 917479.7 | K62: 2019-05-08 | L62: 181 | M62: INE062D01024
A63: ALKALI | B63: EQ | C63: 41.2 | D63: 41.2 | E63: 39.2 | F63: 39.65 | G63: 39.2 | H63: 40.15 | I63: 3079 | J63: 123078.35 | K63: 2019-05-08 | L63: 88 | M63: INE773I01017
A64: ALKEM | B64: EQ | C64: 1684.05 | D64: 1987.2 | E64: 1680 | F64: 1687.15 | G64: 1682.4 | H64: 1684.05 | I64: 20667 | J64: 35248861.45 | K64: 2019-05-08 | L64: 3573 | M64: INE540L01014
A65: ALKYLAMINE | B65: EQ | C65: 825 | D65: 825.05 | E65: 810 | F65: 812.25 | G65: 812 | H65: 830 | I65: 3203 | J65: 2614634.9 | K65: 2019-05-08 | L65: 249 | M65: INE150B01021
A66: ALLCARGO | B66: EQ | C66: 103 | D66: 105.6 | E66: 102.45 | F66: 104.05 | G66: 105 | H66: 103.6 | I66: 132075 | J66: 13726963.5 | K66: 2019-05-08 | L66: 3383 | M66: INE418H01029
A67: ALLSEC | B67: BE | C67: 306.35 | D67: 311 | E67: 306.35 | F67: 307.75 | G67: 307.75 | H67: 310 | I67: 6543 | J67: 2022417.55 | K67: 2019-05-08 | L67: 77 | M67: INE835G01018
A68: ALMONDZ | B68: EQ | C68: 18.1 | D68: 18.95 | E68: 17.7 | F68: 18 | G68: 18 | H68: 19.1 | I68: 2932 | J68: 52763.2 | K68: 2019-05-08 | L68: 53 | M68: INE326B01027
A69: ALOKTEXT | B69: BE | C69: 3.65 | D69: 3.65 | E69: 3.65 | F69: 3.65 | G69: 3.65 | H69: 3.5 | I69: 996222 | J69: 3636210.3 | K69: 2019-05-08 | L69: 262 | M69: INE270A01011
A70: ALPA | B70: EQ | C70: 27.95 | D70: 27.95 | E70: 24.15 | F70: 24.55 | G70: 24.75 | H70: 28.6 | I70: 203371 | J70: 5194259.85 | K70: 2019-05-08 | L70: 1866 | M70: INE385I01010
A71: ALPHAGEO | B71: EQ | C71: 405.6 | D71: 424.95 | E71: 401.05 | F71: 419.35 | G71: 423 | H71: 406.75 | I71: 4552 | J71: 1884081.55 | K71: 2019-05-08 | L71: 530 | M71: INE137C01018
A72: ALPSINDUS | B72: BE | C72: 1.45 | D72: 1.45 | E72: 1.4 | F72: 1.4 | G72: 1.4 | H72: 1.45 | I72: 49 | J72: 69.55 | K72: 2019-05-08 | L72: 3 | M72: INE093B01015
A73: AMARAJABAT | B73: EQ | C73: 638 | D73: 644.7 | E73: 632.6 | F73: 636 | G73: 637 | H73: 643.1 | I73: 297982 | J73: 190198360.6 | K73: 2019-05-08 | L73: 8365 | M73: INE885A01032
A74: AMBER | B74: EQ | C74: 790 | D74: 790.05 | E74: 758 | F74: 761.9 | G74: 758 | H74: 790 | I74: 10527 | J74: 8117100.55 | K74: 2019-05-08 | L74: 1455 | M74: INE371P01015
A75: AMBIKCO | B75: EQ | C75: 1123.85 | D75: 1123.85 | E75: 1110 | F75: 1116.65 | G75: 1120 | H75: 1109.7 | I75: 1475 | J75: 1647560.8 | K75: 2019-05-08 | L75: 159 | M75: INE540G01014
A76: AMBUJACEM | B76: EQ | C76: 218.25 | D76: 219.1 | E76: 212.4 | F76: 213.35 | G76: 213.4 | H76: 218.2 | I76: 3350658 | J76: 720185938.8 | K76: 2019-05-08 | L76: 53879 | M76: INE079A01024
A77: AMDIND | B77: EQ | C77: 19.8 | D77: 19.95 | E77: 19 | F77: 19.25 | G77: 19.5 | H77: 19.9 | I77: 4298 | J77: 83133.7 | K77: 2019-05-08 | L77: 48 | M77: INE005I01014
A78: AMJLAND | B78: EQ | C78: 19.6 | D78: 19.85 | E78: 19.25 | F78: 19.5 | G78: 19.5 | H78: 20 | I78: 7219 | J78: 140209.9 | K78: 2019-05-08 | L78: 42 | M78: INE606A01024
A79: AMRUTANJAN | B79: EQ | C79: 291.2 | D79: 296.05 | E79: 288.7 | F79: 289.95 | G79: 288.8 | H79: 297.55 | I79: 6191 | J79: 1809325.6 | K79: 2019-05-08 | L79: 498 | M79: INE098F01031
A80: ANANTRAJ | B80: EQ | C80: 29.1 | D80: 29.15 | E80: 28.25 | F80: 28.3 | G80: 28.4 | H80: 29.3 | I80: 237444 | J80: 6795577.3 | K80: 2019-05-08 | L80: 2308 | M80: INE242C01024
A81: ANDHRABANK | B81: EQ | C81: 24.15 | D81: 24.3 | E81: 23.45 | F81: 23.75 | G81: 23.9 | H81: 24.15 | I81: 894123 | J81: 21356001.45 | K81: 2019-05-08 | L81: 3039 | M81: INE434A01013
A82: ANDHRACEMT | B82: BE | C82: 4.25 | D82: 4.25 | E82: 4.1 | F82: 4.1 | G82: 4.1 | H82: 4.3 | I82: 38228 | J82: 158644.45 | K82: 2019-05-08 | L82: 77 | M82: INE666E01012
A83: ANDHRSUGAR | B83: EQ | C83: 345.9 | D83: 346 | E83: 330.35 | F83: 334.15 | G83: 334.35 | H83: 343.3 | I83: 12433 | J83: 4205555.55 | K83: 2019-05-08 | L83: 987 | M83: INE715B01013
A84: ANIKINDS | B84: EQ | C84: 13 | D84: 13.65 | E84: 12.55 | F84: 13.45 | G84: 13.5 | H84: 13.05 | I84: 5147 | J84: 67612.05 | K84: 2019-05-08 | L84: 85 | M84: INE087B01017
A85: ANKITMETAL | B85: BE | C85: 0.45 | D85: 0.5 | E85: 0.4 | F85: 0.5 | G85: 0.5 | H85: 0.45 | I85: 39718 | J85: 18596.65 | K85: 2019-05-08 | L85: 28 | M85: INE106I01010
A86: ANSALAPI | B86: EQ | C86: 9.6 | D86: 9.7 | E86: 9.3 | F86: 9.4 | G86: 9.5 | H86: 9.55 | I86: 34095 | J86: 322120.3 | K86: 2019-05-08 | L86: 166 | M86: INE436A01026
A87: ANSALHSG | B87: EQ | C87: 10.5 | D87: 10.7 | E87: 10.3 | F87: 10.35 | G87: 10.4 | H87: 10.8 | I87: 46436 | J87: 486718.7 | K87: 2019-05-08 | L87: 220 | M87: INE880B01015
A88: ANTGRAPHIC | B88: BE | C88: 0.8 | D88: 0.8 | E88: 0.75 | F88: 0.8 | G88: 0.8 | H88: 0.8 | I88: 14677 | J88: 11154.1 | K88: 2019-05-08 | L88: 15 | M88: INE414B01021
A89: ANUP | B89: EQ | C89: 430.05 | D89: 440 | E89: 420 | F89: 421.9 | G89: 422 | H89: 437.15 | I89: 19485 | J89: 8314398.8 | K89: 2019-05-08 | L89: 1268 | M89: INE294Z01018
A90: APARINDS | B90: EQ | C90: 651.05 | D90: 654.8 | E90: 644.35 | F90: 650.6 | G90: 654.8 | H90: 648.2 | I90: 428 | J90: 277904.85 | K90: 2019-05-08 | L90: 65 | M90: INE372A01015
A91: APCL | B91: EQ | C91: 130.7 | D91: 136.65 | E91: 126.5 | F91: 128.4 | G91: 127.75 | H91: 129.2 | I91: 1622 | J91: 208205.65 | K91: 2019-05-08 | L91: 101 | M91: INE071F01012
A92: APCOTEXIND | B92: EQ | C92: 511 | D92: 516 | E92: 508.2 | F92: 513.1 | G92: 516 | H92: 516.05 | I92: 1358 | J92: 694931.9 | K92: 2019-05-08 | L92: 126 | M92: INE116A01024
A93: APEX | B93: EQ | C93: 295 | D93: 295 | E93: 283.35 | F93: 288.25 | G93: 288 | H93: 291.75 | I93: 54070 | J93: 15576753.2 | K93: 2019-05-08 | L93: 2317 | M93: INE346W01013
A94: APLAPOLLO | B94: EQ | C94: 1500.05 | D94: 1532.8 | E94: 1499 | F94: 1527.1 | G94: 1520 | H94: 1512.05 | I94: 18946 | J94: 28819261.65 | K94: 2019-05-08 | L94: 1382 | M94: INE702C01019
A95: APLLTD | B95: EQ | C95: 557.95 | D95: 568.7 | E95: 540.75 | F95: 551.45 | G95: 545.1 | H95: 549.7 | I95: 228052 | J95: 126571277.4 | K95: 2019-05-08 | L95: 7653 | M95: INE901L01018
A96: APOLLO | B96: EQ | C96: 138.55 | D96: 140.8 | E96: 131.15 | F96: 132.6 | G96: 132 | H96: 141.2 | I96: 52315 | J96: 7113035.15 | K96: 2019-05-08 | L96: 1381 | M96: INE713T01010
A97: APOLLOHOSP | B97: EQ | C97: 1156 | D97: 1183.6 | E97: 1152 | F97: 1170.3 | G97: 1169.05 | H97: 1164.95 | I97: 246581 | J97: 287706607.2 | K97: 2019-05-08 | L97: 11555 | M97: INE437A01024
A98: APOLLOTYRE | B98: EQ | C98: 195.9 | D98: 197.2 | E98: 191 | F98: 191.75 | G98: 191.05 | H98: 195.2 | I98: 2511215 | J98: 485784265.2 | K98: 2019-05-08 | L98: 22418 | M98: INE438A01022
A99: APOLSINHOT | B99: EQ | C99: 902.05 | D99: 924.95 | E99: 872 | F99: 899.4 | G99: 896 | H99: 909.75 | I99: 2083 | J99: 1859036.6 | K99: 2019-05-08 | L99: 99 | M99: INE451F01024
A100: APTECHT | B100: EQ | C100: 150 | D100: 150.4 | E100: 146.15 | F100: 147.45 | G100: 148 | H100: 150.4 | I100: 78519 | J100: 11624351.5 | K100: 2019-05-08 | L100: 1376 | M100: INE266F01018
A101: ARCHIDPLY | B101: EQ | C101: 36.7 | D101: 37.7 | E101: 35.3 | F101: 36.1 | G101: 35.9 | H101: 37.2 | I101: 14373 | J101: 519481.1 | K101: 2019-05-08 | L101: 328 | M101: INE877I01016
A102: ARCHIES | B102: EQ | C102: 22.05 | D102: 22.8 | E102: 21 | F102: 22.25 | G102: 22.55 | H102: 21.9 | I102: 55168 | J102: 1208378.9 | K102: 2019-05-08 | L102: 316 | M102: INE731A01020
A103: ARCOTECH | B103: BE | C103: 4.8 | D103: 5 | E103: 4.65 | F103: 4.7 | G103: 4.85 | H103: 4.85 | I103: 39763 | J103: 187242.8 | K103: 2019-05-08 | L103: 75 | M103: INE574I01035
A104: ARIES | B104: EQ | C104: 74.65 | D104: 74.85 | E104: 72 | F104: 72.4 | G104: 72.15 | H104: 74.65 | I104: 14879 | J104: 1083575.2 | K104: 2019-05-08 | L104: 402 | M104: INE298I01015
A105: ARIHANT | B105: EQ | C105: 26.1 | D105: 27.9 | E105: 23.35 | F105: 24.8 | G105: 23.35 | H105: 27 | I105: 10233 | J105: 259205.2 | K105: 2019-05-08 | L105: 53 | M105: INE413D01011
A106: ARIHANTSUP | B106: BE | C106: 56.2 | D106: 56.95 | E106: 54.1 | F106: 54.15 | G106: 54.1 | H106: 56.9 | I106: 17083 | J106: 967844.1 | K106: 2019-05-08 | L106: 84 | M106: INE643K01018
A107: ARMANFIN | B107: EQ | C107: 346.25 | D107: 360 | E107: 346.25 | F107: 359 | G107: 360 | H107: 347.5 | I107: 3741 | J107: 1316774.45 | K107: 2019-05-08 | L107: 224 | M107: INE109C01017
A108: AROGRANITE | B108: EQ | C108: 51.3 | D108: 51.45 | E108: 49.05 | F108: 50.55 | G108: 50.55 | H108: 49.85 | I108: 5351 | J108: 269699.2 | K108: 2019-05-08 | L108: 71 | M108: INE210C01013
A109: ARROWGREEN | B109: EQ | C109: 70 | D109: 70.9 | E109: 66 | F109: 67.2 | G109: 67 | H109: 67.7 | I109: 12001 | J109: 811440.5 | K109: 2019-05-08 | L109: 265 | M109: INE570D01018
A110: ARROWTEX | B110: EQ | C110: 18.1 | D110: 18.35 | E110: 16.6 | F110: 17.35 | G110: 17.3 | H110: 17.7 | I110: 8261 | J110: 143779.75 | K110: 2019-05-08 | L110: 84 | M110: INE933J01015
A111: ARSHIYA | B111: EQ | C111: 29.5 | D111: 29.85 | E111: 29 | F111: 29.5 | G111: 29.8 | H111: 30.15 | I111: 16833 | J111: 497268.6 | K111: 2019-05-08 | L111: 139 | M111: INE968D01022
A112: ARSSINFRA | B112: BE | C112: 42.7 | D112: 46.25 | E112: 42.7 | F112: 43.55 | G112: 43.55 | H112: 44.9 | I112: 24868 | J112: 1070636.55 | K112: 2019-05-08 | L112: 124 | M112: INE267I01010
A113: ARVIND | B113: EQ | C113: 78.85 | D113: 79.65 | E113: 77.7 | F113: 78.2 | G113: 78 | H113: 78.9 | I113: 1242636 | J113: 97410813.95 | K113: 2019-05-08 | L113: 10038 | M113: INE034A01011
A114: ARVINDFASN | B114: EQ | C114: 982.8 | D114: 994.95 | E114: 970.1 | F114: 980.25 | G114: 982.1 | H114: 995.1 | I114: 43782 | J114: 43096858.2 | K114: 2019-05-08 | L114: 3378 | M114: INE955V01021
A115: ARVSMART | B115: EQ | C115: 113.35 | D115: 114.35 | E115: 112.05 | F115: 112.95 | G115: 113.7 | H115: 114.7 | I115: 7232 | J115: 817328.95 | K115: 2019-05-08 | L115: 326 | M115: INE034S01021
A116: ASAHIINDIA | B116: EQ | C116: 230.05 | D116: 232 | E116: 225 | F116: 225.2 | G116: 225.95 | H116: 230 | I116: 7101 | J116: 1611469.5 | K116: 2019-05-08 | L116: 220 | M116: INE439A01020
A117: ASAHISONG | B117: EQ | C117: 147.95 | D117: 148 | E117: 139 | F117: 140.35 | G117: 139 | H117: 145.15 | I117: 4064 | J117: 574503.1 | K117: 2019-05-08 | L117: 154 | M117: INE228I01012
A118: ASAL | B118: EQ | C118: 50 | D118: 51.35 | E118: 49 | F118: 49.15 | G118: 49 | H118: 50.55 | I118: 3806 | J118: 189364.2 | K118: 2019-05-08 | L118: 73 | M118: INE900C01027
A119: ASHAPURMIN | B119: BE | C119: 21.4 | D119: 22.45 | E119: 20.65 | F119: 21.1 | G119: 21.1 | H119: 21.4 | I119: 26824 | J119: 577272.4 | K119: 2019-05-08 | L119: 139 | M119: INE348A01023
A120: ASHIANA | B120: EQ | C120: 114.4 | D120: 114.4 | E120: 111.3 | F120: 112.35 | G120: 111.6 | H120: 112.65 | I120: 27329 | J120: 3081209.45 | K120: 2019-05-08 | L120: 239 | M120: INE365D01021
A121: ASHIMASYN | B121: EQ | C121: 10.65 | D121: 11.2 | E121: 10.35 | F121: 10.9 | G121: 10.75 | H121: 10.9 | I121: 29768 | J121: 321933.7 | K121: 2019-05-08 | L121: 194 | M121: INE440A01010
A122: ASHOKA | B122: EQ | C122: 117 | D122: 120.45 | E122: 115 | F122: 115.45 | G122: 115.1 | H122: 118.1 | I122: 67803 | J122: 7941511 | K122: 2019-05-08 | L122: 1843 | M122: INE442H01029
A123: ASHOKLEY | B123: EQ | C123: 85.35 | D123: 86.4 | E123: 84.95 | F123: 85.95 | G123: 86.15 | H123: 85.95 | I123: 13038488 | J123: 1118844575 | K123: 2019-05-08 | L123: 42264 | M123: INE208A01029
A124: ASIANHOTNR | B124: EQ | C124: 134.55 | D124: 134.8 | E124: 128 | F124: 130.5 | G124: 128 | H124: 133.35 | I124: 2690 | J124: 351958.25 | K124: 2019-05-08 | L124: 535 | M124: INE363A01022
A125: ASIANPAINT | B125: EQ | C125: 1382 | D125: 1395 | E125: 1362.6 | F125: 1385.7 | G125: 1395 | H125: 1387.8 | I125: 1414591 | J125: 1951463400 | K125: 2019-05-08 | L125: 40321 | M125: INE021A01026
A126: ASIANTILES | B126: EQ | C126: 179.65 | D126: 182.15 | E126: 178.1 | F126: 181.1 | G126: 182.1 | H126: 179.95 | I126: 165073 | J126: 29811064.25 | K126: 2019-05-08 | L126: 1729 | M126: INE022I01019
A127: ASPINWALL | B127: EQ | C127: 148.55 | D127: 150 | E127: 146.95 | F127: 147.5 | G127: 147.5 | H127: 148.55 | I127: 1766 | J127: 259958.7 | K127: 2019-05-08 | L127: 23 | M127: INE991I01015
A128: ASSAMCO | B128: BE | C128: 1.95 | D128: 2 | E128: 1.9 | F128: 1.9 | G128: 1.9 | H128: 1.95 | I128: 68695 | J128: 131198.65 | K128: 2019-05-08 | L128: 59 | M128: INE442A01024
A129: ASTEC | B129: EQ | C129: 496 | D129: 496.05 | E129: 480 | F129: 483.9 | G129: 485.95 | H129: 496.85 | I129: 8916 | J129: 4315213.85 | K129: 2019-05-08 | L129: 1007 | M129: INE563J01010
A130: ASTERDM | B130: EQ | C130: 142.1 | D130: 144.95 | E130: 140.5 | F130: 143.75 | G130: 143 | H130: 142.55 | I130: 17641 | J130: 2509838.7 | K130: 2019-05-08 | L130: 798 | M130: INE914M01019
A131: ASTRAL | B131: EQ | C131: 1198.55 | D131: 1198.55 | E131: 1164.25 | F131: 1168.3 | G131: 1168.9 | H131: 1175.1 | I131: 6606 | J131: 7720881.65 | K131: 2019-05-08 | L131: 1222 | M131: INE006I01046
A132: ASTRAMICRO | B132: EQ | C132: 82 | D132: 82.95 | E132: 79.25 | F132: 80.1 | G132: 80 | H132: 82.8 | I132: 295467 | J132: 23716336.95 | K132: 2019-05-08 | L132: 1563 | M132: INE386C01029
A133: ASTRAZEN | B133: EQ | C133: 2311 | D133: 2311.95 | E133: 2078.95 | F133: 2157.9 | G133: 2134 | H133: 2313.85 | I133: 16967 | J133: 37097625.85 | K133: 2019-05-08 | L133: 2375 | M133: INE203A01020
A134: ASTRON | B134: EQ | C134: 90.65 | D134: 92.25 | E134: 86.2 | F134: 86.8 | G134: 86.6 | H134: 90.7 | I134: 390434 | J134: 35048383.5 | K134: 2019-05-08 | L134: 4824 | M134: INE646X01014
A135: ATFL | B135: EQ | C135: 560.05 | D135: 560.05 | E135: 540.05 | F135: 541.7 | G135: 540.05 | H135: 567.1 | I135: 3482 | J135: 1904127.15 | K135: 2019-05-08 | L135: 482 | M135: INE209A01019
A136: ATLANTA | B136: EQ | C136: 14.5 | D136: 15 | E136: 14.4 | F136: 14.7 | G136: 14.55 | H136: 14.8 | I136: 32132 | J136: 468969.45 | K136: 2019-05-08 | L136: 219 | M136: INE285H01022
A137: ATLASCYCLE | B137: BE | C137: 62 | D137: 62 | E137: 59.5 | F137: 60 | G137: 60 | H137: 59.3 | I137: 7934 | J137: 481709 | K137: 2019-05-08 | L137: 97 | M137: INE446A01025
A138: ATUL | B138: EQ | C138: 3540 | D138: 3580 | E138: 3488.9 | F138: 3559.45 | G138: 3550 | H138: 3537.1 | I138: 28745 | J138: 101405848.2 | K138: 2019-05-08 | L138: 5296 | M138: INE100A01010
A139: ATULAUTO | B139: EQ | C139: 325.55 | D139: 325.55 | E139: 318.5 | F139: 321.05 | G139: 322 | H139: 327 | I139: 10138 | J139: 3256014.35 | K139: 2019-05-08 | L139: 1120 | M139: INE951D01028
A140: AUBANK | B140: EQ | C140: 642 | D140: 643.5 | E140: 632.2 | F140: 641.3 | G140: 639.15 | H140: 639.4 | I140: 776828 | J140: 496445447.9 | K140: 2019-05-08 | L140: 5413 | M140: INE949L01017
A141: AURIONPRO | B141: EQ | C141: 137.1 | D141: 139.95 | E141: 132.1 | F141: 134.05 | G141: 132.35 | H141: 139.05 | I141: 12494 | J141: 1696261.8 | K141: 2019-05-08 | L141: 457 | M141: INE132H01018
A142: AUROPHARMA | B142: EQ | C142: 770 | D142: 776 | E142: 754.55 | F142: 765.2 | G142: 763.05 | H142: 770.7 | I142: 1648180 | J142: 1261995740 | K142: 2019-05-08 | L142: 43797 | M142: INE406A01037
A143: AUSOMENT | B143: EQ | C143: 33.15 | D143: 38.5 | E143: 33.15 | F143: 33.9 | G143: 33.75 | H143: 35.8 | I143: 394 | J143: 13915.85 | K143: 2019-05-08 | L143: 33 | M143: INE218C01016
A144: AUTOAXLES | B144: EQ | C144: 1090 | D144: 1090.05 | E144: 1070.1 | F144: 1074.45 | G144: 1078 | H144: 1086.75 | I144: 2662 | J144: 2865522.85 | K144: 2019-05-08 | L144: 530 | M144: INE449A01011
A145: AUTOIND | B145: EQ | C145: 44 | D145: 44.45 | E145: 42.5 | F145: 42.85 | G145: 43.15 | H145: 44.45 | I145: 7876 | J145: 339827.95 | K145: 2019-05-08 | L145: 129 | M145: INE718H01014
A146: AUTOLITIND | B146: EQ | C146: 32.7 | D146: 33.5 | E146: 31.7 | F146: 32.25 | G146: 32.1 | H146: 33 | I146: 6857 | J146: 225261.95 | K146: 2019-05-08 | L146: 108 | M146: INE448A01013
A147: AVADHSUGAR | B147: EQ | C147: 460.4 | D147: 468 | E147: 455 | F147: 460.2 | G147: 465 | H147: 459.45 | I147: 45078 | J147: 20740180.8 | K147: 2019-05-08 | L147: 984 | M147: INE349W01017
A148: AVANTIFEED | B148: EQ | C148: 355 | D148: 358.35 | E148: 349.75 | F148: 351 | G148: 350.95 | H148: 359.25 | I148: 168741 | J148: 59525532.6 | K148: 2019-05-08 | L148: 5555 | M148: INE871C01038
A149: AVTNPL | B149: EQ | C149: 23.45 | D149: 24 | E149: 23 | F149: 23.35 | G149: 23.1 | H149: 23.25 | I149: 21057 | J149: 492406.65 | K149: 2019-05-08 | L149: 168 | M149: INE488D01021
A150: AXISBANK | B150: EQ | C150: 741.9 | D150: 744.75 | E150: 733.35 | F150: 735.5 | G150: 735.1 | H150: 741.85 | I150: 6739894 | J150: 4971211170 | K150: 2019-05-08 | L150: 118950 | M150: INE238A01034
A151: AXISCADES | B151: EQ | C151: 49.05 | D151: 49.5 | E151: 43.9 | F151: 45.5 | G151: 44 | H151: 49.1 | I151: 87051 | J151: 4088176.75 | K151: 2019-05-08 | L151: 848 | M151: INE555B01013
A152: AXISGOLD | B152: EQ | C152: 2800 | D152: 2819 | E152: 2773 | F152: 2787.5 | G152: 2791 | H152: 2798.8 | I152: 197 | J152: 549079.55 | K152: 2019-05-08 | L152: 60 | M152: INF846K01347
A153: AXISNIFTY | B153: EQ | C153: 1172 | D153: 1172 | E153: 1154.45 | F153: 1154.45 | G153: 1154.45 | H153: 1172.44 | I153: 23 | J153: 26839.34 | K153: 2019-05-08 | L153: 10 | M153: INF846K01ZL0
A154: AYMSYNTEX | B154: EQ | C154: 35.4 | D154: 36.35 | E154: 34.5 | F154: 36.25 | G154: 36.15 | H154: 34.8 | I154: 19722 | J154: 697166.3 | K154: 2019-05-08 | L154: 54 | M154: INE193B01039
A155: BAFNAPHARM | B155: EQ | C155: 8 | D155: 8.05 | E155: 7.55 | F155: 7.6 | G155: 7.95 | H155: 8 | I155: 3634 | J155: 27921.75 | K155: 2019-05-08 | L155: 52 | M155: INE878I01014
A156: BAGFILMS | B156: EQ | C156: 4.3 | D156: 4.4 | E156: 4.3 | F156: 4.35 | G156: 4.4 | H156: 4.35 | I156: 31993 | J156: 138905.9 | K156: 2019-05-08 | L156: 79 | M156: INE116D01028
A157: BAJAJ-AUTO | B157: EQ | C157: 3032 | D157: 3033 | E157: 2951.8 | F157: 2957.75 | G157: 2956.25 | H157: 3033.05 | I157: 427476 | J157: 1278396856 | K157: 2019-05-08 | L157: 37958 | M157: INE917I01010
A158: BAJAJCON | B158: EQ | C158: 349 | D158: 351.8 | E158: 336.9 | F158: 338 | G158: 337.05 | H158: 349.85 | I158: 127909 | J158: 44079466.45 | K158: 2019-05-08 | L158: 10664 | M158: INE933K01021
A159: BAJAJELEC | B159: EQ | C159: 561 | D159: 561 | E159: 530 | F159: 534.45 | G159: 531 | H159: 557.75 | I159: 160037 | J159: 87171061.9 | K159: 2019-05-08 | L159: 11144 | M159: INE193E01025
A160: BAJAJFINSV | B160: EQ | C160: 7550 | D160: 7551 | E160: 7312.3 | F160: 7345.75 | G160: 7345 | H160: 7561.95 | I160: 230383 | J160: 1705609387 | K160: 2019-05-08 | L160: 30277 | M160: INE918I01018
A161: BAJAJHIND | B161: EQ | C161: 7.95 | D161: 7.95 | E161: 7.55 | F161: 7.75 | G161: 7.75 | H161: 7.9 | I161: 1350472 | J161: 10518030.95 | K161: 2019-05-08 | L161: 1780 | M161: INE306A01021
A162: BAJAJHLDNG | B162: EQ | C162: 3151 | D162: 3178.55 | E162: 3080.1 | F162: 3102.25 | G162: 3098.1 | H162: 3178.05 | I162: 18724 | J162: 58475901.8 | K162: 2019-05-08 | L162: 2642 | M162: INE118A01012
A163: BAJFINANCE | B163: EQ | C163: 3012 | D163: 3017 | E163: 2900 | F163: 2921.3 | G163: 2910 | H163: 3017.05 | I163: 1155023 | J163: 3429605155 | K163: 2019-05-08 | L163: 70959 | M163: INE296A01024
A164: BALAJITELE | B164: EQ | C164: 72.6 | D164: 72.6 | E164: 69.65 | F164: 70 | G164: 70 | H164: 72.9 | I164: 109844 | J164: 7735798.4 | K164: 2019-05-08 | L164: 882 | M164: INE794B01026
A165: BALAMINES | B165: EQ | C165: 430.05 | D165: 442.55 | E165: 415.5 | F165: 417.4 | G165: 417.25 | H165: 430.05 | I165: 17781 | J165: 7613430.85 | K165: 2019-05-08 | L165: 1389 | M165: INE050E01027
A166: BALAXI | B166: BE | C166: 121.35 | D166: 121.35 | E166: 121.35 | F166: 121.35 | G166: 121.35 | H166: 115.6 | I166: 586 | J166: 71111.1 | K166: 2019-05-08 | L166: 10 | M166: INE618N01014
A167: BALKRISHNA | B167: EQ | C167: 34.2 | D167: 38.6 | E167: 32.65 | F167: 35.1 | G167: 34.55 | H167: 34.45 | I167: 15585 | J167: 544564.8 | K167: 2019-05-08 | L167: 158 | M167: INE875R01011
A168: BALKRISIND | B168: EQ | C168: 849.7 | D168: 857.25 | E168: 822.45 | F168: 827.3 | G168: 826 | H168: 856.55 | I168: 548966 | J168: 460131422.8 | K168: 2019-05-08 | L168: 22109 | M168: INE787D01026
A169: BALLARPUR | B169: EQ | C169: 2.45 | D169: 2.5 | E169: 2.4 | F169: 2.4 | G169: 2.4 | H169: 2.5 | I169: 1160514 | J169: 2803585.45 | K169: 2019-05-08 | L169: 439 | M169: INE294A01037
A170: BALMLAWRIE | B170: EQ | C170: 167.95 | D170: 170 | E170: 166.55 | F170: 167.75 | G170: 168 | H170: 167.8 | I170: 34842 | J170: 5856410.25 | K170: 2019-05-08 | L170: 912 | M170: INE164A01016
A171: BALPHARMA | B171: EQ | C171: 68.3 | D171: 68.5 | E171: 65.05 | F171: 65.65 | G171: 65.95 | H171: 66.95 | I171: 8190 | J171: 540029.5 | K171: 2019-05-08 | L171: 188 | M171: INE083D01012
A172: BALRAMCHIN | B172: EQ | C172: 143.8 | D172: 146.8 | E172: 138.7 | F172: 141.05 | G172: 141.6 | H172: 143.55 | I172: 1466708 | J172: 208893708.1 | K172: 2019-05-08 | L172: 21786 | M172: INE119A01028
A173: BANARBEADS | B173: EQ | C173: 46.25 | D173: 47.9 | E173: 45.8 | F173: 46.9 | G173: 47.9 | H173: 45.95 | I173: 6476 | J173: 300268.6 | K173: 2019-05-08 | L173: 64 | M173: INE655B01011
A174: BANARISUG | B174: EQ | C174: 1407.05 | D174: 1408.05 | E174: 1384.05 | F174: 1395 | G174: 1395 | H174: 1394.35 | I174: 1927 | J174: 2692998.45 | K174: 2019-05-08 | L174: 130 | M174: INE459A01010
A175: BANCOINDIA | B175: EQ | C175: 147.85 | D175: 149.55 | E175: 146 | F175: 146.45 | G175: 146.2 | H175: 147.85 | I175: 9062 | J175: 1334188.05 | K175: 2019-05-08 | L175: 320 | M175: INE213C01025
A176: BANDHANBNK | B176: EQ | C176: 591 | D176: 591.75 | E176: 566.1 | F176: 571.25 | G176: 569.8 | H176: 590.85 | I176: 2406330 | J176: 1405782806 | K176: 2019-05-08 | L176: 18706 | M176: INE545U01014
A177: BANG | B177: EQ | C177: 40.85 | D177: 41.7 | E177: 40 | F177: 40.85 | G177: 40.5 | H177: 41.5 | I177: 8854 | J177: 363124.05 | K177: 2019-05-08 | L177: 505 | M177: INE863I01016
A178: BANKBARODA | B178: EQ | C178: 112.6 | D178: 113.85 | E178: 110.25 | F178: 110.95 | G178: 110.8 | H178: 112.55 | I178: 17253993 | J178: 1934219857 | K178: 2019-05-08 | L178: 64219 | M178: INE028A01039
A179: BANKBEES | B179: EQ | C179: 2975 | D179: 2980 | E179: 2940 | F179: 2941.96 | G179: 2946.99 | H179: 2984.4 | I179: 50054 | J179: 148099726.6 | K179: 2019-05-08 | L179: 720 | M179: INF732E01078
A180: BANKINDIA | B180: EQ | C180: 84.3 | D180: 85.7 | E180: 83.35 | F180: 83.9 | G180: 83.6 | H180: 84.75 | I180: 5829503 | J180: 492472979.2 | K180: 2019-05-08 | L180: 17310 | M180: INE084A01016
A181: BANSWRAS | B181: EQ | C181: 63 | D181: 63 | E181: 62.05 | F181: 63 | G181: 63 | H181: 62.95 | I181: 1118 | J181: 70408.4 | K181: 2019-05-08 | L181: 10 | M181: INE629D01012
A182: BARTRONICS | B182: EQ | C182: 5.85 | D182: 5.85 | E182: 5.55 | F182: 5.55 | G182: 5.55 | H182: 5.85 | I182: 27709 | J182: 155565.3 | K182: 2019-05-08 | L182: 104 | M182: INE855F01034
A183: BASF | B183: EQ | C183: 1300 | D183: 1300.05 | E183: 1242 | F183: 1256.1 | G183: 1251.85 | H183: 1292.95 | I183: 5053 | J183: 6425647.65 | K183: 2019-05-08 | L183: 802 | M183: INE373A01013
A184: BASML | B184: EQ | C184: 183.8 | D184: 183.8 | E184: 173.75 | F184: 181.2 | G184: 179.9 | H184: 175.9 | I184: 109 | J184: 19792.9 | K184: 2019-05-08 | L184: 12 | M184: INE186H01014
A185: BATAINDIA | B185: EQ | C185: 1345.1 | D185: 1366 | E185: 1333.25 | F185: 1347.9 | G185: 1348 | H185: 1353.55 | I185: 610792 | J185: 823137401.5 | K185: 2019-05-08 | L185: 20147 | M185: INE176A01028
A186: BAYERCROP | B186: EQ | C186: 4100 | D186: 4109.7 | E186: 4050.2 | F186: 4089.15 | G186: 4089 | H186: 4090.4 | I186: 4157 | J186: 16993340.4 | K186: 2019-05-08 | L186: 1837 | M186: INE462A01022
A187: BBL | B187: EQ | C187: 1013.95 | D187: 1018.55 | E187: 1002 | F187: 1003 | G187: 1002.25 | H187: 1018.3 | I187: 3017 | J187: 3036507.6 | K187: 2019-05-08 | L187: 294 | M187: INE464A01028
A188: BBTC | B188: EQ | C188: 1191 | D188: 1195 | E188: 1175.35 | F188: 1182.35 | G188: 1183 | H188: 1194.9 | I188: 22462 | J188: 26584953.85 | K188: 2019-05-08 | L188: 2586 | M188: INE050A01025
A189: BCG | B189: BE | C189: 5.35 | D189: 5.35 | E189: 5.35 | F189: 5.35 | G189: 5.35 | H189: 5.6 | I189: 46987 | J189: 251380.45 | K189: 2019-05-08 | L189: 89 | M189: INE425B01027
A190: BDL | B190: EQ | C190: 279 | D190: 280.05 | E190: 272 | F190: 272.95 | G190: 274 | H190: 281.6 | I190: 30823 | J190: 8450792.9 | K190: 2019-05-08 | L190: 1695 | M190: INE171Z01018
A191: BEARDSELL | B191: EQ | C191: 15.5 | D191: 17.8 | E191: 14.4 | F191: 16.7 | G191: 17.75 | H191: 15.85 | I191: 20630 | J191: 328859.35 | K191: 2019-05-08 | L191: 139 | M191: INE520H01022
A192: BEDMUTHA | B192: EQ | C192: 17 | D192: 17.2 | E192: 15.6 | F192: 15.8 | G192: 15.75 | H192: 17.05 | I192: 35194 | J192: 569156.5 | K192: 2019-05-08 | L192: 169 | M192: INE844K01012
A193: BEL | B193: EQ | C193: 86.7 | D193: 87.3 | E193: 85.6 | F193: 86.9 | G193: 87.05 | H193: 86.7 | I193: 5196636 | J193: 449555998.2 | K193: 2019-05-08 | L193: 17122 | M193: INE263A01024
A194: BEML | B194: EQ | C194: 831.4 | D194: 840.95 | E194: 825.05 | F194: 832.2 | G194: 831.85 | H194: 835.35 | I194: 764649 | J194: 636196022.9 | K194: 2019-05-08 | L194: 14451 | M194: INE258A01016
A195: BEPL | B195: EQ | C195: 80.15 | D195: 83.2 | E195: 78.5 | F195: 79.05 | G195: 78.9 | H195: 81.45 | I195: 870387 | J195: 69958385 | K195: 2019-05-08 | L195: 6247 | M195: INE922A01025
A196: BERGEPAINT | B196: EQ | C196: 303 | D196: 306.7 | E196: 298.35 | F196: 303.7 | G196: 304.8 | H196: 304.7 | I196: 628049 | J196: 190260043.1 | K196: 2019-05-08 | L196: 8234 | M196: INE463A01038
A197: BFINVEST | B197: EQ | C197: 213.9 | D197: 214.8 | E197: 206.1 | F197: 207.6 | G197: 206.85 | H197: 212.65 | I197: 14395 | J197: 3031352.9 | K197: 2019-05-08 | L197: 565 | M197: INE878K01010
A198: BFUTILITIE | B198: EQ | C198: 168 | D198: 169.25 | E198: 162.75 | F198: 165.2 | G198: 165.8 | H198: 169 | I198: 328602 | J198: 54692308.85 | K198: 2019-05-08 | L198: 7631 | M198: INE243D01012
A199: BGLOBAL | B199: BE | C199: 2.25 | D199: 2.4 | E199: 2.25 | F199: 2.4 | G199: 2.4 | H199: 2.35 | I199: 110 | J199: 249 | K199: 2019-05-08 | L199: 2 | M199: INE224M01013
A200: BGRENERGY | B200: EQ | C200: 53.3 | D200: 54.8 | E200: 51.35 | F200: 52 | G200: 51.5 | H200: 54.35 | I200: 237374 | J200: 12668415.55 | K200: 2019-05-08 | L200: 1985 | M200: INE661I01014
... 1440 more rows

Sheet Sheet1 (hidden)

Sheet Sheet3 (hidden)

Sheet Sheet4 (hidden)
